Ref No,Fund Type,Dept,Cost Centre Description    ,Description    ,Creditor Name    ,GL Code Net Amount,Payment date        
2,Revenue,CAHD,Bed Purchasing - South,Permanent Residential,.,1571.88, 15-Mar-2016
3,Revenue,CAHD,Bed Purchasing - South,Permanent Nursing,.,861.32, 15-Mar-2016
4,Revenue,CAHD,18-25 Year Olds,Permanent Residential,1 St Georges House,13350.08, 15-Mar-2016
5,Revenue,CAHD,Breakthrough and Inclusion Work,Other Supplies & Services,121Turnaround Limited,840.92, 18-Mar-2016
6,Revenue,CAHD,Supporting People Programme,Grants to Voluntary Bodies,1625 Independent People,16872.78, 01-Mar-2016
7,Revenue,CAHD,CSC - Care Leavers Support Costs,Personal Needs of Clients,1625 Independent People,188.00, 07-Mar-2016
8,Revenue,CAHD,CSC - Care Leavers Support Costs,Personal Needs of Clients,1625 Independent People,188.00, 07-Mar-2016
9,Revenue,CAHD,CSC - Care Leavers Support Costs,Personal Needs of Clients,1625 Independent People,188.00, 07-Mar-2016
10,Revenue,CAHD,CSC - Care Leavers Support Costs,Personal Needs of Clients,1625 Independent People,188.00, 07-Mar-2016
11,Revenue,CAHD,Home Care - Elderly - North,Supported Living,3 Trees Community Support Limited,639.80, 15-Mar-2016
12,Revenue,CAHD,Home Care - Elderly - South,Day Care / Social Activities,3 Trees Community Support Ltd,203.40, 08-Mar-2016
13,Revenue,CAHD,Home Care - Elderly - North,Day Care / Social Activities,3 Trees Community Support Ltd,3444.24, 08-Mar-2016
14,Revenue,CAHD,Home Care - Elderly - North,Other Small Contracts,3 Trees Community Support Ltd,108.48, 08-Mar-2016
15,Revenue,CAHD,Home Care - Elderly - North,Supported Living,3 Trees Community Support Ltd,9472.22, 08-Mar-2016
16,Revenue,CAHD,Home Care - Elderly - South,Day Care / Social Activities,3 Trees Community Support Ltd,198.88, 16-Mar-2016
17,Revenue,CAHD,Home Care - Elderly - North,Day Care / Social Activities,3 Trees Community Support Ltd,3326.72, 16-Mar-2016
18,Revenue,CAHD,Home Care - Elderly - North,Other Small Contracts,3 Trees Community Support Ltd,108.48, 16-Mar-2016
19,Revenue,CAHD,Home Care - Elderly - North,Supported Living,3 Trees Community Support Ltd,9418.38, 16-Mar-2016
20,Revenue,CAHD,Home Care - Elderly - South,Day Care / Social Activities,3 Trees Community Support Ltd,85.88, 16-Mar-2016
21,Revenue,CAHD,Home Care - Elderly - North,Day Care / Social Activities,3 Trees Community Support Ltd,3421.64, 16-Mar-2016
22,Revenue,CAHD,Home Care - Elderly - North,Other Small Contracts,3 Trees Community Support Ltd,108.48, 16-Mar-2016
23,Revenue,CAHD,Home Care - Elderly - North,Supported Living,3 Trees Community Support Ltd,10026.76, 16-Mar-2016
24,Revenue,CAHD,Home Care - Elderly - South,Day Care / Social Activities,3 Trees Community Support Ltd,90.40, 29-Mar-2016
25,Revenue,CAHD,Home Care - Elderly - North,Day Care / Social Activities,3 Trees Community Support Ltd,3516.56, 29-Mar-2016
26,Revenue,CAHD,Home Care - Elderly - North,Supported Living,3 Trees Community Support Ltd,9381.09, 29-Mar-2016
27,Revenue,CAHD,Bed Purchasing - South,Permanent Residential,5Th Floor Harlech Court,16236.56, 15-Mar-2016
28,Revenue,CAHD,18-25 Year Olds,Permanent Residential,5Th Floor Harlech Court,13837.80, 15-Mar-2016
29,Revenue,CAHD,18-25 Year Olds,Permanent Residential,5Th Floor Harlech Court,14114.08, 15-Mar-2016
30,Revenue,CAHD,18-25 Year Olds,Permanent Residential,5Th Floor Harlech Court,12656.32, 15-Mar-2016
31,Revenue,CAHD,Bed Purchasing - North,Respite Planned - Residential,5Th Floor Harlech Court,10692.13, 15-Mar-2016
32,Revenue,CAHD,Bed Purchasing - North,Permanent Residential,5Th Floor Harlech Court,16769.20, 15-Mar-2016
33,Revenue,CAHD,18-25 Year Olds,Permanent Residential,5Th Floor Harlech Court,15925.08, 15-Mar-2016
34,Revenue,CAHD,Bed Purchasing - South,Permanent Residential,5Th Floor Harlech Court,9403.36, 15-Mar-2016
35,Revenue,CAHD,Bed purchasing - S28A Under 65 - South,Permanent Residential,5Th Floor Harlech Court,9854.40, 15-Mar-2016
36,Revenue,CAHD,Bed Purchasing - South,Permanent Residential,5Th Floor Harlech Court,10352.52, 15-Mar-2016
37,Revenue,CAHD,Woodleaze,Premises Maintenance by Contractor,A E Horder (Contracting) Limited,793.33, 31-Mar-2016
38,Revenue,CAHD,Alexandra Way,Premises Maintenance by Contractor,A E Horder (Contracting) Limited,425.00, 30-Mar-2016
39,Revenue,CAHD,Health Inequalities,Other Small Contracts,Abacus Pre-School (Meadowbrook),746.05, 22-Mar-2016
40,Revenue,CAHD,EY- 3 & 4 year old payments to providers,Preventative Assistance,Abbeywood Tots (Tyndale Primary),667.80, 04-Mar-2016
41,Revenue,CAHD,Bed Purchasing - North,Permanent Nursing,ABI Development Limited,7046.44, 15-Mar-2016
42,Revenue,CAHD,Day Care - South,Day Care / Social Activities,About Me Care and Support Limited,831.47, 22-Mar-2016
43,Revenue,CAHD,Day Care - South,Day Care / Social Activities,About Me Care and Support Limited,775.04, 22-Mar-2016
44,Revenue,CAHD,CSC - Agency Fostering,Foster Parent Allowances,Action for Children,3314.29, 08-Mar-2016
45,Revenue,CAHD,CSC - Agency Fostering,Foster Parent Allowances,Action for Children,3542.86, 24-Mar-2016
46,Revenue,CAHD,Home Care - Elderly - South,Other Small Contracts,Agincare Chippenham,1235.85, 16-Mar-2016
47,Revenue,CAHD,Home Care - Elderly - North,Other Small Contracts,Agincare Chippenham,103.95, 16-Mar-2016
48,Revenue,CAHD,Home Care - Elderly - South,Other Small Contracts,Agincare Chippenham,1197.35, 10-Mar-2016
49,Revenue,CAHD,Home Care - Elderly - North,Other Small Contracts,Agincare Chippenham,100.10, 10-Mar-2016
50,Revenue,CAHD,Home Care - Elderly - South,Other Small Contracts,Agincare Chippenham,866.25, 16-Mar-2016
51,Revenue,CAHD,Home Care - Elderly - North,Other Small Contracts,Agincare Chippenham,423.50, 16-Mar-2016
52,Revenue,CAHD,Home Care - Elderly - South,Other Small Contracts,Agincare Chippenham,862.40, 17-Mar-2016
53,Revenue,CAHD,Home Care - Elderly - North,Other Small Contracts,Agincare Chippenham,423.50, 17-Mar-2016
54,Revenue,CAHD,Home Care - Elderly - South,Other Small Contracts,Agincare UK Limited,1031.80, 10-Mar-2016
55,Revenue,CAHD,Home Care - Elderly - North,Other Small Contracts,Agincare UK Limited,30.80, 10-Mar-2016
56,Revenue,CAHD,Home Care - Elderly - South,Other Small Contracts,Agincare UK Limited,1054.90, 10-Mar-2016
57,Revenue,CAHD,Home Care - Elderly - North,Other Small Contracts,Agincare UK Limited,627.55, 10-Mar-2016
58,Revenue,CAHD,Home Care - Elderly - South,Other Small Contracts,Agincare UK Limited,1004.85, 10-Mar-2016
59,Revenue,CAHD,Home Care - Elderly - North,Other Small Contracts,Agincare UK Limited,596.75, 10-Mar-2016
60,Revenue,CAHD,Home Care - Elderly - South,Other Small Contracts,Agincare UK Limited,1039.50, 17-Mar-2016
61,Revenue,CAHD,Home Care - Elderly - North,Other Small Contracts,Agincare UK Limited,627.55, 17-Mar-2016
62,Revenue,CAHD,Home Care - Elderly - North,Other Small Contracts,Agincare UK Nutfield,1655.50, 16-Mar-2016
63,Revenue,CAHD,Home Care - Elderly - North,Other Small Contracts,Agincare UK Nutfield,1536.15, 16-Mar-2016
64,Revenue,CAHD,Home Care - Elderly - North,Other Small Contracts,Agincare UK Nutfield,1586.20, 16-Mar-2016
65,Revenue,CAHD,Home Care - Elderly - North,Other Small Contracts,Agincare UK Nutfield,1667.05, 18-Mar-2016
66,Revenue,CAHD,Home Care - Elderly - South,Other Small Contracts,AliMo Care Ltd,856.90, 02-Mar-2016
67,Revenue,CAHD,Home Care - Elderly - South,Other Small Contracts,AliMo Care Ltd,890.34, 16-Mar-2016
68,Revenue,CAHD,Home Care - Elderly - South,Other Small Contracts,AliMo Care Ltd,785.84, 18-Mar-2016
69,Revenue,CAHD,Home Care - Elderly - South,Other Small Contracts,AliMo Care Ltd,1249.82, 23-Mar-2016
70,Revenue,CAHD,Home Care - Elderly - North,Other Small Contracts,AliMo Care Ltd,8.36, 23-Mar-2016
71,Revenue,CAHD,Home Care - Elderly - South,Other Small Contracts,AliMo Care Ltd,1220.56, 31-Mar-2016
72,Revenue,CAHD,Home Care - Elderly - North,Other Small Contracts,AliMo Care Ltd,8.36, 31-Mar-2016
73,Revenue,CAHD,Sexual Health,Other Small Contracts,Almondsbury Surgery,567.80, 21-Mar-2016
74,Revenue,CAHD,ASSIST - Health Promotion in Schools,Other Supplies & Services,AlterEgo Creative Solutions Ltd,4720.00, 18-Mar-2016
75,Revenue,CAHD,Bed Purchasing - South,Permanent Nursing,Ambleside Nusing Ho!,1534.12, 15-Mar-2016
76,Revenue,CAHD,Bed Purchasing - Southmead Hospital,Permanent Nursing,Amerind Grove Nursing Home,1924.68, 15-Mar-2016
77,Revenue,CAHD,Bed Purchasing - Southmead Hospital,Permanent Nursing,Amerind Grove Nursing Home,1696.32, 15-Mar-2016
78,Revenue,CAHD,CSC - Agency Fostering,Foster Parent Allowances,Amicus Foster Care Ltd,4907.44, 08-Mar-2016
79,Revenue,CAHD,CSC - Agency Fostering,Foster Parent Allowances,Amicus Foster Care Ltd,4918.94, 24-Mar-2016
80,Revenue,CAHD,Supporting People Programme,Grants to Voluntary Bodies,Anchor Housing,905.17, 01-Mar-2016
81,Revenue,CAHD,CSC-Adoption Support Fund,Fees & Charges Income - General,Individual,730.00, 16-Mar-2016
82,Revenue,CAHD,CSC - Safeguarding Board,Training Expenses,Individual,1700.00, 07-Mar-2016
83,Revenue,CAHD,Direct Payments - Phys Dis - North,Grants to Voluntary Bodies,Aquarium Card Management Solutions Ltd,2078.50, 01-Mar-2016
84,Revenue,CAHD,Direct Payments - Phys Dis - North,Grants to Voluntary Bodies,Aquarium Card Management Solutions Ltd,2036.50, 30-Mar-2016
85,Revenue,CAHD,Bed Purchasing - North,Permanent Residential,Ark Care Homes Ltd,10348.28, 15-Mar-2016
86,Revenue,CAHD,S117 Placements PCT,Permanent Residential,Ash View House,7052.76, 15-Mar-2016
87,Revenue,CAHD,18-25 Year Olds,Permanent Residential,Ash View House,6225.80, 15-Mar-2016
88,Revenue,CAHD,Section 117 Placements MH Younger,Permanent Residential,Ash View House,6565.76, 15-Mar-2016
89,Revenue,CAHD,Bed purchasing - Elderly S117 - South,Permanent Residential,Ash View House,6246.76, 15-Mar-2016
90,Revenue,CAHD,DAT Treatment,Rent,Ashville Asset Management Limited,2314.75, 24-Mar-2016
91,Revenue,CAHD,DAT Treatment,Rent,Ashville Asset Management Limited,582.26, 24-Mar-2016
92,Revenue,CAHD,DAT Treatment,Rent,Ashville Asset Management Limited,6159.00, 24-Mar-2016
93,Revenue,CAHD,Bed Purchasing - North,Permanent Residential,Aspects 2 Limited,6428.16, 15-Mar-2016
94,Revenue,CAHD,Supporting People Programme,Grants to Voluntary Bodies,Aspects and Milestones Trust,3254.35, 01-Mar-2016
95,Revenue,CAHD,Supporting People Programme,Grants to Voluntary Bodies,Aspects and Milestones Trust,1631.60, 01-Mar-2016
96,Revenue,CAHD,Supporting People Programme,Grants to Voluntary Bodies,Aspects and Milestones Trust,2476.54, 01-Mar-2016
97,Revenue,CAHD,HQ Office & Communications (ICT),Membership Fees,Association of Directors of Childrens Services Ltd,2351.25, 31-Mar-2016
98,Revenue,CAHD,Education Psychology,Advertising for Recruitment,Association of Educational Psychologists,700.00, 03-Mar-2016
99,Revenue,CAHD,"Strategy, Advice and Public Protection",Telephones,AST Connections Limited,795.00, 15-Mar-2016
100,Revenue,CAHD,Bed Purchasing - South,Permanent Residential,Autism Specialised Care Homes,5672.64, 15-Mar-2016
101,Revenue,CAHD,Younger Adult Mental Health,Health Services (Third Party Payments),Avon & Wiltshire Mental Health,1667.00, 15-Mar-2016
102,Revenue,CAHD,Younger Adult Mental Health,Health Services (Third Party Payments),Avon & Wiltshire Mental Health,4360.66, 15-Mar-2016
103,Revenue,CAHD,Younger Adult Mental Health,Health Services (Third Party Payments),Avon & Wiltshire Mental Health,4360.66, 15-Mar-2016
104,Revenue,CAHD,Pathway 2 - (Interim Beds),Permanent Nursing,Avon Lodge Care Centre,10200.00, 02-Mar-2016
105,Revenue,CAHD,Pathway 2 - (Interim Beds),Permanent Nursing,Avon Lodge Care Centre,10200.00, 30-Mar-2016
106,Revenue,CAHD,CSC - Family Placement Team,Agency Staff (Admin/Support Staff) Pay,Baltimore Consulting Group,7315.00, 17-Mar-2016
107,Revenue,CAHD,CSC - Family Placement Team,Agency Staff (Admin/Support Staff) Pay,Baltimore Consulting Group,4620.00, 10-Mar-2016
108,Revenue,CAHD,Pensions - Non DSG,Annual Pension,Bath & North East Somerset Council,116436.75, 21-Mar-2016
109,Revenue,CAHD,CSC - Safeguarding Board,Publicity & Promotions,Bath & North East Somerset Dist Council,3075.76, 07-Mar-2016
110,Revenue,CAHD,Early Years Development,Conference Expenses,Bath & North East Somerset Dist Council,510.00, 30-Mar-2016
111,Revenue,CAHD,Pensions - Non DSG,Annual Pension,Bath & North East Somerset Dist Council,5766.62, 29-Mar-2016
112,Revenue,CAHD,Childminding Pre-Registration,Other Supplies & Services,Bath & North East Somerset Dist Council,2750.00, 29-Mar-2016
113,Revenue,CAHD,Quality and Standards,Catering,Bawa Healthcare & Leisure,1150.00, 18-Mar-2016
114,Revenue,CAHD,Quality and Standards,Premises Hire,Bawa Healthcare & Leisure,550.00, 18-Mar-2016
115,Revenue,CAHD,Bed Purchasing - Southmead Hospital,Permanent Nursing,Bayview Nursing & Residential Home,1494.36, 15-Mar-2016
116,Revenue,CAHD,Pathway 3 - (Complex Beds),Permanent Nursing,Beaufort Care Ltd,5200.00, 22-Mar-2016
117,Revenue,CAHD,Bed Purchasing - Elderly S117- North,Permanent Nursing,Beaufort Grange Care Home,5372.00, 15-Mar-2016
118,Revenue,CAHD,Bed Purchasing - Elderly S117- North,Permanent Nursing,Beaufort Grange Care Home,4552.00, 15-Mar-2016
119,Revenue,CAHD,Bed Purchasing - North,Permanent Residential,Beaufort House,1686.44, 15-Mar-2016
120,Revenue,CAHD,Bed Purchasing - North,Permanent Residential,Beaufort House,1894.80, 15-Mar-2016
121,Revenue,CAHD,Bed Purchasing - North,Permanent Residential,Beaufort House,2425.92, 15-Mar-2016
122,Revenue,CAHD,Bed Purchasing - North,Permanent Residential,Beaufort House,1894.80, 15-Mar-2016
123,Revenue,CAHD,Bed Purchasing - North,Permanent Residential,Beaufort House,1395.68, 15-Mar-2016
124,Revenue,CAHD,Bed Purchasing - South,Permanent Residential,Beaufort House,1447.40, 15-Mar-2016
125,Revenue,CAHD,Bed Purchasing - North,Permanent Residential,Beaufort House,1822.84, 15-Mar-2016
126,Revenue,CAHD,Bed Purchasing - Southmead Hospital,Permanent Residential,Beaufort House,1270.48, 15-Mar-2016
127,Revenue,CAHD,Bed purchasing - Elderly S117 - South,Permanent Residential,Beaufort House,2400.00, 15-Mar-2016
128,Revenue,CAHD,Bed Purchasing - North,Permanent Residential,Beaufort House,1365.16, 15-Mar-2016
129,Revenue,CAHD,Bed Purchasing - North,Permanent Residential,Beaufort House,1960.72, 15-Mar-2016
130,Revenue,CAHD,Bed Purchasing - North,Respite Emergency - Residential,Beaufort House,4542.86, 15-Mar-2016
131,Revenue,CAHD,Bed Purchasing - Southmead Hospital,Permanent Residential,Beaufort House,1832.64, 15-Mar-2016
132,Revenue,CAHD,Bed Purchasing - North,Respite Emergency - Residential,Beaufort House,2828.57, 15-Mar-2016
133,Revenue,CAHD,Bed Purchasing - North,Respite Emergency - Residential,Beaufort House,2400.00, 15-Mar-2016
134,Revenue,CAHD,Bed Purchasing - South,Permanent Residential,Bedrock Lodge,3186.88, 15-Mar-2016
135,Revenue,CAHD,Bed Purchasing - South,Permanent Residential,Bedrock Lodge,2976.96, 15-Mar-2016
136,Revenue,CAHD,Section 117 Placements MH Younger,Permanent Residential,Bedrock Lodge,1885.04, 15-Mar-2016
137,Revenue,CAHD,Bed Purchasing - North,Permanent Nursing,Beech House,1764.42, 15-Mar-2016
138,Revenue,CAHD,Bed Purchasing - North,Permanent Nursing,Beech House,1646.80, 15-Mar-2016
139,Revenue,CAHD,Bed Purchasing - South,Permanent Residential,Beech House,1270.80, 15-Mar-2016
140,Revenue,CAHD,Bed Purchasing - North,Permanent Nursing,Beech House,1663.92, 15-Mar-2016
141,Revenue,CAHD,Bed Purchasing - North,Permanent Nursing,Beech House,2115.56, 15-Mar-2016
142,Revenue,CAHD,Bed Purchasing - North,Permanent Residential,Beech House,1442.80, 15-Mar-2016
143,Revenue,CAHD,Bed Purchasing - North,Permanent Nursing,Beech House,20488.83, 15-Mar-2016
144,Revenue,CAHD,Bed Purchasing - North,Permanent Nursing,Beech House,1430.00, 15-Mar-2016
145,Revenue,CAHD,Bed Purchasing - North,Permanent Residential,Beech House,1413.56, 15-Mar-2016
146,Revenue,CAHD,Statemented Support Payments to OLAs,Other L.A.'s - General,Beechen Cliff School,716.64, 31-Mar-2016
147,Revenue,CAHD,Independent Special Placements - Pre 16,Other Private Contractors,Belgrave School,6066.00, 31-Mar-2016
148,Revenue,CAHD,Independent Special Placements - Post 16,Other Private Contractors,Belgrave School,6633.00, 31-Mar-2016
149,Revenue,CAHD,Training Budget - Children`s Social Serv,Training Expenses,Individual,2167.35, 04-Mar-2016
150,Revenue,CAHD,Training Budget - Children`s Social Serv,Training Expenses,Individual,2177.99, 24-Mar-2016
151,Revenue,CAHD,Home Care - Elderly - North,Day Care / Social Activities,Bibby Factors Bristol Limited,67.20, 24-Mar-2016
152,Revenue,CAHD,Home Care - Elderly - North,Other Small Contracts,Bibby Factors Bristol Limited,7698.60, 24-Mar-2016
153,Revenue,CAHD,Home Care - Elderly - North,Day Care / Social Activities,Bibby Factors Bristol Limited,138.60, 24-Mar-2016
154,Revenue,CAHD,Home Care - Elderly - North,Other Small Contracts,Bibby Factors Bristol Limited,7131.60, 24-Mar-2016
155,Revenue,CAHD,Home Care - Elderly - North,Day Care / Social Activities,Bibby Factors Bristol Limited,134.40, 24-Mar-2016
156,Revenue,CAHD,Home Care - Elderly - North,Other Small Contracts,Bibby Factors Bristol Limited,7551.60, 24-Mar-2016
157,Revenue,CAHD,Home Care - Elderly - North,Day Care / Social Activities,Bibby Factors Bristol Limited,67.20, 24-Mar-2016
158,Revenue,CAHD,Home Care - Elderly - North,Other Small Contracts,Bibby Factors Bristol Limited,7639.80, 24-Mar-2016
159,Revenue,CAHD,Home Care - Elderly - North,Day Care / Social Activities,Bibby Factors Bristol Limited,138.60, 24-Mar-2016
160,Revenue,CAHD,Home Care - Elderly - North,Other Small Contracts,Bibby Factors Bristol Limited,7803.60, 24-Mar-2016
161,Revenue,CAHD,Bed Purchasing - North,Permanent Nursing,Blossom Field,2110.18, 15-Mar-2016
162,Revenue,CAHD,Bed Purchasing - Elderly S117- North,Permanent Nursing,Blossom Field,2012.00, 15-Mar-2016
163,Revenue,CAHD,Bed purchasing - Elderly S117 - South,Permanent Nursing,Blossom Field,4400.00, 15-Mar-2016
164,Revenue,CAHD,Bed purchasing - Elderly S117 - South,Permanent Nursing,Blossom Field,4352.00, 15-Mar-2016
165,Revenue,CAHD,Bed Purchasing - North,Permanent Nursing,Blossom Field,2850.96, 15-Mar-2016
166,Revenue,CAHD,Bed Purchasing - North,Permanent Nursing,Blossom Field,2729.24, 15-Mar-2016
167,Revenue,CAHD,Bed Purchasing - Southmead Hospital,Permanent Nursing,Blossom Field,4037.70, 15-Mar-2016
168,Revenue,CAHD,Bed Purchasing - Southmead Hospital,Permanent Nursing,Blossom Field,2405.44, 15-Mar-2016
169,Revenue,CAHD,Bed Purchasing - North,Permanent Nursing,Blossom Fields,1874.48, 11-Mar-2016
170,Revenue,CAHD,Bed Purchasing - Southmead Hospital,Permanent Nursing,Blossom Fields,2111.72, 11-Mar-2016
171,Revenue,CAHD,Bed Purchasing - North,Permanent Nursing,Blossom Fields,2616.92, 11-Mar-2016
172,Revenue,CAHD,Home Care - Elderly - South,Other Small Contracts,Bluebird Care (South Gloucestershire),747.45, 01-Mar-2016
173,Revenue,CAHD,Home Care - Elderly - North,Other Small Contracts,Bluebird Care (South Gloucestershire),2515.58, 01-Mar-2016
174,Revenue,CAHD,Home Care - Elderly - South,Other Small Contracts,Bluebird Care (South Gloucestershire),747.45, 01-Mar-2016
175,Revenue,CAHD,Home Care - Elderly - North,Other Small Contracts,Bluebird Care (South Gloucestershire),2421.53, 01-Mar-2016
176,Revenue,CAHD,Home Care - Elderly - South,Other Small Contracts,Bluebird Care (South Gloucestershire),757.35, 02-Mar-2016
177,Revenue,CAHD,Home Care - Elderly - North,Other Small Contracts,Bluebird Care (South Gloucestershire),2485.88, 02-Mar-2016
178,Revenue,CAHD,Home Care - Elderly - South,Other Small Contracts,Bluebird Care (South Gloucestershire),757.35, 18-Mar-2016
179,Revenue,CAHD,Home Care - Elderly - North,Other Small Contracts,Bluebird Care (South Gloucestershire),2589.83, 18-Mar-2016
180,Revenue,CAHD,Home Care - Elderly - South,Other Small Contracts,Bluebird Care (South Gloucestershire),742.50, 17-Mar-2016
181,Revenue,CAHD,Home Care - Elderly - North,Other Small Contracts,Bluebird Care (South Gloucestershire),2738.33, 17-Mar-2016
182,Revenue,CAHD,Training - Adult Services,Training Expenses,Bob Dawson,2550.00, 11-Mar-2016
183,Revenue,CAHD,NHS Health Checks & Tobacco Control,Drugs & Medical Supplies,Boots UK Ltd,1173.80, 15-Mar-2016
184,Revenue,CAHD,Bed purchasing - S28A Under 65 - South,Permanent Residential,Bradbury House,4291.80, 15-Mar-2016
185,Revenue,CAHD,Bed Purchasing - South,Permanent Residential,Bradbury House,7835.00, 15-Mar-2016
186,Revenue,CAHD,Bed purchasing - S28A Under 65 - South,Permanent Residential,Bradbury House,6461.08, 15-Mar-2016
187,Revenue,CAHD,18-25 Year Olds,Permanent Residential,Bradbury House,8855.64, 15-Mar-2016
188,Revenue,CAHD,Bed Purchasing - South,Respite Planned - Residential,Bradbury House,750.00, 15-Mar-2016
189,Revenue,CAHD,Bed purchasing - Elderly S117 - South,Permanent Residential,Bradbury House,11450.92, 15-Mar-2016
190,Revenue,CAHD,Bed Purchasing - North,Permanent Residential,Bradley House,1546.32, 15-Mar-2016
191,Revenue,CAHD,Home Care - Elderly - North,Other Small Contracts,Bradley House Home Care Services,535.68, 10-Mar-2016
192,Revenue,CAHD,Home Care - Elderly - North,Other Small Contracts,Bradley House Home Care Services,527.04, 10-Mar-2016
193,Revenue,CAHD,Sexual Health,Other Small Contracts,Bradley Stoke Surgery,1765.34, 21-Mar-2016
194,Revenue,CAHD,Bed Purchasing - S28A - Over 65- North,Permanent Residential,Brandon Trust,3126.48, 15-Mar-2016
195,Revenue,CAHD,Bed Purchasing - South,Permanent Residential,Brandon Trust,10380.40, 15-Mar-2016
196,Revenue,CAHD,Bed Purchasing - South,Permanent Residential,Brandon Trust,4080.76, 15-Mar-2016
197,Revenue,CAHD,South Glos Users in South Glos Homes,Permanent Nursing,Brandon Trust,5344.00, 15-Mar-2016
198,Revenue,CAHD,Bed Purchasing - Southmead Hospital,Permanent Nursing,Brandon Trust,4603.08, 15-Mar-2016
199,Revenue,CAHD,South Glos Users in South Glos Homes,Permanent Nursing,Brandon Trust,1203.95, 15-Mar-2016
200,Revenue,CAHD,Bed Purchasing - South,Permanent Nursing,Brandon Trust,5092.48, 15-Mar-2016
201,Revenue,CAHD,Bed purchasing - S28A Under 65 - South,Permanent Nursing,Brandon Trust,5474.04, 15-Mar-2016
202,Revenue,CAHD,Bed purchasing - S28A Under 65 - South,Permanent Residential,Brandon Trust,4354.48, 15-Mar-2016
203,Revenue,CAHD,Bed Purchasing - LD S28A- Over 65- South,Permanent Nursing,Brandon Trust,5190.64, 15-Mar-2016
204,Revenue,CAHD,Bed Purchasing - LD S28A- Over 65- South,Permanent Nursing,Brandon Trust,4904.80, 15-Mar-2016
205,Revenue,CAHD,Bed Purchasing - South,Permanent Residential,Brandon Trust,3309.88, 15-Mar-2016
206,Revenue,CAHD,Bed purchasing - S28A Under 65 - South,Permanent Residential,Brandon Trust,5260.00, 15-Mar-2016
207,Revenue,CAHD,Bed purchasing - S28A Under 65 - South,Permanent Residential,Brandon Trust,5316.28, 15-Mar-2016
208,Revenue,CAHD,Bed purchasing - S28A Under 65 - South,Permanent Nursing,Brandon Trust,5418.04, 15-Mar-2016
209,Revenue,CAHD,Bed purchasing -S28A  Under 65 - North,Permanent Nursing,Brandon Trust,4835.88, 15-Mar-2016
210,Revenue,CAHD,Bed purchasing - S28A Under 65 - South,Permanent Residential,Brandon Trust,5316.28, 15-Mar-2016
211,Revenue,CAHD,Bed Purchasing - LD S28A- Over 65- South,Permanent Residential,Brandon Trust,4795.44, 15-Mar-2016
212,Revenue,CAHD,Home Care - Elderly - North,Day Care / Social Activities,Bridge House Care Home,1371.72, 15-Mar-2016
213,Revenue,CAHD,Bed Purchasing - North,Permanent Residential,Bridge House Care Home,1533.60, 15-Mar-2016
214,Revenue,CAHD,Home Care - Elderly - North,Day Care / Social Activities,Bridge House Care Home,1312.08, 15-Mar-2016
215,Revenue,CAHD,Bed Purchasing - North,Permanent Residential,Bridge House Care Home,1333.76, 15-Mar-2016
216,Revenue,CAHD,Bed Purchasing - North,Permanent Residential,Bridge House Care Home,1079.20, 15-Mar-2016
217,Revenue,CAHD,Bed Purchasing - North,Permanent Residential,Bridge House Care Home,1531.48, 15-Mar-2016
218,Revenue,CAHD,Bed Purchasing - North,Permanent Residential,Bridge House Care Home,1544.60, 15-Mar-2016
219,Revenue,CAHD,Bed Purchasing - North,Permanent Residential,Bridgwater Court,10055.68, 15-Mar-2016
220,Revenue,CAHD,EY- 3 & 4 year old payments to providers,Preventative Assistance,Bright Sparks Pre School Limited,572.40, 04-Mar-2016
221,Revenue,CAHD,Bed Purchasing - South,Permanent Residential,Brightbow,2113.88, 15-Mar-2016
222,Revenue,CAHD,MH Purchasing - Younger,Permanent Residential,Brightbow,1503.92, 15-Mar-2016
223,Revenue,CAHD,Statemented Support Academies,Schools Funding,Bristol & South Gloucestershire UTC,583.30, 31-Mar-2016
224,Revenue,CAHD,Statemented Support Academies,Schools Funding,Bristol & South Gloucestershire UTC,649.97, 31-Mar-2016
225,Revenue,CAHD,Purchase of RAC places,Other L.A.'s - General,Bristol City Council,17286.48, 01-Mar-2016
226,Revenue,CAHD,Purchase of RAC places,Other L.A.'s - General,Bristol City Council,18319.32, 31-Mar-2016
227,Revenue,CAHD,Travel to School (HTST) - Special,Client Transport,Bristol City Council,3430.00, 22-Mar-2016
228,Revenue,CAHD,Transport OLA Special Schools and RB,Client Transport,Bristol City Council,38200.00, 31-Mar-2016
229,Revenue,CAHD,CAHC - Complaints & Advocacy Service,Interpreting & Translation,Bristol City Council,448.65, 16-Mar-2016
230,Revenue,CAHD,CSC - YOT Pooled Budget,Other Supplies & Services,Bristol City Council,4824.00, 30-Mar-2016
231,Revenue,CAHD,Children & Young People�s Health,Educational Materials,Bristol City Council,557.30, 21-Mar-2016
232,Revenue,CAHD,Schools Specific Grant Income,Other Public Bodies,Bristol City Council,633.33, 16-Mar-2016
233,Revenue,CAHD,Schools Specific Grant Income,Other Public Bodies,Bristol City Council,633.33, 16-Mar-2016
234,Revenue,CAHD,Schools Specific Grant Income,Other Public Bodies,Bristol City Council - Schools,633.33, 14-Mar-2016
235,Revenue,CAHD,Schools Specific Grant Income,Other Public Bodies,Bristol City Council - Schools,633.33, 14-Mar-2016
236,Revenue,CAHD,Placements OLA Special Schools and RB,Other L.A.'s - General,Bristol City Council - Schools,2148.00, 31-Mar-2016
237,Revenue,CAHD,Placements OLA Special Schools and RB,Other L.A.'s - General,Bristol City Council - Schools,2750.50, 31-Mar-2016
238,Revenue,CAHD,Placements OLA Special Schools and RB,Other L.A.'s - General,Bristol City Council - Schools,1333.37, 31-Mar-2016
239,Revenue,CAHD,Statemented Support Payments to OLAs,Other L.A.'s - General,Bristol City Council - Schools,1374.97, 31-Mar-2016
240,Revenue,CAHD,Placements OLA Special Schools and RB,Other L.A.'s - General,Bristol City Council - Schools,2750.50, 31-Mar-2016
241,Revenue,CAHD,Placements OLA Special Schools and RB,Other L.A.'s - General,Bristol City Council - Schools,1398.00, 31-Mar-2016
242,Revenue,CAHD,Placements OLA Special Schools and RB,Other L.A.'s - General,Bristol City Council - Schools,1333.37, 31-Mar-2016
243,Revenue,CAHD,Placements OLA Special Schools and RB,Other L.A.'s - General,Bristol City Council - Schools,3583.83, 31-Mar-2016
244,Revenue,CAHD,Placements OLA Special Schools and RB,Other L.A.'s - General,Bristol City Council - Schools,2750.50, 31-Mar-2016
245,Revenue,CAHD,Placements OLA Special Schools and RB,Other L.A.'s - General,Bristol City Council - Schools,833.37, 31-Mar-2016
246,Revenue,CAHD,Placements OLA Special Schools and RB,Other L.A.'s - General,Bristol City Council - Schools,1333.33, 31-Mar-2016
247,Revenue,CAHD,Placements OLA Special Schools and RB,Other L.A.'s - General,Bristol City Council - Schools,2750.50, 31-Mar-2016
248,Revenue,CAHD,Placements OLA Special Schools and RB,Other L.A.'s - General,Bristol City Council - Schools,3102.93, 31-Mar-2016
249,Revenue,CAHD,Placements OLA Special Schools and RB,Other L.A.'s - General,Bristol City Council - Schools,866.50, 31-Mar-2016
250,Revenue,CAHD,Placements OLA Special Schools and RB,Other L.A.'s - General,Bristol City Council - Schools,5977.37, 31-Mar-2016
251,Revenue,CAHD,Placements OLA Special Schools and RB,Other L.A.'s - General,Bristol City Council - Schools,2750.50, 31-Mar-2016
252,Revenue,CAHD,Statemented Support Payments to OLAs,Other L.A.'s - General,Bristol City Council - Schools,641.64, 31-Mar-2016
253,Revenue,CAHD,Placements OLA Special Schools and RB,Other L.A.'s - General,Bristol City Council - Schools,833.37, 31-Mar-2016
254,Revenue,CAHD,Placements OLA Special Schools and RB,Other L.A.'s - General,Bristol City Council - Schools,833.37, 31-Mar-2016
255,Revenue,CAHD,Placements OLA Special Schools and RB,Other L.A.'s - General,Bristol City Council - Schools,5086.25, 31-Mar-2016
256,Revenue,CAHD,Placements OLA Special Schools and RB,Other L.A.'s - General,Bristol City Council - Schools,2750.50, 31-Mar-2016
257,Revenue,CAHD,Placements OLA Special Schools and RB,Other L.A.'s - General,Bristol City Council - Schools,1398.00, 31-Mar-2016
258,Revenue,CAHD,Placements OLA Special Schools and RB,Other L.A.'s - General,Bristol City Council - Schools,2750.50, 31-Mar-2016
259,Revenue,CAHD,Placements OLA Special Schools and RB,Other L.A.'s - General,Bristol City Council - Schools,2200.40, 31-Mar-2016
260,Revenue,CAHD,Placements OLA Special Schools and RB,Other L.A.'s - General,Bristol City Council - Schools,13477.37, 31-Mar-2016
261,Revenue,CAHD,Placements OLA Special Schools and RB,Other L.A.'s - General,Bristol City Council - Schools,3750.00, 31-Mar-2016
262,Revenue,CAHD,Placements OLA Special Schools and RB,Other L.A.'s - General,Bristol City Council - Schools,2750.50, 31-Mar-2016
263,Revenue,CAHD,Placements OLA Special Schools and RB,Other L.A.'s - General,Bristol City Council - Schools,3750.00, 31-Mar-2016
264,Revenue,CAHD,Placements OLA Special Schools and RB,Other L.A.'s - General,Bristol City Council - Schools,944.88, 31-Mar-2016
265,Revenue,CAHD,Placements OLA Special Schools and RB,Other L.A.'s - General,Bristol City Council - Schools,1333.37, 31-Mar-2016
266,Revenue,CAHD,Placements OLA Special Schools and RB,Other L.A.'s - General,Bristol City Council - Schools,39477.28, 31-Mar-2016
267,Revenue,CAHD,Placements OLA Special Schools and RB,Other L.A.'s - General,Bristol City Council - Schools,944.88, 31-Mar-2016
268,Revenue,CAHD,CSC - Vinney Green Secure Unit,R & M by Departments,Bristol Electrical Wholesale Limited,772.31, 21-Mar-2016
269,Revenue,CAHD,Statemented Support Payments to OLAs,Other L.A.'s - General,Bristol Free School,933.30, 31-Mar-2016
270,Revenue,CAHD,Supported Living - North,Private & Voluntary Home Care,Bristol Houses UK Limited,605.28, 07-Mar-2016
271,Revenue,CAHD,Supported Living - North,Private & Voluntary Home Care,Bristol Houses UK Limited,582.00, 31-Mar-2016
272,Revenue,CAHD,Supported Living - North,Private & Voluntary Home Care,Bristol Houses UK Limited,1148.48, 07-Mar-2016
273,Revenue,CAHD,Supported Living - North,Private & Voluntary Home Care,Bristol Houses UK Limited,1132.96, 31-Mar-2016
274,Revenue,CAHD,Training - Adult Services,Training Expenses,Bristol MIND,1365.00, 31-Mar-2016
275,Revenue,CAHD,Supporting People Programme,Grants to Voluntary Bodies,Bristol Missing Link,2012.42, 01-Mar-2016
276,Revenue,CAHD,Supporting People Programme,Grants to Voluntary Bodies,Bristol Missing Link,1464.82, 01-Mar-2016
277,Revenue,CAHD,Tenancy Start Up Scheme,Other Supplies & Services,Bristol Property Partnership,525.00, 09-Mar-2016
278,Revenue,CAHD,Alexandra Way,Water Charges,Bristol Wessex Billing Services Limited,4021.09, 30-Mar-2016
279,Revenue,CAHD,Home Care - Elderly - North,SU Employment Support,Britannia House,693.60, 15-Mar-2016
280,Revenue,CAHD,Home Care - Elderly - North,Day Care / Social Activities,Britannia House,924.80, 15-Mar-2016
281,Revenue,CAHD,Home Care - Elderly - North,Day Care / Social Activities,Britannia House,693.60, 15-Mar-2016
282,Revenue,CAHD,Home Care - Elderly - North,Day Care / Social Activities,Britannia House,693.60, 15-Mar-2016
283,Revenue,CAHD,Home Care - Elderly - North,Day Care / Social Activities,Britannia House,924.80, 15-Mar-2016
284,Revenue,CAHD,Home Care - Elderly - South,Day Care / Social Activities,Britannia House,1156.00, 15-Mar-2016
285,Revenue,CAHD,Home Care - Elderly - South,Day Care / Social Activities,Britannia House,693.60, 15-Mar-2016
286,Revenue,CAHD,Home Care - Elderly - South,Day Care / Social Activities,Britannia House,693.60, 15-Mar-2016
287,Revenue,CAHD,Home Care - Elderly - South,Day Care / Social Activities,Britannia House,693.60, 15-Mar-2016
288,Revenue,CAHD,CSC - Residential Placements,Permanent Residential,Broadwood Educational Services Limited,3722.04, 08-Mar-2016
289,Revenue,CAHD,Supporting People Programme,Grants to Voluntary Bodies,Bromford Housing Group,14201.99, 01-Mar-2016
290,Revenue,CAHD,Home Care - Elderly - North,Private & Voluntary Home Care,Brunelcare,23822.65, 07-Mar-2016
291,Revenue,CAHD,Home Care - Elderly - North,Private & Voluntary Home Care,Brunelcare,23822.65, 14-Mar-2016
292,Revenue,CAHD,Home Care - Elderly - North,Private & Voluntary Home Care,Brunelcare,23822.65, 21-Mar-2016
293,Revenue,CAHD,Home Care - Elderly - North,Private & Voluntary Home Care,Brunelcare,23822.65, 24-Mar-2016
294,Revenue,CAHD,Pathway 2 - (Interim Beds),Permanent Nursing,Brunelcare,54600.00, 29-Mar-2016
295,Revenue,CAHD,Pathway 2 - (Interim Beds),Permanent Nursing,Brunelcare,54600.00, 29-Mar-2016
296,Revenue,CAHD,Pathway 2 - (Interim Beds),Permanent Nursing,Brunelcare,54600.00, 29-Mar-2016
297,Revenue,CAHD,Bed Purchasing - Southmead Hospital,Permanent Nursing,Brunelcare,2108.34, 18-Mar-2016
298,Revenue,CAHD,Bed Purchasing - South,Permanent Nursing,Brunelcare,2009.04, 18-Mar-2016
299,Revenue,CAHD,Bed Purchasing - South,Permanent Nursing,Brunelcare,2367.31, 18-Mar-2016
300,Revenue,CAHD,Bed Purchasing - Elderly S117- North,Permanent Nursing,Brunelcare,2933.14, 18-Mar-2016
301,Revenue,CAHD,Bed Purchasing - South,Permanent Nursing,Brunelcare,2170.69, 18-Mar-2016
302,Revenue,CAHD,Bed Purchasing - Southmead Hospital,Permanent Nursing,Brunelcare,2337.03, 18-Mar-2016
303,Revenue,CAHD,Bed Purchasing - Southmead Hospital,Permanent Nursing,Brunelcare,1342.78, 18-Mar-2016
304,Revenue,CAHD,Bed Purchasing - Southmead Hospital,Permanent Nursing,Brunelcare,2302.35, 18-Mar-2016
305,Revenue,CAHD,Bed Purchasing - South,Permanent Nursing,Brunelcare,2409.90, 18-Mar-2016
306,Revenue,CAHD,Bed Purchasing - South,Permanent Nursing,Brunelcare,2138.05, 18-Mar-2016
307,Revenue,CAHD,Bed purchasing - Elderly S117 - South,Permanent Nursing,Brunelcare,2933.13, 18-Mar-2016
308,Revenue,CAHD,Bed Purchasing - North,Permanent Nursing,Brunelcare,2340.22, 18-Mar-2016
309,Revenue,CAHD,Bed Purchasing - Southmead Hospital,Permanent Nursing,Brunelcare,2245.55, 18-Mar-2016
310,Revenue,CAHD,Bed Purchasing - North,Permanent Nursing,Brunelcare,2353.97, 18-Mar-2016
311,Revenue,CAHD,Bed Purchasing - North,Permanent Nursing,Brunelcare,2409.90, 18-Mar-2016
312,Revenue,CAHD,Bed Purchasing - Southmead Hospital,Permanent Nursing,Brunelcare,2409.90, 18-Mar-2016
313,Revenue,CAHD,Bed Purchasing - Southmead Hospital,Permanent Nursing,Brunelcare,2318.34, 18-Mar-2016
314,Revenue,CAHD,Bed Purchasing - Elderly S117- North,Permanent Nursing,Brunelcare,2933.14, 18-Mar-2016
315,Revenue,CAHD,Bed Purchasing - North,Respite Planned - Nursing,Brunelcare,1011.43, 18-Mar-2016
316,Revenue,CAHD,Bed Purchasing - South,Respite Planned - Nursing,Brunelcare,809.14, 18-Mar-2016
317,Revenue,CAHD,Bed Purchasing - South,Respite Planned - Nursing,Brunelcare,809.14, 18-Mar-2016
318,Revenue,CAHD,Pathway 2 - (Interim Beds),Permanent Nursing,Brunelcare,15200.00, 24-Mar-2016
319,Revenue,CAHD,Home Care - Elderly - South,Other Small Contracts,Brunelcare,2552.34, 16-Mar-2016
320,Revenue,CAHD,Home Care - Elderly - North,Other Small Contracts,Brunelcare,2164.12, 16-Mar-2016
321,Revenue,CAHD,Day Care - South,Day Care / Social Activities,Brunelcare,24.78, 16-Mar-2016
322,Revenue,CAHD,Home Care - Elderly - South,Other Small Contracts,Brunelcare,2465.61, 16-Mar-2016
323,Revenue,CAHD,Home Care - Elderly - North,Other Small Contracts,Brunelcare,2164.12, 16-Mar-2016
324,Revenue,CAHD,Day Care - South,Day Care / Social Activities,Brunelcare,24.78, 16-Mar-2016
325,Revenue,CAHD,Woodleaze,Agency Staff (Admin/Support Staff) Pay,BS Project Services Limited,569.59, 02-Mar-2016
326,Revenue,CAHD,Bed Purchasing - North,Permanent Nursing,Bupa Care Services  Bridge House,6002.40, 15-Mar-2016
327,Revenue,CAHD,South Glos Users in all other LA Homes,Permanent Nursing,Bupa Care Services  Bridge House,616.56, 15-Mar-2016
328,Revenue,CAHD,Bed Purchasing - Southmead Hospital,Permanent Nursing,Bupa Care Services  Bridge House,869.36, 15-Mar-2016
329,Revenue,CAHD,Quality and Standards,Catering,Burhill Golf Centres,988.42, 31-Mar-2016
330,Revenue,CAHD,Quality and Standards,Premises Hire,Burhill Golf Centres,332.00, 31-Mar-2016
331,Revenue,CAHD,CSC - Vinney Green Secure Unit,Other Premises Costs,BWS Security Systems Limited,800.00, 29-Mar-2016
332,Revenue,CAHD,CSC - Vinney Green Secure Unit,Other Premises Costs,BWS Security Systems Limited,46798.30, 02-Mar-2016
333,Revenue,CAHD,Verification of EYFSP Assessment,Intra Directorate Recharges,Cabot Learning Federation,2310.00, 29-Mar-2016
334,Revenue,CAHD,Statemented Support Payments to OLAs,Other L.A.'s - General,Cabot Learning Federation,2199.94, 31-Mar-2016
335,Revenue,CAHD,Statemented Support Payments to OLAs,Other L.A.'s - General,Cabot Learning Federation,524.97, 31-Mar-2016
336,Revenue,CAHD,Schools Specific Grant Income,Other Public Bodies,Cabot Learning Federation,633.33, 14-Mar-2016
337,Revenue,CAHD,Schools Specific Grant Income,Other Public Bodies,Cabot Learning Federation,633.33, 14-Mar-2016
338,Revenue,CAHD,Statemented Support Academies,Schools Funding,Cabot Learning Federation,641.64, 31-Mar-2016
339,Revenue,CAHD,Statemented Support Academies,Schools Funding,Cabot Learning Federation,691.64, 31-Mar-2016
340,Revenue,CAHD,Statemented Support Academies,Schools Funding,Cabot Learning Federation,624.97, 31-Mar-2016
341,Revenue,CAHD,Statemented Support Academies,Schools Funding,Cabot Learning Federation,583.30, 31-Mar-2016
342,Revenue,CAHD,Statemented Support Academies,Schools Funding,Cabot Learning Federation,9166.34, 31-Mar-2016
343,Revenue,CAHD,Statemented Support Academies,Schools Funding,Cabot Learning Federation,583.30, 31-Mar-2016
344,Revenue,CAHD,Statemented Support Academies,Schools Funding,Cabot Learning Federation,541.64, 31-Mar-2016
345,Revenue,CAHD,Statemented Support Academies,Schools Funding,Cabot Learning Federation,599.97, 31-Mar-2016
346,Revenue,CAHD,Schools Specific Grant Income,Other Public Bodies,Cabot Learning Federation,633.33, 14-Mar-2016
347,Revenue,CAHD,Schools Specific Grant Income,Other Public Bodies,Cabot Learning Federation,633.33, 14-Mar-2016
348,Revenue,CAHD,Schools Specific Grant Income,Other Public Bodies,Cabot Learning Federation,633.33, 14-Mar-2016
349,Revenue,CAHD,Schools Specific Grant Income,Other Public Bodies,Cabot Learning Federation,633.33, 14-Mar-2016
350,Revenue,CAHD,Academy Resource Base Funding,Other Public Bodies,Cabot Learning Federation,509.59, 22-Mar-2016
351,Revenue,CAHD,Academy Resource Base Funding,Other Public Bodies,Cabot Learning Federation,1613.70, 22-Mar-2016
352,Revenue,CAHD,Academy Resource Base Funding,Other Public Bodies,Cabot Learning Federation,1231.51, 22-Mar-2016
353,Revenue,CAHD,Academy Resource Base Funding,Other Public Bodies,Cabot Learning Federation,509.59, 22-Mar-2016
354,Revenue,CAHD,Academy Resource Base Funding,Other Public Bodies,Cabot Learning Federation,1613.70, 22-Mar-2016
355,Revenue,CAHD,Academy Resource Base Funding,Other Public Bodies,Cabot Learning Federation,509.59, 22-Mar-2016
356,Revenue,CAHD,Academy Resource Base Funding,Other Public Bodies,Cabot Learning Federation,509.59, 22-Mar-2016
357,Revenue,CAHD,Academy Resource Base Funding,Other Public Bodies,Cabot Learning Federation,509.59, 22-Mar-2016
358,Revenue,CAHD,Academy Resource Base Funding,Other Public Bodies,Cabot Learning Federation,509.59, 22-Mar-2016
359,Revenue,CAHD,Academy Resource Base Funding,Other Public Bodies,Cabot Learning Federation,509.59, 22-Mar-2016
360,Revenue,CAHD,Academy Resource Base Funding,Other Public Bodies,Cabot Learning Federation,509.59, 22-Mar-2016
361,Revenue,CAHD,Academy Resource Base Funding,Other Public Bodies,Cabot Learning Federation,509.59, 22-Mar-2016
362,Revenue,CAHD,Academy Resource Base Funding,Other Public Bodies,Cabot Learning Federation,509.59, 22-Mar-2016
363,Revenue,CAHD,Academy Resource Base Funding,Other Public Bodies,Cabot Learning Federation,1613.70, 22-Mar-2016
364,Revenue,CAHD,Academy Resource Base Funding,Other Public Bodies,Cabot Learning Federation,509.59, 22-Mar-2016
365,Revenue,CAHD,Academy Resource Base Funding,Other Public Bodies,Cabot Learning Federation,849.32, 22-Mar-2016
366,Revenue,CAHD,Academy Resource Base Funding,Other Public Bodies,Cabot Learning Federation,509.59, 22-Mar-2016
367,Revenue,CAHD,Academy Resource Base Funding,Other Public Bodies,Cabot Learning Federation,1613.70, 22-Mar-2016
368,Revenue,CAHD,Academy Resource Base Funding,Other Public Bodies,Cabot Learning Federation,509.59, 22-Mar-2016
369,Revenue,CAHD,Academy Resource Base Funding,Other Public Bodies,Cabot Learning Federation,509.59, 22-Mar-2016
370,Revenue,CAHD,Academy Resource Base Funding,Other Public Bodies,Cabot Learning Federation,509.59, 22-Mar-2016
371,Revenue,CAHD,Academy Resource Base Funding,Other Public Bodies,Cabot Learning Federation,509.59, 22-Mar-2016
372,Revenue,CAHD,Academy Resource Base Funding,Other Public Bodies,Cabot Learning Federation,509.59, 22-Mar-2016
373,Revenue,CAHD,Academy Resource Base Funding,Other Public Bodies,Cabot Learning Federation,1613.70, 22-Mar-2016
374,Revenue,CAHD,Academy Resource Base Funding,Other Public Bodies,Cabot Learning Federation,1613.70, 22-Mar-2016
375,Revenue,CAHD,Schools Specific Grant Income - from OLA,Other Public Bodies,Cabot Learning Federation,633.33, 22-Mar-2016
376,Revenue,CAHD,Schools Specific Grant Income - from OLA,Other Public Bodies,Cabot Learning Federation,633.33, 22-Mar-2016
377,Revenue,CAHD,Schools Specific Grant Income - from OLA,Other Public Bodies,Cabot Learning Federation,633.33, 22-Mar-2016
378,Revenue,CAHD,Statemented Support Academies,Schools Funding,Cabot Learning Federation,724.97, 31-Mar-2016
379,Revenue,CAHD,Statemented Support Academies,Schools Funding,Cabot Learning Federation,874.97, 31-Mar-2016
380,Revenue,CAHD,Statemented Support Academies,Schools Funding,Cabot Learning Federation,691.64, 31-Mar-2016
381,Revenue,CAHD,Statemented Support Academies,Schools Funding,Cabot Learning Federation,583.30, 31-Mar-2016
382,Revenue,CAHD,Statemented Support Academies,Schools Funding,Cabot Learning Federation,1316.64, 31-Mar-2016
383,Revenue,CAHD,Statemented Support Academies,Schools Funding,Cabot Learning Federation,624.97, 31-Mar-2016
384,Revenue,CAHD,Statemented Support Academies,Schools Funding,Cabot Learning Federation,899.97, 31-Mar-2016
385,Revenue,CAHD,Statemented Support Academies,Schools Funding,Cabot Learning Federation,599.97, 31-Mar-2016
386,Revenue,CAHD,Statemented Support Academies,Schools Funding,Cabot Learning Federation,683.30, 31-Mar-2016
387,Revenue,CAHD,Statemented Support Academies,Schools Funding,Cabot Learning Federation,1224.97, 31-Mar-2016
388,Revenue,CAHD,Statemented Support Academies,Schools Funding,Cabot Learning Federation,958.30, 31-Mar-2016
389,Revenue,CAHD,Statemented Support Academies,Schools Funding,Cabot Learning Federation,583.30, 31-Mar-2016
390,Revenue,CAHD,Statemented Support Academies,Schools Funding,Cabot Learning Federation,749.97, 31-Mar-2016
391,Revenue,CAHD,Schools Specific Grant Income,Other Public Bodies,Cabot Learning Federation,633.33, 14-Mar-2016
392,Revenue,CAHD,Schools Specific Grant Income,Other Public Bodies,Cabot Learning Federation,633.33, 14-Mar-2016
393,Revenue,CAHD,Schools Specific Grant Income,Other Public Bodies,Cabot Learning Federation,633.33, 22-Mar-2016
394,Revenue,CAHD,Schools Specific Grant Income,Other Public Bodies,Cabot Learning Federation,633.33, 22-Mar-2016
395,Revenue,CAHD,Schools Specific Grant Income - from OLA,Other Public Bodies,Cabot Learning Federation,1266.66, 22-Mar-2016
396,Revenue,CAHD,Schools Specific Grant Income - from OLA,Other Public Bodies,Cabot Learning Federation,633.33, 22-Mar-2016
397,Revenue,CAHD,Schools Specific Grant Income - from OLA,Other Public Bodies,Cabot Learning Federation,633.33, 22-Mar-2016
398,Revenue,CAHD,Schools Specific Grant Income - from OLA,Other Public Bodies,Cabot Learning Federation,633.33, 22-Mar-2016
399,Revenue,CAHD,Schools Specific Grant Income - from OLA,Other Public Bodies,Cabot Learning Federation,633.33, 22-Mar-2016
400,Revenue,CAHD,Schools Specific Grant Income - from OLA,Other Public Bodies,Cabot Learning Federation,633.33, 22-Mar-2016
401,Revenue,CAHD,Schools Specific Grant Income - from OLA,Other Public Bodies,Cabot Learning Federation,1266.66, 22-Mar-2016
402,Revenue,CAHD,Schools Specific Grant Income - from OLA,Other Public Bodies,Cabot Learning Federation,633.33, 22-Mar-2016
403,Revenue,CAHD,Schools Specific Grant Income - from OLA,Other Public Bodies,Cabot Learning Federation,633.33, 22-Mar-2016
404,Revenue,CAHD,Schools Specific Grant Income - from OLA,Other Public Bodies,Cabot Learning Federation,633.33, 22-Mar-2016
405,Revenue,CAHD,Schools Specific Grant Income - from OLA,Other Public Bodies,Cabot Learning Federation,633.33, 22-Mar-2016
406,Revenue,CAHD,Schools Specific Grant Income - from OLA,Other Public Bodies,Cabot Learning Federation,633.33, 22-Mar-2016
407,Revenue,CAHD,Schools Specific Grant Income - from OLA,Other Public Bodies,Cabot Learning Federation,633.33, 22-Mar-2016
408,Revenue,CAHD,Schools Specific Grant Income - from OLA,Other Public Bodies,Cabot Learning Federation,633.33, 22-Mar-2016
409,Revenue,CAHD,Schools Specific Grant Income - from OLA,Other Public Bodies,Cabot Learning Federation,534.24, 22-Mar-2016
410,Revenue,CAHD,Statemented Support Academies,Schools Funding,Cabot Learning Federation,941.64, 31-Mar-2016
411,Revenue,CAHD,Statemented Support Academies,Schools Funding,Cabot Learning Federation,549.97, 31-Mar-2016
412,Revenue,CAHD,Statemented Support Payments to OLAs,Other L.A.'s - General,Cabot Learning Federation,583.30, 31-Mar-2016
413,Revenue,CAHD,Statemented Support Academies,Schools Funding,Cabot Learning Federation,1308.30, 31-Mar-2016
414,Revenue,CAHD,EY- 3 & 4 year old payments to providers,Preventative Assistance,Cadbury Heath Preschool,667.80, 04-Mar-2016
415,Revenue,CAHD,Early Years High Needs Support,Other Private Contractors,Caerleon Childcare,1128.00, 22-Mar-2016
416,Revenue,CAHD,Independent Special Placements - Pre 16,Other Private Contractors,Calder House School,5400.00, 29-Mar-2016
417,Revenue,CAHD,Home Care - Elderly - North,Day Care / Social Activities,Camphill Communities Thornbury Limited,839.22, 02-Mar-2016
418,Revenue,CAHD,Home Care - Elderly - North,Other Small Contracts,Camphill Communities Thornbury Limited,141.84, 02-Mar-2016
419,Revenue,CAHD,Home Care - Elderly - North,Supported Living,Camphill Communities Thornbury Limited,1252.92, 02-Mar-2016
420,Revenue,CAHD,Home Care - Elderly - North,Day Care / Social Activities,Camphill Communities Thornbury Limited,1134.72, 09-Mar-2016
421,Revenue,CAHD,Home Care - Elderly - North,Other Small Contracts,Camphill Communities Thornbury Limited,141.84, 09-Mar-2016
422,Revenue,CAHD,Home Care - Elderly - North,Supported Living,Camphill Communities Thornbury Limited,1390.82, 09-Mar-2016
423,Revenue,CAHD,Home Care - Elderly - North,Day Care / Social Activities,Camphill Communities Thornbury Limited,977.12, 16-Mar-2016
424,Revenue,CAHD,Home Care - Elderly - North,Supported Living,Camphill Communities Thornbury Limited,1225.34, 16-Mar-2016
425,Revenue,CAHD,Home Care - Elderly - North,Day Care / Social Activities,Camphill Communities Thornbury Limited,1075.62, 23-Mar-2016
426,Revenue,CAHD,Home Care - Elderly - North,Other Small Contracts,Camphill Communities Thornbury Limited,141.84, 23-Mar-2016
427,Revenue,CAHD,Home Care - Elderly - North,Supported Living,Camphill Communities Thornbury Limited,1382.94, 23-Mar-2016
428,Revenue,CAHD,Home Care - Elderly - North,Day Care / Social Activities,Camphill Communities Thornbury Limited,579.18, 30-Mar-2016
429,Revenue,CAHD,Home Care - Elderly - North,Other Small Contracts,Camphill Communities Thornbury Limited,141.84, 30-Mar-2016
430,Revenue,CAHD,Home Care - Elderly - North,Supported Living,Camphill Communities Thornbury Limited,1382.94, 30-Mar-2016
431,Revenue,CAHD,Bed Purchasing - Elderly S117- North,Permanent Residential,Canjayor,2359.24, 15-Mar-2016
432,Revenue,CAHD,Connecting Care,Software Support & Maintenance,Capita Business Services Ltd,21409.25, 30-Mar-2016
433,Revenue,CAHD,Home Care - Elderly - South,Other Small Contracts,Care 1st Homecare,4696.25, 10-Mar-2016
434,Revenue,CAHD,Home Care - Elderly - South,Supported Living,Care 1st Homecare,21.25, 10-Mar-2016
435,Revenue,CAHD,Home Care - Elderly - North,One-off Planned Direct Payment,Care 1st Homecare,42.50, 10-Mar-2016
436,Revenue,CAHD,Home Care - Elderly - North,Other Small Contracts,Care 1st Homecare,3557.25, 10-Mar-2016
437,Revenue,CAHD,Home Care - Elderly - South,Other Small Contracts,Care 1st Homecare,4177.75, 10-Mar-2016
438,Revenue,CAHD,Home Care - Elderly - South,Supported Living,Care 1st Homecare,25.50, 10-Mar-2016
439,Revenue,CAHD,Home Care - Elderly - North,One-off Planned Direct Payment,Care 1st Homecare,46.75, 10-Mar-2016
440,Revenue,CAHD,Home Care - Elderly - North,Other Small Contracts,Care 1st Homecare,3557.25, 10-Mar-2016
441,Revenue,CAHD,Home Care - Elderly - South,Other Small Contracts,Care 1st Homecare,4335.00, 17-Mar-2016
442,Revenue,CAHD,Home Care - Elderly - South,Supported Living,Care 1st Homecare,17.00, 17-Mar-2016
443,Revenue,CAHD,Home Care - Elderly - North,One-off Planned Direct Payment,Care 1st Homecare,55.25, 17-Mar-2016
444,Revenue,CAHD,Home Care - Elderly - North,Other Small Contracts,Care 1st Homecare,3493.50, 17-Mar-2016
445,Revenue,CAHD,Home Care - Elderly - South,Other Small Contracts,Care 1st Homecare,3973.75, 18-Mar-2016
446,Revenue,CAHD,Home Care - Elderly - South,Supported Living,Care 1st Homecare,21.25, 18-Mar-2016
447,Revenue,CAHD,Home Care - Elderly - North,One-off Planned Direct Payment,Care 1st Homecare,38.25, 18-Mar-2016
448,Revenue,CAHD,Home Care - Elderly - North,Other Small Contracts,Care 1st Homecare,3336.25, 18-Mar-2016
449,Revenue,CAHD,Supported Living - North,Private & Voluntary Home Care,Care Horizons Limited,5100.00, 30-Mar-2016
450,Revenue,CAHD,Supported Living - North,Private & Voluntary Home Care,Care Horizons Limited,5105.84, 30-Mar-2016
451,Revenue,CAHD,Purchase of Non-Res Care - North,Day Care / Social Activities,Care Horizons Limited,1080.25, 29-Mar-2016
452,Revenue,CAHD,Purchase of Non-Res Care - North,Day Care / Social Activities,Care Horizons Limited,1859.73, 29-Mar-2016
453,Revenue,CAHD,Home Care Monitoring (CM2000),Other Supplies & Services,Care Monitoring 2000 Limited,9795.93, 30-Mar-2016
454,Revenue,CAHD,Home Care Monitoring (CM2000),Other Supplies & Services,Care Monitoring 2000 Limited,9875.69, 30-Mar-2016
455,Revenue,CAHD,Home Care - Elderly - South,Other Small Contracts,Care UK,3612.70, 10-Mar-2016
456,Revenue,CAHD,Home Care - Elderly - North,Other Small Contracts,Care UK,1429.20, 10-Mar-2016
457,Revenue,CAHD,Home Care - Elderly - South,Other Small Contracts,Care UK,3469.78, 10-Mar-2016
458,Revenue,CAHD,Home Care - Elderly - North,Other Small Contracts,Care UK,1266.43, 10-Mar-2016
459,Revenue,CAHD,Home Care - Elderly - South,Other Small Contracts,Care UK,3346.71, 18-Mar-2016
460,Revenue,CAHD,Home Care - Elderly - North,Other Small Contracts,Care UK,1266.43, 18-Mar-2016
461,Revenue,CAHD,Home Care - Elderly - South,Other Small Contracts,Carers R Us (Bristol) Limited,638.32, 10-Mar-2016
462,Revenue,CAHD,Home Care - Elderly - South,Other Small Contracts,Carers R Us (Bristol) Limited,549.44, 10-Mar-2016
463,Revenue,CAHD,Home Care - Elderly - South,Other Small Contracts,Carers R Us (Bristol) Limited,666.60, 10-Mar-2016
464,Revenue,CAHD,Home Care - Elderly - South,Other Small Contracts,Carers R Us (Bristol) Limited,674.68, 10-Mar-2016
465,Revenue,CAHD,Home Care - Elderly - South,Other Small Contracts,Carers R Us (Bristol) Limited,670.64, 10-Mar-2016
466,Revenue,CAHD,SLA Grants - Support Serv,Grants to Voluntary Bodies,Carers Support Centre,36988.50, 02-Mar-2016
467,Revenue,CAHD,Statemented Support Academies,Schools Funding,Castle School Education Trust,1008.30, 31-Mar-2016
468,Revenue,CAHD,Statemented Support Academies,Schools Funding,Castle School Education Trust,891.64, 31-Mar-2016
469,Revenue,CAHD,Statemented Support Academies,Schools Funding,Castle School Education Trust,783.30, 31-Mar-2016
470,Revenue,CAHD,Statemented Support Academies,Schools Funding,Castle School Education Trust,583.30, 31-Mar-2016
471,Revenue,CAHD,Statemented Support Academies,Schools Funding,Castle School Education Trust,583.30, 31-Mar-2016
472,Revenue,CAHD,Statemented Support Academies,Schools Funding,Castle School Education Trust,524.97, 31-Mar-2016
473,Revenue,CAHD,Statemented Support Academies,Schools Funding,Castle School Education Trust,1324.97, 31-Mar-2016
474,Revenue,CAHD,Statemented Support Academies,Schools Funding,Castle School Education Trust,591.64, 31-Mar-2016
475,Revenue,CAHD,Statemented Support Academies,Schools Funding,Castle School Education Trust,833.30, 31-Mar-2016
476,Revenue,CAHD,Statemented Support Academies,Schools Funding,Castle School Education Trust,649.97, 31-Mar-2016
477,Revenue,CAHD,Statemented Support Academies,Schools Funding,Castle School Education Trust,1474.97, 31-Mar-2016
478,Revenue,CAHD,Statemented Support Academies,Schools Funding,Castle School Education Trust,708.30, 31-Mar-2016
479,Revenue,CAHD,Statemented Support Academies,Schools Funding,Castle School Education Trust,766.64, 31-Mar-2016
480,Revenue,CAHD,Statemented Support Academies,Schools Funding,Castle School Education Trust,583.30, 31-Mar-2016
481,Revenue,CAHD,Statemented Support Academies,Schools Funding,Castle School Education Trust,508.30, 31-Mar-2016
482,Revenue,CAHD,Statemented Support Academies,Schools Funding,Castle School Education Trust,874.97, 31-Mar-2016
483,Revenue,CAHD,Statemented Support Academies,Schools Funding,Castle School Education Trust,733.30, 31-Mar-2016
484,Revenue,CAHD,Statemented Support Academies,Schools Funding,Castle School Education Trust,874.97, 31-Mar-2016
485,Revenue,CAHD,Statemented Support Academies,Schools Funding,Castle School Education Trust,883.30, 31-Mar-2016
486,Revenue,CAHD,Statemented Support Academies,Schools Funding,Castle School Education Trust,891.64, 31-Mar-2016
487,Revenue,CAHD,Statemented Support Academies,Schools Funding,Castle School Education Trust,599.97, 31-Mar-2016
488,Revenue,CAHD,Statemented Support Academies,Schools Funding,Castle School Education Trust,1166.64, 31-Mar-2016
489,Revenue,CAHD,Statemented Support Academies,Schools Funding,Castle School Education Trust,658.30, 31-Mar-2016
490,Revenue,CAHD,Statemented Support Academies,Schools Funding,Castle School Education Trust,608.30, 31-Mar-2016
491,Revenue,CAHD,Schools Specific Grant Income,Other Public Bodies,Castle School Education Trust,633.33, 14-Mar-2016
492,Revenue,CAHD,Schools Specific Grant Income,Other Public Bodies,Castle School Education Trust,633.33, 14-Mar-2016
493,Revenue,CAHD,Schools Specific Grant Income,Other Public Bodies,Castle School Education Trust,633.33, 14-Mar-2016
494,Revenue,CAHD,Schools Specific Grant Income,Other Public Bodies,Castle School Education Trust,633.33, 14-Mar-2016
495,Revenue,CAHD,Schools Specific Grant Income - from OLA,Other Public Bodies,Castle School Education Trust,633.33, 22-Mar-2016
496,Revenue,CAHD,Schools Specific Grant Income,Other Public Bodies,Castle School Education Trust,633.33, 14-Mar-2016
497,Revenue,CAHD,Schools Specific Grant Income,Other Public Bodies,Castle School Education Trust,633.33, 14-Mar-2016
498,Revenue,CAHD,Statemented Support Academies,Schools Funding,Castle School Education Trust,524.97, 31-Mar-2016
499,Revenue,CAHD,Statemented Support Academies,Schools Funding,Castle School Education Trust,533.30, 31-Mar-2016
500,Revenue,CAHD,Statemented Support Academies,Schools Funding,Castle School Education Trust,699.97, 31-Mar-2016
501,Revenue,CAHD,Statemented Support Academies,Schools Funding,Castle School Education Trust,649.97, 31-Mar-2016
502,Revenue,CAHD,Statemented Support Academies,Schools Funding,Castle School Education Trust,508.30, 31-Mar-2016
503,Revenue,CAHD,Statemented Support Academies,Schools Funding,Castle School Education Trust,874.97, 31-Mar-2016
504,Revenue,CAHD,Schools Specific Grant Income,Other Public Bodies,Castle School Education Trust,633.33, 14-Mar-2016
505,Revenue,CAHD,Schools Specific Grant Income,Other Public Bodies,Castle School Education Trust,633.33, 14-Mar-2016
506,Revenue,CAHD,Schools Specific Grant Income - from OLA,Other Public Bodies,Castle School Education Trust,633.33, 22-Mar-2016
507,Revenue,CAHD,Schools Specific Grant Income - from OLA,Other Public Bodies,Castle School Education Trust,1098.33, 22-Mar-2016
508,Revenue,CAHD,Schools Specific Grant Income - from OLA,Other Public Bodies,Castle School Education Trust,633.33, 22-Mar-2016
509,Revenue,CAHD,Statemented Support Academies,Schools Funding,Castle School Education Trust,691.64, 31-Mar-2016
510,Revenue,CAHD,Statemented Support Academies,Schools Funding,Castle School Education Trust,558.30, 31-Mar-2016
511,Revenue,CAHD,Statemented Support Academies,Schools Funding,Castle School Education Trust,1133.30, 31-Mar-2016
512,Revenue,CAHD,Schools Specific Grant Income,Other Public Bodies,Castle School Education Trust,633.33, 14-Mar-2016
513,Revenue,CAHD,Statemented Support Academies,Schools Funding,Castle School Education Trust,1283.30, 31-Mar-2016
514,Revenue,CAHD,Schools Specific Grant Income,Other Public Bodies,Castle School Education Trust,633.33, 14-Mar-2016
515,Revenue,CAHD,Schools Specific Grant Income,Other Public Bodies,Castle School Education Trust,633.33, 14-Mar-2016
516,Revenue,CAHD,Social Lettings Agency,Fees - General,Individual,10.53, 01-Mar-2016
517,Revenue,CAHD,Social Lettings Agency,Fees & Charges Income - General,Individual,595.11, 01-Mar-2016
518,Revenue,CAHD,CSC - Fostering General,Advertising - General,Celador Radio Limited,1653.00, 01-Mar-2016
519,Revenue,CAHD,Bed Purchasing - North,Permanent Residential,Charlton House,1590.64, 15-Mar-2016
520,Revenue,CAHD,Bed Purchasing - North,Permanent Residential,Charlton House,919.52, 15-Mar-2016
521,Revenue,CAHD,Sexual Health,Other Supplies & Services,Chelsea and Westminster Hospital,757.06, 02-Mar-2016
522,Revenue,CAHD,Home Care - Elderly - South,Other Small Contracts,Cherish Able Care Limited,5418.48, 03-Mar-2016
523,Revenue,CAHD,Home Care - Elderly - North,Other Small Contracts,Cherish Able Care Limited,324.94, 03-Mar-2016
524,Revenue,CAHD,Home Care - Elderly - South,Other Small Contracts,Cherish Able Care Limited,5595.72, 10-Mar-2016
525,Revenue,CAHD,Home Care - Elderly - North,Other Small Contracts,Cherish Able Care Limited,316.50, 10-Mar-2016
526,Revenue,CAHD,Home Care - Elderly - South,Other Small Contracts,Cherish Able Care Limited,5595.72, 17-Mar-2016
527,Revenue,CAHD,Home Care - Elderly - North,Other Small Contracts,Cherish Able Care Limited,324.94, 17-Mar-2016
528,Revenue,CAHD,Home Care - Elderly - South,Other Small Contracts,Cherish Able Care Limited,5000.70, 24-Mar-2016
529,Revenue,CAHD,Home Care - Elderly - North,Other Small Contracts,Cherish Able Care Limited,324.94, 24-Mar-2016
530,Revenue,CAHD,Home Care - Elderly - South,Other Small Contracts,Cherish Able Care Limited,4604.02, 31-Mar-2016
531,Revenue,CAHD,Home Care - Elderly - North,Other Small Contracts,Cherish Able Care Limited,324.94, 31-Mar-2016
532,Revenue,CAHD,Bed purchasing -S28A  Under 65 - North,Permanent Residential,Chescombe Lodge,8791.96, 15-Mar-2016
533,Revenue,CAHD,Training Budget - Children`s Social Serv,Training Expenses,Child Trauma Intervention Services,1700.00, 04-Mar-2016
534,Revenue,CAHD,Bed Purchasing - Southmead Hospital,Permanent Nursing,Cholwell House Nursing Home Ltd,1989.76, 15-Mar-2016
535,Revenue,CAHD,Bed Purchasing - Southmead Hospital,Permanent Nursing,Churchill Property Services,1698.04, 15-Mar-2016
536,Revenue,CAHD,Learning Difficulties,Premises Hire,Circadian Trust,793.00, 22-Mar-2016
537,Revenue,CAHD,CSC - Fostering General,Sporting Expenses,Circadian Trust,664.20, 30-Mar-2016
538,Revenue,CAHD,Learning Difficulties,Premises Hire,Circadian Trust,610.00, 24-Mar-2016
539,Revenue,CAHD,CSC - Fostering General,Sporting Expenses,Circadian Trust,518.65, 29-Mar-2016
540,Revenue,CAHD,18-25 Year Olds,Permanent Residential,Citibase Watford,7088.60, 15-Mar-2016
541,Revenue,CAHD,Bed Purchasing - Elderly S117- North,Permanent Residential,Citibase Watford,9028.60, 15-Mar-2016
542,Revenue,CAHD,18-25 Year Olds,Permanent Residential,Citibase Watford,5514.44, 15-Mar-2016
543,Revenue,CAHD,Housing Needs,Fees - General,Civica UK Limited,804.77, 18-Mar-2016
544,Revenue,CAHD,EY- 2 Yr Old Trajectory Building Funds,Advertising - General,Clear Channel UK Limited,2461.04, 18-Mar-2016
545,Revenue,CAHD,Home Care - Elderly - South,Other Small Contracts,Cleeve Care Group,623.04, 03-Mar-2016
546,Revenue,CAHD,Home Care - Elderly - South,Other Small Contracts,Cleeve Care Group,584.10, 09-Mar-2016
547,Revenue,CAHD,Home Care - Elderly - South,Other Small Contracts,Cleeve Care Group,584.10, 16-Mar-2016
548,Revenue,CAHD,Home Care - Elderly - South,Other Small Contracts,Cleeve Care Group,555.78, 23-Mar-2016
549,Revenue,CAHD,Home Care - Elderly - South,Other Small Contracts,Cleeve Care Group,545.16, 30-Mar-2016
550,Revenue,CAHD,Bed Purchasing - South,Permanent Residential,Cleeve Lodge,568.08, 15-Mar-2016
551,Revenue,CAHD,Bed Purchasing - Southmead Hospital,Permanent Residential,Cleeve Lodge,1475.80, 15-Mar-2016
552,Revenue,CAHD,Bed Purchasing - South,Permanent Residential,Cleeve Lodge,2686.95, 15-Mar-2016
553,Revenue,CAHD,Bed Purchasing - South,Permanent Residential,Cleeve Lodge,1749.64, 15-Mar-2016
554,Revenue,CAHD,Bed Purchasing - South,Respite Planned - Residential,Cleeve Lodge,1197.86, 15-Mar-2016
555,Revenue,CAHD,Bed Purchasing - South,Permanent Residential,Cleeve Lodge,1833.04, 15-Mar-2016
556,Revenue,CAHD,Bed Purchasing - South,Permanent Residential,Cleeve Lodge,1827.76, 15-Mar-2016
557,Revenue,CAHD,Sexual Health,Other Small Contracts,Close Farm Surgery,877.50, 21-Mar-2016
558,Revenue,CAHD,Bed Purchasing - South,Respite Planned - Residential,Collingwood Residential Home,1325.71, 15-Mar-2016
559,Revenue,CAHD,Bed Purchasing - South,Permanent Residential,Collingwood Residential Home,1456.80, 15-Mar-2016
560,Revenue,CAHD,Home Care - Elderly - South,Day Care / Social Activities,Collingwood Residential Home,1183.00, 15-Mar-2016
561,Revenue,CAHD,Bed Purchasing - South,Permanent Residential,Collingwood Residential Home,1466.04, 15-Mar-2016
562,Revenue,CAHD,Bed Purchasing - South,Permanent Residential,Collingwood Residential Home,1079.12, 15-Mar-2016
563,Revenue,CAHD,Bed Purchasing - South,Permanent Residential,Collingwood Residential Home,1333.28, 15-Mar-2016
564,Revenue,CAHD,Bed Purchasing - South,Permanent Residential,Collingwood Residential Home,1327.16, 15-Mar-2016
565,Revenue,CAHD,Schools Specific Grant Income,Other Public Bodies,Colston`s Girls School Trust,633.33, 14-Mar-2016
566,Revenue,CAHD,Schools Specific Grant Income,Other Public Bodies,Colston`s Girls School Trust,633.33, 14-Mar-2016
567,Revenue,CAHD,Bed Purchasing - South,Permanent Nursing,Community Integrated Care,664.84, 15-Mar-2016
568,Revenue,CAHD,Sexual Health,Other Small Contracts,Concord Medical Centre,1156.24, 21-Mar-2016
569,Revenue,CAHD,Sexual Health,Other Small Contracts,Coniston Medical Practice,588.46, 21-Mar-2016
570,Revenue,CAHD,Bed and Breakfast,Bed & Breakfast,Connolly & Callaghan Limited,700.00, 02-Mar-2016
571,Revenue,CAHD,Bed and Breakfast,Bed & Breakfast,Connolly & Callaghan Limited,476.00, 02-Mar-2016
572,Revenue,CAHD,Bed and Breakfast,Bed & Breakfast,Connolly & Callaghan Limited,546.00, 08-Mar-2016
573,Revenue,CAHD,Bed and Breakfast,Bed & Breakfast,Connolly & Callaghan Limited,511.00, 08-Mar-2016
574,Revenue,CAHD,Bed and Breakfast,Bed & Breakfast,Connolly & Callaghan Limited,476.00, 02-Mar-2016
575,Revenue,CAHD,Bed and Breakfast,Bed & Breakfast,Connolly & Callaghan Limited,476.00, 09-Mar-2016
576,Revenue,CAHD,Bed and Breakfast,Bed & Breakfast,Connolly & Callaghan Limited,511.00, 08-Mar-2016
577,Revenue,CAHD,Bed and Breakfast,Bed & Breakfast,Connolly & Callaghan Limited,441.00, 08-Mar-2016
578,Revenue,CAHD,Bed and Breakfast,Bed & Breakfast,Connolly & Callaghan Limited,476.00, 09-Mar-2016
579,Revenue,CAHD,Bed and Breakfast,Bed & Breakfast,Connolly & Callaghan Limited,511.00, 08-Mar-2016
580,Revenue,CAHD,Bed and Breakfast,Bed & Breakfast,Connolly & Callaghan Limited,476.00, 09-Mar-2016
581,Revenue,CAHD,Bed and Breakfast,Bed & Breakfast,Connolly & Callaghan Limited,581.00, 08-Mar-2016
582,Revenue,CAHD,Bed and Breakfast,Bed & Breakfast,Connolly & Callaghan Limited,686.00, 09-Mar-2016
583,Revenue,CAHD,Bed and Breakfast,Bed & Breakfast,Connolly & Callaghan Limited,546.00, 08-Mar-2016
584,Revenue,CAHD,Bed and Breakfast,Bed & Breakfast,Connolly & Callaghan Limited,700.00, 09-Mar-2016
585,Revenue,CAHD,Bed and Breakfast,Bed & Breakfast,Connolly & Callaghan Limited,476.00, 08-Mar-2016
586,Revenue,CAHD,Bed and Breakfast,Bed & Breakfast,Connolly & Callaghan Limited,468.00, 08-Mar-2016
587,Revenue,CAHD,Bed and Breakfast,Bed & Breakfast,Connolly & Callaghan Limited,476.00, 09-Mar-2016
588,Revenue,CAHD,Bed and Breakfast,Bed & Breakfast,Connolly & Callaghan Limited,511.00, 08-Mar-2016
589,Revenue,CAHD,Bed and Breakfast,Bed & Breakfast,Connolly & Callaghan Limited,441.00, 09-Mar-2016
590,Revenue,CAHD,Bed and Breakfast,Bed & Breakfast,Connolly & Callaghan Limited,616.00, 09-Mar-2016
591,Revenue,CAHD,Bed and Breakfast,Bed & Breakfast,Connolly & Callaghan Limited,651.00, 08-Mar-2016
592,Revenue,CAHD,Bed and Breakfast,Bed & Breakfast,Connolly & Callaghan Limited,476.00, 08-Mar-2016
593,Revenue,CAHD,Bed and Breakfast,Bed & Breakfast,Connolly & Callaghan Limited,700.00, 01-Mar-2016
594,Revenue,CAHD,Bed and Breakfast,Bed & Breakfast,Connolly & Callaghan Limited,476.00, 01-Mar-2016
595,Revenue,CAHD,Bed and Breakfast,Bed & Breakfast,Connolly & Callaghan Limited,616.00, 01-Mar-2016
596,Revenue,CAHD,Bed and Breakfast,Bed & Breakfast,Connolly & Callaghan Limited,581.00, 07-Mar-2016
597,Revenue,CAHD,Bed and Breakfast,Bed & Breakfast,Connolly & Callaghan Limited,686.00, 07-Mar-2016
598,Revenue,CAHD,Bed and Breakfast,Bed & Breakfast,Connolly & Callaghan Limited,546.00, 07-Mar-2016
599,Revenue,CAHD,Bed and Breakfast,Bed & Breakfast,Connolly & Callaghan Limited,546.00, 07-Mar-2016
600,Revenue,CAHD,Bed and Breakfast,Bed & Breakfast,Connolly & Callaghan Limited,700.00, 08-Mar-2016
601,Revenue,CAHD,Bed and Breakfast,Bed & Breakfast,Connolly & Callaghan Limited,476.00, 07-Mar-2016
602,Revenue,CAHD,Bed and Breakfast,Bed & Breakfast,Connolly & Callaghan Limited,546.00, 07-Mar-2016
603,Revenue,CAHD,Bed and Breakfast,Bed & Breakfast,Connolly & Callaghan Limited,476.00, 08-Mar-2016
604,Revenue,CAHD,Bed and Breakfast,Bed & Breakfast,Connolly & Callaghan Limited,546.00, 08-Mar-2016
605,Revenue,CAHD,Bed and Breakfast,Bed & Breakfast,Connolly & Callaghan Limited,441.00, 07-Mar-2016
606,Revenue,CAHD,Bed and Breakfast,Bed & Breakfast,Connolly & Callaghan Limited,616.00, 08-Mar-2016
607,Revenue,CAHD,Bed and Breakfast,Bed & Breakfast,Connolly & Callaghan Limited,441.00, 07-Mar-2016
608,Revenue,CAHD,Bed and Breakfast,Bed & Breakfast,Connolly & Callaghan Limited,651.00, 07-Mar-2016
609,Revenue,CAHD,Bed and Breakfast,Bed & Breakfast,Connolly & Callaghan Limited,581.00, 18-Mar-2016
610,Revenue,CAHD,Bed and Breakfast,Bed & Breakfast,Connolly & Callaghan Limited,686.00, 18-Mar-2016
611,Revenue,CAHD,Bed and Breakfast,Bed & Breakfast,Connolly & Callaghan Limited,546.00, 18-Mar-2016
612,Revenue,CAHD,Bed and Breakfast,Bed & Breakfast,Connolly & Callaghan Limited,700.00, 17-Mar-2016
613,Revenue,CAHD,Bed and Breakfast,Bed & Breakfast,Connolly & Callaghan Limited,546.00, 18-Mar-2016
614,Revenue,CAHD,Bed and Breakfast,Bed & Breakfast,Connolly & Callaghan Limited,476.00, 17-Mar-2016
615,Revenue,CAHD,Bed and Breakfast,Bed & Breakfast,Connolly & Callaghan Limited,546.00, 17-Mar-2016
616,Revenue,CAHD,Bed and Breakfast,Bed & Breakfast,Connolly & Callaghan Limited,441.00, 17-Mar-2016
617,Revenue,CAHD,Bed and Breakfast,Bed & Breakfast,Connolly & Callaghan Limited,616.00, 18-Mar-2016
618,Revenue,CAHD,Bed and Breakfast,Bed & Breakfast,Connolly & Callaghan Limited,441.00, 18-Mar-2016
619,Revenue,CAHD,Bed and Breakfast,Bed & Breakfast,Connolly & Callaghan Limited,441.00, 18-Mar-2016
620,Revenue,CAHD,Bed and Breakfast,Bed & Breakfast,Connolly & Callaghan Limited,581.00, 29-Mar-2016
621,Revenue,CAHD,Bed and Breakfast,Bed & Breakfast,Connolly & Callaghan Limited,441.00, 29-Mar-2016
622,Revenue,CAHD,Bed and Breakfast,Bed & Breakfast,Connolly & Callaghan Limited,546.00, 29-Mar-2016
623,Revenue,CAHD,Bed and Breakfast,Bed & Breakfast,Connolly & Callaghan Limited,700.00, 29-Mar-2016
624,Revenue,CAHD,Bed and Breakfast,Bed & Breakfast,Connolly & Callaghan Limited,546.00, 29-Mar-2016
625,Revenue,CAHD,Bed and Breakfast,Bed & Breakfast,Connolly & Callaghan Limited,476.00, 29-Mar-2016
626,Revenue,CAHD,Bed and Breakfast,Bed & Breakfast,Connolly & Callaghan Limited,546.00, 29-Mar-2016
627,Revenue,CAHD,Bed and Breakfast,Bed & Breakfast,Connolly & Callaghan Limited,441.00, 29-Mar-2016
628,Revenue,CAHD,Bed and Breakfast,Bed & Breakfast,Connolly & Callaghan Limited,441.00, 29-Mar-2016
629,Revenue,CAHD,Bed and Breakfast,Bed & Breakfast,Connolly & Callaghan Limited,441.00, 29-Mar-2016
630,Revenue,CAHD,Bed and Breakfast,Bed & Breakfast,Connolly & Callaghan Limited,441.00, 29-Mar-2016
631,Revenue,CAHD,Bed and Breakfast,Bed & Breakfast,Connolly & Callaghan Limited,581.00, 29-Mar-2016
632,Revenue,CAHD,Bed Purchasing - Southmead Hospital,Permanent Residential,Coombs Wood House,1192.80, 15-Mar-2016
633,Revenue,CAHD,Sexual Health,Other Small Contracts,Courtside Surgery,2229.90, 21-Mar-2016
634,Revenue,CAHD,Bed Purchasing - S28A - Over 65- North,Permanent Residential,Cream Ii Ltd  Longrun House,8102.76, 15-Mar-2016
635,Revenue,CAHD,Bed Purchasing - South,Permanent Residential,Cream Ii Ltd  Longrun House,5689.32, 15-Mar-2016
636,Revenue,CAHD,Bed purchasing -S28A  Under 65 - North,Permanent Residential,Creedy Court,9392.72, 15-Mar-2016
637,Revenue,CAHD,Bed Purchasing - S28A - Over 65- North,Permanent Residential,Creedy Court,7806.28, 15-Mar-2016
638,Revenue,CAHD,Bed Purchasing - North,Permanent Residential,Creedy Court,12716.84, 15-Mar-2016
639,Revenue,CAHD,SW HAWB Support,Consultants Fees,Creole Consulting Ltd,2681.08, 24-Mar-2016
640,Revenue,CAHD,Training Budget - Children`s Social Serv,Training Expenses,Cruidin Training and Consultancy Ltd,1599.90, 29-Mar-2016
641,Revenue,CAHD,Bed Purchasing - South,Permanent Residential,Daneswood,11113.64, 15-Mar-2016
642,Revenue,CAHD,Bed Purchasing - North,Permanent Residential,Daneswood,9213.64, 15-Mar-2016
643,Revenue,CAHD,CSC - Legal Fees,Professional Fees,Daniel Woodman & Co Limited,416.66, 11-Mar-2016
644,Revenue,CAHD,Bed Purchasing - Elderly S117- North,Permanent Nursing,Danshell Healthcare Group,11653.52, 15-Mar-2016
645,Revenue,CAHD,Learning Difficulties PSL,Other Supplies & Services,Individual,2105.50, 22-Mar-2016
646,Revenue,CAHD,Alexandra Way,Premises Maintenance by Contractor,Dawson Steeplejacks Limited,40.00, 30-Mar-2016
647,Revenue,CAHD,Woodleaze,Premises Maintenance by Contractor,Dawson Steeplejacks Limited,40.00, 30-Mar-2016
648,Revenue,CAHD,CSC-Adoption Support Fund,Post Adoption,Individual,740.00, 24-Mar-2016
649,Revenue,CAHD,Home Care - Elderly - South,Supported Living,Design House,2674.68, 15-Mar-2016
650,Revenue,CAHD,Home Care - Elderly - South,Supported Living,Design House,2859.20, 15-Mar-2016
651,Revenue,CAHD,Home Care - Elderly - South,Supported Living,Design House,2924.32, 15-Mar-2016
652,Revenue,CAHD,Home Care - Elderly - South,Supported Living,Design House,2794.08, 15-Mar-2016
653,Revenue,CAHD,Home Care - Elderly - South,Supported Living,Design House,2463.04, 15-Mar-2016
654,Revenue,CAHD,Home Care - Elderly - South,Supported Living,Design House,2463.04, 15-Mar-2016
655,Revenue,CAHD,Home Care - Elderly - South,Supported Living,Design House,2349.08, 15-Mar-2016
656,Revenue,CAHD,Home Care - Elderly - South,Supported Living,Design House,3800.40, 15-Mar-2016
657,Revenue,CAHD,Home Care - Elderly - South,Supported Living,Design House,2707.24, 15-Mar-2016
658,Revenue,CAHD,Home Care - Elderly - South,Supported Living,Design House,2756.08, 15-Mar-2016
659,Revenue,CAHD,Home Care - Elderly - South,Supported Living,Design House,2107.28, 15-Mar-2016
660,Revenue,CAHD,Home Care - Elderly - South,Supported Living,Design House,2107.28, 15-Mar-2016
661,Revenue,CAHD,Bed Purchasing - South,Permanent Residential,Devon & Cornwall Autistic Community Trus,8880.84, 15-Mar-2016
662,Revenue,CAHD,CSC - Vinney Green Secure Unit,Medical Fees,DGF Psychology Limited,1200.00, 11-Mar-2016
663,Revenue,CAHD,Home Care - Elderly - South,Day Care / Social Activities,Dhek Bhal,254.80, 01-Mar-2016
664,Revenue,CAHD,Home Care - Elderly - South,Other Small Contracts,Dhek Bhal,196.00, 01-Mar-2016
665,Revenue,CAHD,Home Care - Elderly - North,Other Small Contracts,Dhek Bhal,117.60, 01-Mar-2016
666,Revenue,CAHD,Home Care - Elderly - South,Day Care / Social Activities,Dhek Bhal,196.00, 10-Mar-2016
667,Revenue,CAHD,Home Care - Elderly - South,Other Small Contracts,Dhek Bhal,279.30, 10-Mar-2016
668,Revenue,CAHD,Home Care - Elderly - North,Other Small Contracts,Dhek Bhal,112.70, 10-Mar-2016
669,Revenue,CAHD,Home Care - Elderly - South,Day Care / Social Activities,Dhek Bhal,196.00, 16-Mar-2016
670,Revenue,CAHD,Home Care - Elderly - South,Other Small Contracts,Dhek Bhal,274.40, 16-Mar-2016
671,Revenue,CAHD,Home Care - Elderly - North,Other Small Contracts,Dhek Bhal,117.60, 16-Mar-2016
672,Revenue,CAHD,Home Care - Elderly - South,Day Care / Social Activities,Dhek Bhal,137.20, 30-Mar-2016
673,Revenue,CAHD,Home Care - Elderly - South,Other Small Contracts,Dhek Bhal,274.40, 30-Mar-2016
674,Revenue,CAHD,Home Care - Elderly - North,Other Small Contracts,Dhek Bhal,112.70, 30-Mar-2016
675,Revenue,CAHD,Bed Purchasing - South,Permanent Residential,Dimensions  Suite 2,4933.76, 15-Mar-2016
676,Revenue,CAHD,Supported Living - South,Private & Voluntary Home Care,Dimensions (UK) Ltd,8006.68, 29-Mar-2016
677,Revenue,CAHD,SACRE,Consultants Fees,Diocesan Board of Finance Limited,5490.00, 04-Mar-2016
678,Revenue,CAHD,Home Care - Elderly - South,Day Care / Social Activities,DoCare Ltd,30.18, 08-Mar-2016
679,Revenue,CAHD,Home Care - Elderly - South,Other Small Contracts,DoCare Ltd,1619.66, 08-Mar-2016
680,Revenue,CAHD,Home Care - Elderly - North,Other Small Contracts,DoCare Ltd,4919.34, 08-Mar-2016
681,Revenue,CAHD,Home Care - Elderly - South,Day Care / Social Activities,DoCare Ltd,40.24, 08-Mar-2016
682,Revenue,CAHD,Home Care - Elderly - South,Other Small Contracts,DoCare Ltd,1443.61, 08-Mar-2016
683,Revenue,CAHD,Home Care - Elderly - North,Other Small Contracts,DoCare Ltd,4195.02, 08-Mar-2016
684,Revenue,CAHD,Home Care - Elderly - South,Other Small Contracts,DoCare Ltd,1051.27, 08-Mar-2016
685,Revenue,CAHD,Home Care - Elderly - North,Other Small Contracts,DoCare Ltd,2736.32, 08-Mar-2016
686,Revenue,CAHD,Home Care - Elderly - South,Day Care / Social Activities,DoCare Ltd,40.24, 08-Mar-2016
687,Revenue,CAHD,Home Care - Elderly - South,Other Small Contracts,DoCare Ltd,995.94, 08-Mar-2016
688,Revenue,CAHD,Home Care - Elderly - North,Other Small Contracts,DoCare Ltd,2746.38, 08-Mar-2016
689,Revenue,CAHD,Home Care - Elderly - South,Day Care / Social Activities,DoCare Ltd,45.27, 10-Mar-2016
690,Revenue,CAHD,Home Care - Elderly - South,Other Small Contracts,DoCare Ltd,925.52, 10-Mar-2016
691,Revenue,CAHD,Home Care - Elderly - North,Other Small Contracts,DoCare Ltd,2907.34, 10-Mar-2016
692,Revenue,CAHD,Home Care - Elderly - South,Day Care / Social Activities,DoCare Ltd,40.24, 10-Mar-2016
693,Revenue,CAHD,Home Care - Elderly - South,Other Small Contracts,DoCare Ltd,834.98, 10-Mar-2016
694,Revenue,CAHD,Home Care - Elderly - North,Other Small Contracts,DoCare Ltd,2238.35, 10-Mar-2016
695,Revenue,CAHD,Home Care - Elderly - South,Day Care / Social Activities,DoCare Ltd,40.24, 18-Mar-2016
696,Revenue,CAHD,Home Care - Elderly - South,Other Small Contracts,DoCare Ltd,789.71, 18-Mar-2016
697,Revenue,CAHD,Home Care - Elderly - North,Other Small Contracts,DoCare Ltd,2102.54, 18-Mar-2016
698,Revenue,CAHD,Statemented Support Academies,Schools Funding,Downend School,591.64, 31-Mar-2016
699,Revenue,CAHD,Statemented Support Academies,Schools Funding,Downend School,1008.30, 31-Mar-2016
700,Revenue,CAHD,Statemented Support Academies,Schools Funding,Downend School,1083.30, 31-Mar-2016
701,Revenue,CAHD,Statemented Support Academies,Schools Funding,Downend School,583.30, 31-Mar-2016
702,Revenue,CAHD,Statemented Support Academies,Schools Funding,Downend School,583.30, 31-Mar-2016
703,Revenue,CAHD,Schools Specific Grant Income,Other Public Bodies,Downend School,633.33, 14-Mar-2016
704,Revenue,CAHD,Schools Specific Grant Income,Other Public Bodies,Downend School,633.33, 14-Mar-2016
705,Revenue,CAHD,Schools Specific Grant Income - from OLA,Other Public Bodies,Downend School,633.33, 22-Mar-2016
706,Revenue,CAHD,Schools Specific Grant Income - from OLA,Other Public Bodies,Downend School,633.33, 22-Mar-2016
707,Revenue,CAHD,Implementation of Education Commission,Consultants Fees,Downend School,14696.87, 02-Mar-2016
708,Revenue,CAHD,Social Lettings Agency,Other Supplies & Services,Individual,605.64, 24-Mar-2016
709,Revenue,CAHD,MH Purchasing - Younger,Permanent Residential,Dunraven House,1875.40, 15-Mar-2016
710,Revenue,CAHD,Bed Purchasing - Southmead Hospital,Permanent Residential,Dylan House,1197.56, 15-Mar-2016
711,Revenue,CAHD,Bed and Breakfast,Bed & Breakfast,E J Bartlett,420.00, 08-Mar-2016
712,Revenue,CAHD,Bed and Breakfast,Bed & Breakfast,E J Bartlett,420.00, 08-Mar-2016
713,Revenue,CAHD,Bed and Breakfast,Bed & Breakfast,E J Bartlett,679.00, 08-Mar-2016
714,Revenue,CAHD,Bed and Breakfast,Bed & Breakfast,E J Bartlett,420.00, 15-Mar-2016
715,Revenue,CAHD,Bed and Breakfast,Bed & Breakfast,E J Bartlett,420.00, 15-Mar-2016
716,Revenue,CAHD,Bed and Breakfast,Bed & Breakfast,E J Bartlett,679.00, 15-Mar-2016
717,Revenue,CAHD,Bed and Breakfast,Bed & Breakfast,E J Bartlett,420.00, 17-Mar-2016
718,Revenue,CAHD,Bed and Breakfast,Bed & Breakfast,E J Bartlett,420.00, 17-Mar-2016
719,Revenue,CAHD,Bed and Breakfast,Bed & Breakfast,E J Bartlett,679.00, 17-Mar-2016
720,Revenue,CAHD,Bed Purchasing - North,Permanent Residential,East Court,2238.40, 15-Mar-2016
721,Revenue,CAHD,Minor Adaptations Service,Operational Equipment,Eastman & Co (Timber) Limited,451.10, 16-Mar-2016
722,Revenue,CAHD,Home Care - Elderly - South,Day Care / Social Activities,Easton Community Centre,526.08, 15-Mar-2016
723,Revenue,CAHD,Home Care - Elderly - South,Day Care / Social Activities,Easton Community Centre,526.08, 15-Mar-2016
724,Revenue,CAHD,Home Care - Elderly - North,Day Care / Social Activities,Easton Community Centre,526.08, 15-Mar-2016
725,Revenue,CAHD,Home Care - Elderly - North,Day Care / Social Activities,Easton Community Centre,526.08, 15-Mar-2016
726,Revenue,CAHD,ASSIST - Health Promotion in Schools,Rent,Eastwood Park Limited,1333.33, 24-Mar-2016
727,Revenue,CAHD,CSC - Safeguarding Board,Training Expenses,Eastwood Park Limited,3300.63, 24-Mar-2016
728,Revenue,CAHD,Home Care - Elderly - South,Day Care / Social Activities,Eclipse Office Park,743.04, 15-Mar-2016
729,Revenue,CAHD,Home Care - Elderly - North,Day Care / Social Activities,Eclipse Office Park,990.72, 15-Mar-2016
730,Revenue,CAHD,Home Care - Elderly - South,Day Care / Social Activities,Eclipse Office Park,619.20, 15-Mar-2016
731,Revenue,CAHD,Home Care - Elderly - South,Day Care / Social Activities,Eclipse Office Park,743.04, 15-Mar-2016
732,Revenue,CAHD,Home Care - Elderly - South,Day Care / Social Activities,Eclipse Office Park,866.88, 15-Mar-2016
733,Revenue,CAHD,Home Care - Elderly - South,Day Care / Social Activities,Eclipse Office Park,743.04, 15-Mar-2016
734,Revenue,CAHD,Home Care - Elderly - South,Day Care / Social Activities,Eclipse Office Park,866.88, 15-Mar-2016
735,Revenue,CAHD,Home Care - Elderly - South,Day Care / Social Activities,Eclipse Office Park,1238.40, 15-Mar-2016
736,Revenue,CAHD,Home Care - Elderly - South,Day Care / Social Activities,Eclipse Office Park,743.04, 15-Mar-2016
737,Revenue,CAHD,Home Care - Elderly - South,Day Care / Social Activities,Eclipse Office Park,866.88, 15-Mar-2016
738,Revenue,CAHD,Home Care - Elderly - South,Day Care / Social Activities,Eclipse Office Park,990.72, 15-Mar-2016
739,Revenue,CAHD,Training - Adult Services,Training Expenses,Edge Training & Consultancy Limited,925.00, 24-Mar-2016
740,Revenue,CAHD,Bed Purchasing - Southmead Hospital,Permanent Residential,Edgecumbe Lodge,1776.00, 15-Mar-2016
741,Revenue,CAHD,Bed Purchasing - South,Permanent Residential,Edgecumbe Lodge,1201.56, 15-Mar-2016
742,Revenue,CAHD,Bed Purchasing - South,Permanent Residential,Edgecumbe Lodge,1060.40, 15-Mar-2016
743,Revenue,CAHD,Bed Purchasing - Southmead Hospital,Permanent Residential,Edgecumbe Lodge,1617.48, 15-Mar-2016
744,Revenue,CAHD,Bed Purchasing - North,Permanent Residential,Edgecumbe Lodge,1022.44, 15-Mar-2016
745,Revenue,CAHD,Bed Purchasing - South,Permanent Residential,Edgecumbe Lodge,1569.60, 15-Mar-2016
746,Revenue,CAHD,Bed Purchasing - Southmead Hospital,Permanent Residential,Edgecumbe Lodge,1546.32, 15-Mar-2016
747,Revenue,CAHD,Bed Purchasing - South,Permanent Residential,Edgecumbe Lodge,1145.92, 15-Mar-2016
748,Revenue,CAHD,Bed Purchasing - North,Permanent Residential,Edgecumbe Lodge,1406.80, 15-Mar-2016
749,Revenue,CAHD,Bed Purchasing - South,Permanent Residential,Edgemont House Ltd,1150.20, 15-Mar-2016
750,Revenue,CAHD,Bed Purchasing - Southmead Hospital,Permanent Residential,Edgemont House Ltd,1322.80, 15-Mar-2016
751,Revenue,CAHD,Bed Purchasing - South,Permanent Residential,Edgemont House Ltd,1311.36, 15-Mar-2016
752,Revenue,CAHD,South Glos Users in South Glos Homes,Permanent Nursing,Edgemont View Nursing Home,2688.00, 15-Mar-2016
753,Revenue,CAHD,Bed Purchasing - South,Permanent Nursing,Edgemont View Nursing Home,1402.24, 15-Mar-2016
754,Revenue,CAHD,Bed Purchasing - South,Permanent Nursing,Edgemont View Nursing Home,1763.04, 15-Mar-2016
755,Revenue,CAHD,Bed Purchasing - South,Permanent Nursing,Edgemont View Nursing Home,1457.44, 15-Mar-2016
756,Revenue,CAHD,Bed Purchasing - South,Permanent Nursing,Edgemont View Nursing Home,1648.40, 15-Mar-2016
757,Revenue,CAHD,Bed Purchasing - South,Permanent Nursing,Edgemont View Nursing Home,18387.00, 15-Mar-2016
758,Revenue,CAHD,Bed Purchasing - South,Permanent Nursing,Edgemont View Nursing Home,1906.80, 15-Mar-2016
759,Revenue,CAHD,Planning and Partnerships Procurement,Other Supplies & Services,Eldercare,1503.50, 01-Mar-2016
760,Revenue,CAHD,Supporting People Programme,Grants to Voluntary Bodies,Elim Housing Association Limited,5072.70, 01-Mar-2016
761,Revenue,CAHD,Home Care - Elderly - South,Day Care / Social Activities,Elite Home Care Ltd,35.36, 01-Mar-2016
762,Revenue,CAHD,Home Care - Elderly - South,Other Small Contracts,Elite Home Care Ltd,5728.32, 01-Mar-2016
763,Revenue,CAHD,Home Care - Elderly - North,Other Small Contracts,Elite Home Care Ltd,327.08, 01-Mar-2016
764,Revenue,CAHD,Home Care - Elderly - South,Day Care / Social Activities,Elite Home Care Ltd,35.36, 10-Mar-2016
765,Revenue,CAHD,Home Care - Elderly - South,Other Small Contracts,Elite Home Care Ltd,5847.66, 10-Mar-2016
766,Revenue,CAHD,Home Care - Elderly - North,Other Small Contracts,Elite Home Care Ltd,335.92, 10-Mar-2016
767,Revenue,CAHD,Home Care - Elderly - South,Day Care / Social Activities,Elite Home Care Ltd,35.36, 16-Mar-2016
768,Revenue,CAHD,Home Care - Elderly - South,Other Small Contracts,Elite Home Care Ltd,5962.58, 16-Mar-2016
769,Revenue,CAHD,Home Care - Elderly - North,Other Small Contracts,Elite Home Care Ltd,340.34, 16-Mar-2016
770,Revenue,CAHD,Home Care - Elderly - South,Day Care / Social Activities,Elite Home Care Ltd,35.36, 22-Mar-2016
771,Revenue,CAHD,Home Care - Elderly - South,Other Small Contracts,Elite Home Care Ltd,6170.32, 22-Mar-2016
772,Revenue,CAHD,Home Care - Elderly - North,Other Small Contracts,Elite Home Care Ltd,331.50, 22-Mar-2016
773,Revenue,CAHD,Home Care - Elderly - South,Day Care / Social Activities,Elite Home Care Ltd,35.36, 31-Mar-2016
774,Revenue,CAHD,Home Care - Elderly - South,Other Small Contracts,Elite Home Care Ltd,6020.04, 31-Mar-2016
775,Revenue,CAHD,Home Care - Elderly - North,Other Small Contracts,Elite Home Care Ltd,353.60, 31-Mar-2016
776,Revenue,CAHD,Sexual Health,Other Small Contracts,Emersons Green Medical Centre,960.10, 21-Mar-2016
777,Revenue,CAHD,CSC - Agency Fostering,Foster Parent Allowances,Enhanced Foster Care Ltd,4650.00, 29-Mar-2016
778,Revenue,CAHD,Bed Purchasing - North,Permanent Residential,Epworth House,1053.36, 15-Mar-2016
779,Revenue,CAHD,Training - Adult Services,Training Expenses,Equality & Diversity UK Limited,698.10, 24-Mar-2016
780,Revenue,CAHD,Home Care - Elderly - South,Other Small Contracts,Everycare (Bristol) Ltd,3418.50, 16-Mar-2016
781,Revenue,CAHD,Home Care - Elderly - North,Day Care / Social Activities,Everycare (Bristol) Ltd,124.70, 16-Mar-2016
782,Revenue,CAHD,Home Care - Elderly - North,Other Small Contracts,Everycare (Bristol) Ltd,1414.70, 16-Mar-2016
783,Revenue,CAHD,Home Care - Elderly - South,Other Small Contracts,Everycare (Bristol) Ltd,3551.80, 18-Mar-2016
784,Revenue,CAHD,Home Care - Elderly - North,Day Care / Social Activities,Everycare (Bristol) Ltd,111.80, 18-Mar-2016
785,Revenue,CAHD,Home Care - Elderly - North,Other Small Contracts,Everycare (Bristol) Ltd,1466.30, 18-Mar-2016
786,Revenue,CAHD,Home Care - Elderly - South,Other Small Contracts,Everycare (Bristol) Ltd,3652.69, 21-Mar-2016
787,Revenue,CAHD,Home Care - Elderly - North,Day Care / Social Activities,Everycare (Bristol) Ltd,116.10, 21-Mar-2016
788,Revenue,CAHD,Home Care - Elderly - North,Other Small Contracts,Everycare (Bristol) Ltd,1578.10, 21-Mar-2016
789,Revenue,CAHD,Home Care - Elderly - South,Other Small Contracts,Everycare (Bristol) Ltd,3885.73, 22-Mar-2016
790,Revenue,CAHD,Home Care - Elderly - North,Day Care / Social Activities,Everycare (Bristol) Ltd,120.40, 22-Mar-2016
791,Revenue,CAHD,Home Care - Elderly - North,Other Small Contracts,Everycare (Bristol) Ltd,1694.20, 22-Mar-2016
792,Revenue,CAHD,Home Care - Elderly - South,Other Small Contracts,Everycare (Bristol) Ltd,3788.51, 31-Mar-2016
793,Revenue,CAHD,Home Care - Elderly - North,Day Care / Social Activities,Everycare (Bristol) Ltd,120.40, 31-Mar-2016
794,Revenue,CAHD,Home Care - Elderly - North,Other Small Contracts,Everycare (Bristol) Ltd,1844.70, 31-Mar-2016
795,Revenue,CAHD,Homeless - Private Sector Leasing,Prop.Serv. General Repairs,Express Property Services Limited,1877.01, 23-Mar-2016
796,Revenue,CAHD,Homeless - Private Sector Leasing,Prop.Serv. General Repairs,Express Property Services Limited,3518.69, 23-Mar-2016
797,Revenue,CAHD,Homeless - Private Sector Leasing,Prop.Serv. General Repairs,Express Property Services Limited,1846.13, 23-Mar-2016
798,Revenue,CAHD,Homeless - Private Sector Leasing,Prop.Serv. General Repairs,Express Property Services Limited,2824.03, 23-Mar-2016
799,Revenue,CAHD,South Glos Users in South Glos Homes,Permanent Nursing,Fairview Court,1504.00, 15-Mar-2016
800,Revenue,CAHD,Bed Purchasing - South,Permanent Nursing,Fairview Court,2446.80, 15-Mar-2016
801,Revenue,CAHD,Bed Purchasing - Southmead Hospital,Permanent Nursing,Fairview Court,1896.04, 15-Mar-2016
802,Revenue,CAHD,Bed Purchasing - Southmead Hospital,Permanent Nursing,Fairview Court,5069.29, 15-Mar-2016
803,Revenue,CAHD,Bed Purchasing - Southmead Hospital,Permanent Nursing,Fairview Court,2144.96, 15-Mar-2016
804,Revenue,CAHD,Bed purchasing - Elderly S117 - South,Permanent Nursing,Fairview Court,2012.00, 15-Mar-2016
805,Revenue,CAHD,Bed Purchasing - South,Respite Emergency - Nursing,Fairview Court,5060.57, 15-Mar-2016
806,Revenue,CAHD,Bed Purchasing - South,Permanent Nursing,Fairview Court,2197.96, 15-Mar-2016
807,Revenue,CAHD,Bed Purchasing - North,Permanent Nursing,Fairview Court,2410.80, 15-Mar-2016
808,Revenue,CAHD,Bed Purchasing - South,Permanent Nursing,Fairview Court,1786.36, 15-Mar-2016
809,Revenue,CAHD,Bed Purchasing - South,Permanent Nursing,Fairview Court,2019.04, 15-Mar-2016
810,Revenue,CAHD,Bed Purchasing - Southmead Hospital,Permanent Nursing,Fairview Court,2349.72, 15-Mar-2016
811,Revenue,CAHD,Bed Purchasing - South,Permanent Nursing,Fairview Court Care Home,1130.46, 02-Mar-2016
812,Revenue,CAHD,Bed Purchasing - South,Permanent Nursing,Fairview Court Care Home,952.03, 02-Mar-2016
813,Revenue,CAHD,Bed Purchasing - South,Permanent Nursing,Fairview Court Care Home,1947.18, 02-Mar-2016
814,Revenue,CAHD,Bed Purchasing - South,Permanent Nursing,Fairview Court Care Home,1947.18, 02-Mar-2016
815,Revenue,CAHD,Bed Purchasing - North,Permanent Nursing,Fairview Court Care Home,1607.51, 02-Mar-2016
816,Revenue,CAHD,Bed purchasing - Elderly S117 - South,Permanent Nursing,Fairview Court Care Home,2470.43, 02-Mar-2016
817,Revenue,CAHD,Bed Purchasing - South,Permanent Nursing,Fairview Court Care Home,1208.42, 30-Mar-2016
818,Revenue,CAHD,Bed Purchasing - South,Permanent Nursing,Fairview Court Care Home,2081.47, 30-Mar-2016
819,Revenue,CAHD,Bed Purchasing - South,Permanent Nursing,Fairview Court Care Home,2081.47, 30-Mar-2016
820,Revenue,CAHD,Bed Purchasing - North,Permanent Nursing,Fairview Court Care Home,1713.15, 30-Mar-2016
821,Revenue,CAHD,Bed purchasing - Elderly S117 - South,Permanent Nursing,Fairview Court Care Home,2640.80, 30-Mar-2016
822,Revenue,CAHD,Pathway 2 - (Interim Beds),Permanent Nursing,Fairview Court Care Home,10200.00, 04-Mar-2016
823,Revenue,CAHD,Bed purchasing - Elderly S117 - South,Permanent Residential,Fairview House,1937.56, 15-Mar-2016
824,Revenue,CAHD,Bed Purchasing - Southmead Hospital,Permanent Residential,Fairview House,1043.16, 15-Mar-2016
825,Revenue,CAHD,Bed Purchasing - Southmead Hospital,Permanent Residential,Fairview House,1694.80, 15-Mar-2016
826,Revenue,CAHD,Bed Purchasing - South,Permanent Residential,Fairview House,868.80, 15-Mar-2016
827,Revenue,CAHD,Bed Purchasing - South,Permanent Residential,Fairview House,669.04, 15-Mar-2016
828,Revenue,CAHD,Bed Purchasing - South,Permanent Residential,Fairview House,3608.04, 15-Mar-2016
829,Revenue,CAHD,Bed Purchasing - South,Permanent Residential,Fairview House,1278.80, 15-Mar-2016
830,Revenue,CAHD,Bed Purchasing - South,Permanent Residential,Fairview House,973.08, 15-Mar-2016
831,Revenue,CAHD,Bed Purchasing - South,Permanent Residential,Fairview House,1222.60, 15-Mar-2016
832,Revenue,CAHD,Bed Purchasing - South,Permanent Residential,Fairview House,1134.96, 15-Mar-2016
833,Revenue,CAHD,Bed Purchasing - South,Permanent Residential,Fairview House,1234.50, 15-Mar-2016
834,Revenue,CAHD,Bed Purchasing - South,Permanent Residential,Fairview House,1037.72, 15-Mar-2016
835,Revenue,CAHD,Bed Purchasing - South,Permanent Residential,Fairview House,1044.00, 15-Mar-2016
836,Revenue,CAHD,Bed Purchasing - South,Permanent Residential,Fairview House,1455.56, 15-Mar-2016
837,Revenue,CAHD,Bed Purchasing - Southmead Hospital,Permanent Residential,Fairview House,1407.12, 15-Mar-2016
838,Revenue,CAHD,Bed Purchasing - Southmead Hospital,Permanent Residential,Faith House,560.04, 15-Mar-2016
839,Revenue,CAHD,Bed Purchasing - Southmead Hospital,Permanent Residential,Faith House,1252.12, 15-Mar-2016
840,Revenue,CAHD,Post 16 High Needs Placements,Other Private Contractors,Farleigh FEC-Frome Priory,20088.04, 08-Mar-2016
841,Revenue,CAHD,Post 16 High Needs Placements,Other Private Contractors,Farleigh FEC-Frome Priory,20336.81, 08-Mar-2016
842,Revenue,CAHD,Post 16 High Needs Placements,Other Private Contractors,Farleigh FEC-Frome Priory,23590.06, 16-Mar-2016
843,Revenue,CAHD,Tenancy Start Up Scheme,Other Supplies & Services,Farringtons Sales & Lettings,780.00, 18-Mar-2016
844,Revenue,CAHD,Bed Purchasing - North,Permanent Residential,Fernbank,7790.28, 15-Mar-2016
845,Revenue,CAHD,Quality and Standards,Fees - General,FFT Education Ltd,18880.00, 24-Mar-2016
846,Revenue,CAHD,Bed Purchasing - North,Permanent Nursing,Field House Care Home,2530.80, 15-Mar-2016
847,Revenue,CAHD,Statemented Support Payments to OLAs,Other L.A.'s - General,Filton Avenue Primary School,691.64, 31-Mar-2016
848,Revenue,CAHD,Home Care - Elderly - South,Other Small Contracts,Firstpoint Homecare Ltd,1906.10, 16-Mar-2016
849,Revenue,CAHD,Home Care - Elderly - North,Day Care / Social Activities,Firstpoint Homecare Ltd,46.68, 16-Mar-2016
850,Revenue,CAHD,Home Care - Elderly - North,Other Small Contracts,Firstpoint Homecare Ltd,521.28, 16-Mar-2016
851,Revenue,CAHD,Home Care - Elderly - South,Other Small Contracts,Firstpoint Homecare Ltd,1801.07, 16-Mar-2016
852,Revenue,CAHD,Home Care - Elderly - North,Day Care / Social Activities,Firstpoint Homecare Ltd,42.79, 16-Mar-2016
853,Revenue,CAHD,Home Care - Elderly - North,Other Small Contracts,Firstpoint Homecare Ltd,540.71, 16-Mar-2016
854,Revenue,CAHD,Home Care - Elderly - South,Other Small Contracts,Firstpoint Homecare Ltd,1676.59, 22-Mar-2016
855,Revenue,CAHD,Home Care - Elderly - North,Day Care / Social Activities,Firstpoint Homecare Ltd,46.68, 22-Mar-2016
856,Revenue,CAHD,Home Care - Elderly - North,Other Small Contracts,Firstpoint Homecare Ltd,459.04, 22-Mar-2016
857,Revenue,CAHD,Home Care - Elderly - South,Other Small Contracts,Firstpoint Homecare Ltd,1773.84, 22-Mar-2016
858,Revenue,CAHD,Home Care - Elderly - North,Day Care / Social Activities,Firstpoint Homecare Ltd,46.68, 22-Mar-2016
859,Revenue,CAHD,Home Care - Elderly - North,Other Small Contracts,Firstpoint Homecare Ltd,365.66, 22-Mar-2016
860,Revenue,CAHD,Home Care - Elderly - South,Other Small Contracts,Firstpoint Homecare Ltd,1785.51, 22-Mar-2016
861,Revenue,CAHD,Home Care - Elderly - North,Day Care / Social Activities,Firstpoint Homecare Ltd,46.68, 22-Mar-2016
862,Revenue,CAHD,Home Care - Elderly - North,Other Small Contracts,Firstpoint Homecare Ltd,357.88, 22-Mar-2016
863,Revenue,CAHD,Home Care - Elderly - South,Other Small Contracts,Firstpoint Homecare Ltd,1785.51, 31-Mar-2016
864,Revenue,CAHD,Home Care - Elderly - North,Day Care / Social Activities,Firstpoint Homecare Ltd,46.68, 31-Mar-2016
865,Revenue,CAHD,Home Care - Elderly - North,Other Small Contracts,Firstpoint Homecare Ltd,342.32, 31-Mar-2016
866,Revenue,CAHD,CSC - Agency Fostering,Foster Parent Allowances,Five Rivers Child Care Limited,3336.60, 24-Mar-2016
867,Revenue,CAHD,CSC - Agency Fostering,Foster Parent Allowances,Five Rivers Child Care Limited,3336.60, 24-Mar-2016
868,Revenue,CAHD,CSC - Safeguarding Board,Printing & Stationery,Flashbay Limited,601.50, 17-Mar-2016
869,Revenue,CAHD,CSC - Vinney Green Secure Unit,Operational Equipment,Footballing Chance Ltd,720.00, 29-Mar-2016
870,Revenue,CAHD,CSC - Agency Fostering,Foster Parent Allowances,Foster Care Associates Limited,4131.68, 08-Mar-2016
871,Revenue,CAHD,Bed Purchasing - South,Permanent Residential,Four Seasons Health Care,1134.96, 15-Mar-2016
872,Revenue,CAHD,Home Care - Elderly - South,Day Care / Social Activities,Fourways Care Limited,441.75, 08-Mar-2016
873,Revenue,CAHD,Home Care - Elderly - South,Other Small Contracts,Fourways Care Limited,3439.00, 08-Mar-2016
874,Revenue,CAHD,Home Care - Elderly - North,Other Small Contracts,Fourways Care Limited,2213.05, 08-Mar-2016
875,Revenue,CAHD,Home Care - Elderly - South,Day Care / Social Activities,Fourways Care Limited,460.75, 16-Mar-2016
876,Revenue,CAHD,Home Care - Elderly - South,Other Small Contracts,Fourways Care Limited,3040.00, 16-Mar-2016
877,Revenue,CAHD,Home Care - Elderly - North,Other Small Contracts,Fourways Care Limited,2305.75, 16-Mar-2016
878,Revenue,CAHD,Home Care - Elderly - South,Day Care / Social Activities,Fourways Care Limited,465.50, 21-Mar-2016
879,Revenue,CAHD,Home Care - Elderly - South,Other Small Contracts,Fourways Care Limited,3044.75, 21-Mar-2016
880,Revenue,CAHD,Home Care - Elderly - North,Other Small Contracts,Fourways Care Limited,2115.75, 21-Mar-2016
881,Revenue,CAHD,Home Care - Elderly - South,Day Care / Social Activities,Fourways Care Limited,460.75, 30-Mar-2016
882,Revenue,CAHD,Home Care - Elderly - South,Other Small Contracts,Fourways Care Limited,2973.50, 30-Mar-2016
883,Revenue,CAHD,Home Care - Elderly - North,Other Small Contracts,Fourways Care Limited,1958.20, 30-Mar-2016
884,Revenue,CAHD,Supporting People Programme,Grants to Voluntary Bodies,Freeways Trust Limited,8053.04, 01-Mar-2016
885,Revenue,CAHD,Freeways,Permanent Residential,Freeways Trust Limited,3651.28, 15-Mar-2016
886,Revenue,CAHD,Freeways,Permanent Residential,Freeways Trust Limited,2294.48, 15-Mar-2016
887,Revenue,CAHD,Freeways,Permanent Residential,Freeways Trust Limited,2372.68, 15-Mar-2016
888,Revenue,CAHD,Freeways,Permanent Residential,Freeways Trust Limited,2948.28, 15-Mar-2016
889,Revenue,CAHD,Freeways,Permanent Residential,Freeways Trust Limited,2294.48, 15-Mar-2016
890,Revenue,CAHD,Freeways,Permanent Residential,Freeways Trust Limited,3395.68, 15-Mar-2016
891,Revenue,CAHD,Freeways,Permanent Residential,Freeways Trust Limited,2695.08, 15-Mar-2016
892,Revenue,CAHD,Freeways,Permanent Residential,Freeways Trust Limited,3560.84, 15-Mar-2016
893,Revenue,CAHD,Freeways,Permanent Residential,Freeways Trust Limited,2695.08, 15-Mar-2016
894,Revenue,CAHD,Freeways,Permanent Residential,Freeways Trust Limited,2711.48, 15-Mar-2016
895,Revenue,CAHD,Freeways,Permanent Residential,Freeways Trust Limited,3456.40, 15-Mar-2016
896,Revenue,CAHD,Freeways,Permanent Residential,Freeways Trust Limited,3111.64, 15-Mar-2016
897,Revenue,CAHD,Freeways,Permanent Residential,Freeways Trust Limited,3608.28, 15-Mar-2016
898,Revenue,CAHD,Freeways,Permanent Residential,Freeways Trust Limited,7355.16, 15-Mar-2016
899,Revenue,CAHD,Bed Purchasing - North,Permanent Residential,Freeways Trust Ltd,2891.96, 15-Mar-2016
900,Revenue,CAHD,Bed purchasing - S28A Under 65 - South,Permanent Residential,Freeways Trust Ltd,2959.48, 15-Mar-2016
901,Revenue,CAHD,Bed Purchasing - North,Permanent Residential,Freeways Trust Ltd,3164.68, 15-Mar-2016
902,Revenue,CAHD,Bed Purchasing - North,Permanent Residential,Freeways Trust Ltd,2312.72, 15-Mar-2016
903,Revenue,CAHD,Bed Purchasing - North,Permanent Residential,Freeways Trust Ltd,2761.92, 15-Mar-2016
904,Revenue,CAHD,Bed Purchasing - South,Permanent Residential,Freeways Trust Ltd,3375.88, 15-Mar-2016
905,Revenue,CAHD,Bed Purchasing - North,Permanent Residential,Freeways Trust Ltd,2286.84, 15-Mar-2016
906,Revenue,CAHD,Bed Purchasing - South,Permanent Residential,Freeways Trust Ltd,2426.72, 15-Mar-2016
907,Revenue,CAHD,Bed Purchasing - North,Permanent Residential,Freeways Trust Ltd,2683.12, 15-Mar-2016
908,Revenue,CAHD,Bed Purchasing - North,Permanent Residential,Freeways Trust Ltd,3185.76, 15-Mar-2016
909,Revenue,CAHD,18-25 Year Olds,Permanent Residential,Freeways Trust Ltd,3409.64, 15-Mar-2016
910,Revenue,CAHD,Bed Purchasing - North,Permanent Residential,Freeways Trust Ltd,3866.08, 15-Mar-2016
911,Revenue,CAHD,Pathway 3 - (Complex Beds),Permanent Nursing,Frenchay House,3120.00, 03-Mar-2016
912,Revenue,CAHD,Pathway 3 - (Complex Beds),Permanent Nursing,Frenchay House,3120.00, 30-Mar-2016
913,Revenue,CAHD,Bed Purchasing - South,Permanent Nursing,Frenchay Park Nursing Home,1508.40, 15-Mar-2016
914,Revenue,CAHD,Sexual Health,Other Small Contracts,Frome Valley Medical Centre,3097.10, 21-Mar-2016
915,Revenue,CAHD,Bed Purchasing - South,Permanent Nursing,Fshc  1St Floor,900.32, 15-Mar-2016
916,Revenue,CAHD,Bed Purchasing - South,Permanent Nursing,Fshc  1St Floor,1054.36, 15-Mar-2016
917,Revenue,CAHD,Bed Purchasing - Southmead Hospital,Permanent Residential,Fshc  1St Floor,896.92, 15-Mar-2016
918,Revenue,CAHD,Bed Purchasing - South,Permanent Nursing,Fshc  1St Floor,1013.96, 15-Mar-2016
919,Revenue,CAHD,Bed Purchasing - Southmead Hospital,Permanent Nursing,Fshc  1St Floor,1308.48, 15-Mar-2016
920,Revenue,CAHD,Bed Purchasing - Southmead Hospital,Permanent Nursing,Fshc  1St Floor,1362.80, 15-Mar-2016
921,Revenue,CAHD,Bed Purchasing - Southmead Hospital,Respite Planned - Nursing,Fshc  1St Floor,1172.57, 15-Mar-2016
922,Revenue,CAHD,Bed Purchasing - Southmead Hospital,Permanent Nursing,Fshc  1St Floor,1398.80, 15-Mar-2016
923,Revenue,CAHD,Bed Purchasing - Southmead Hospital,Permanent Nursing,Fshc  1St Floor,1398.80, 15-Mar-2016
924,Revenue,CAHD,Bed Purchasing - Southmead Hospital,Permanent Nursing,Fshc  1St Floor,1064.28, 15-Mar-2016
925,Revenue,CAHD,Bed Purchasing - Southmead Hospital,Permanent Nursing,Fshc  1St Floor,1746.80, 15-Mar-2016
926,Revenue,CAHD,Bed Purchasing - Southmead Hospital,Permanent Nursing,Fshc  1St Floor,1398.80, 15-Mar-2016
927,Revenue,CAHD,Bed Purchasing - Southmead Hospital,Permanent Nursing,Fshc  1St Floor,1382.44, 15-Mar-2016
928,Revenue,CAHD,Bed Purchasing - South,Permanent Nursing,Fshc  1St Floor,1344.08, 15-Mar-2016
929,Revenue,CAHD,Bed Purchasing - Southmead Hospital,Permanent Nursing,Fshc  1St Floor,1398.80, 15-Mar-2016
930,Revenue,CAHD,Bed Purchasing - Southmead Hospital,Permanent Residential,Fshc  1St Floor,546.36, 15-Mar-2016
931,Revenue,CAHD,Bed Purchasing - South,Permanent Nursing,Fshc  1St Floor,1174.32, 15-Mar-2016
932,Revenue,CAHD,Bed Purchasing - North,Permanent Nursing,Fshc  1St Floor,1904.00, 15-Mar-2016
933,Revenue,CAHD,Bed Purchasing - Southmead Hospital,Permanent Nursing,Fshc  1St Floor,1398.80, 15-Mar-2016
934,Revenue,CAHD,Bed Purchasing - Southmead Hospital,Permanent Nursing,Fshc  1St Floor,1207.68, 15-Mar-2016
935,Revenue,CAHD,Bed Purchasing - South,Permanent Nursing,Fshc  1St Floor,1398.80, 15-Mar-2016
936,Revenue,CAHD,Bed Purchasing - South,Permanent Nursing,Fshc  1St Floor,1354.20, 15-Mar-2016
937,Revenue,CAHD,Bed Purchasing - North,Permanent Nursing,Fshc  1St Floor,2296.74, 15-Mar-2016
938,Revenue,CAHD,Bed Purchasing - North,Permanent Nursing,Fshc  1St Floor,1607.72, 15-Mar-2016
939,Revenue,CAHD,Bed Purchasing - Southmead Hospital,Permanent Nursing,Fshc  1St Floor,1398.80, 15-Mar-2016
940,Revenue,CAHD,Bed Purchasing - North,Permanent Nursing,Fshc  1St Floor,1097.68, 15-Mar-2016
941,Revenue,CAHD,Bed Purchasing - North,Permanent Residential,Fshc  1St Floor,1270.80, 15-Mar-2016
942,Revenue,CAHD,Bed Purchasing - Southmead Hospital,Permanent Nursing,Fshc  1St Floor,1023.00, 15-Mar-2016
943,Revenue,CAHD,Bed Purchasing - Southmead Hospital,Permanent Nursing,Fshc  1St Floor,1622.04, 15-Mar-2016
944,Revenue,CAHD,Bed Purchasing - Southmead Hospital,Permanent Nursing,Fshc  1St Floor,935.04, 15-Mar-2016
945,Revenue,CAHD,Bed Purchasing - Southmead Hospital,Permanent Residential,Fshc  1St Floor,1158.00, 15-Mar-2016
946,Revenue,CAHD,Bed Purchasing - Southmead Hospital,Permanent Nursing,Fshc  1St Floor,1112.44, 15-Mar-2016
947,Revenue,CAHD,Bed Purchasing - Southmead Hospital,Permanent Nursing,Fshc  1St Floor,1132.12, 15-Mar-2016
948,Revenue,CAHD,Bed Purchasing - Southmead Hospital,Permanent Nursing,Fshc  1St Floor,1398.80, 15-Mar-2016
949,Revenue,CAHD,Bed Purchasing - North,Permanent Nursing,Fshc  1St Floor,1324.84, 15-Mar-2016
950,Revenue,CAHD,Bed Purchasing - Southmead Hospital,Permanent Nursing,Fshc  1St Floor,1130.76, 15-Mar-2016
951,Revenue,CAHD,Bed Purchasing - North,Permanent Residential,Fshc  1St Floor,1248.40, 15-Mar-2016
952,Revenue,CAHD,Bed Purchasing - South,Permanent Residential,Fshc  1St Floor,1148.76, 15-Mar-2016
953,Revenue,CAHD,Bed Purchasing - Southmead Hospital,Permanent Nursing,Fshc  1St Floor,2080.00, 15-Mar-2016
954,Revenue,CAHD,Bed Purchasing - Southmead Hospital,Permanent Nursing,Fshc  1St Floor,1393.24, 15-Mar-2016
955,Revenue,CAHD,Bed Purchasing - Southmead Hospital,Permanent Nursing,Fshc  1St Floor,1398.80, 15-Mar-2016
956,Revenue,CAHD,Bed Purchasing - North,Permanent Nursing,Fshc  1St Floor,545.84, 15-Mar-2016
957,Revenue,CAHD,Bed Purchasing - Southmead Hospital,Permanent Residential,Fshc  1St Floor,619.48, 15-Mar-2016
958,Revenue,CAHD,Bed Purchasing - Southmead Hospital,Permanent Nursing,Fshc  1St Floor,1385.72, 15-Mar-2016
959,Revenue,CAHD,Bed Purchasing - North,Permanent Nursing,Fshc  1St Floor,1270.20, 15-Mar-2016
960,Revenue,CAHD,Bed Purchasing - North,Permanent Nursing,Fshc  1St Floor,908.28, 15-Mar-2016
961,Revenue,CAHD,Bed Purchasing - North,Permanent Nursing,Fshc  1St Floor,1398.80, 15-Mar-2016
962,Revenue,CAHD,Bed Purchasing - North,Permanent Nursing,Fshc  1St Floor,4643.26, 15-Mar-2016
963,Revenue,CAHD,Bed Purchasing - North,Permanent Nursing,Fshc  1St Floor,1566.40, 15-Mar-2016
964,Revenue,CAHD,Bed Purchasing - North,Permanent Nursing,Fshc  1St Floor,1489.56, 15-Mar-2016
965,Revenue,CAHD,Bed Purchasing - North,Permanent Residential,Fshc  1St Floor,1421.84, 15-Mar-2016
966,Revenue,CAHD,Bed Purchasing - North,Permanent Nursing,Fshc  1St Floor,1007.00, 15-Mar-2016
967,Revenue,CAHD,Bed Purchasing - North,Permanent Residential,Fshc  1St Floor,1268.08, 15-Mar-2016
968,Revenue,CAHD,Bed Purchasing - Southmead Hospital,Permanent Nursing,Fshc  1St Floor,1108.28, 15-Mar-2016
969,Revenue,CAHD,South Glos Users in South Glos Homes,Permanent Nursing,Fshc  1St Floor,3088.00, 15-Mar-2016
970,Revenue,CAHD,Bed Purchasing - North,Permanent Nursing,Fshc  1St Floor,1422.80, 15-Mar-2016
971,Revenue,CAHD,Bed Purchasing - North,Permanent Residential,Fshc  1St Floor,1421.60, 15-Mar-2016
972,Revenue,CAHD,Bed Purchasing - North,Permanent Nursing,Fshc  1St Floor,1602.80, 15-Mar-2016
973,Revenue,CAHD,Bed Purchasing - North,Permanent Residential,Fshc  1St Floor,4084.71, 15-Mar-2016
974,Revenue,CAHD,Bed Purchasing - North,Permanent Residential,Fshc  1St Floor,1270.80, 15-Mar-2016
975,Revenue,CAHD,Bed Purchasing - North,Permanent Nursing,Fshc  1St Floor,1398.80, 15-Mar-2016
976,Revenue,CAHD,Bed Purchasing - South,Permanent Nursing,Fshc  1St Floor,1418.80, 15-Mar-2016
977,Revenue,CAHD,Bed Purchasing - Southmead Hospital,Permanent Nursing,Fshc  1St Floor,1197.88, 15-Mar-2016
978,Revenue,CAHD,Bed Purchasing - North,Respite Emergency - Nursing,Fshc  1St Floor,1952.00, 15-Mar-2016
979,Revenue,CAHD,Bed Purchasing - North,Respite Planned - Nursing,Fshc  1St Floor,999.14, 15-Mar-2016
980,Revenue,CAHD,Bed Purchasing - North,Permanent Nursing,Fshc  1St Floor,1054.32, 15-Mar-2016
981,Revenue,CAHD,Bed Purchasing - Southmead Hospital,Permanent Residential,Fshc  1St Floor,1171.20, 15-Mar-2016
982,Revenue,CAHD,Bed Purchasing - Southmead Hospital,Permanent Nursing,Fshc  1St Floor,1344.04, 15-Mar-2016
983,Revenue,CAHD,Bed Purchasing - North,Permanent Nursing,Fshc  1St Floor,1019.44, 15-Mar-2016
984,Revenue,CAHD,Bed Purchasing - North,Permanent Nursing,Fshc  1St Floor,1433.84, 15-Mar-2016
985,Revenue,CAHD,Bed Purchasing - Southmead Hospital,Permanent Nursing,Fshc  1St Floor,582.08, 15-Mar-2016
986,Revenue,CAHD,Bed Purchasing - Southmead Hospital,Permanent Nursing,Fshc  1St Floor,1398.80, 15-Mar-2016
987,Revenue,CAHD,Bed Purchasing - Southmead Hospital,Permanent Nursing,Fshc  1St Floor,874.00, 15-Mar-2016
988,Revenue,CAHD,Bed Purchasing - Southmead Hospital,Permanent Nursing,Fshc  1St Floor,1398.80, 15-Mar-2016
989,Revenue,CAHD,Bed Purchasing - Southmead Hospital,Respite Planned - Nursing,Fshc  1St Floor,10676.00, 15-Mar-2016
990,Revenue,CAHD,Bed Purchasing - Southmead Hospital,Respite Planned - Nursing,Fshc  1St Floor,1904.00, 15-Mar-2016
991,Revenue,CAHD,Bed Purchasing - North,Permanent Nursing,Fshc  1St Floor,1503.40, 15-Mar-2016
992,Revenue,CAHD,Bed Purchasing - Southmead Hospital,Permanent Nursing,Fshc  1St Floor,1329.40, 15-Mar-2016
993,Revenue,CAHD,Bed Purchasing - North,Permanent Nursing,Fshc  1St Floor,1287.04, 15-Mar-2016
994,Revenue,CAHD,Bed Purchasing - Southmead Hospital,Permanent Nursing,Fshc  1St Floor,1271.84, 15-Mar-2016
995,Revenue,CAHD,Bed Purchasing - North,Permanent Nursing,Fshc  1St Floor,1023.84, 15-Mar-2016
996,Revenue,CAHD,Bed Purchasing - Southmead Hospital,Permanent Nursing,Fshc  1St Floor,1848.92, 15-Mar-2016
997,Revenue,CAHD,Bed Purchasing - North,Permanent Residential,Fshc  1St Floor,3034.68, 15-Mar-2016
998,Revenue,CAHD,Bed Purchasing - North,Permanent Nursing,Fshc  1St Floor,1405.04, 15-Mar-2016
999,Revenue,CAHD,Bed Purchasing - South,Respite Planned - Residential,Fshc  1St Floor,5282.14, 15-Mar-2016
1000,Revenue,CAHD,Bed Purchasing - South,Respite Planned - Residential,Fshc  1St Floor,1972.00, 15-Mar-2016
1001,Revenue,CAHD,Bed Purchasing - South,Permanent Nursing,Fshc  1St Floor,1198.76, 15-Mar-2016
1002,Revenue,CAHD,Bed Purchasing - South,Permanent Nursing,Fshc  1St Floor,1298.48, 15-Mar-2016
1003,Revenue,CAHD,Bed Purchasing - Southmead Hospital,Permanent Nursing,Fshc  1St Floor,1335.04, 15-Mar-2016
1004,Revenue,CAHD,Bed Purchasing - North,Permanent Nursing,Fshc  1St Floor,689.48, 15-Mar-2016
1005,Revenue,CAHD,Bed Purchasing - South,Permanent Nursing,Fshc  1St Floor,1904.00, 15-Mar-2016
1006,Revenue,CAHD,Bed Purchasing - Southmead Hospital,Permanent Residential,Fshc  1St Floor,1494.80, 15-Mar-2016
1007,Revenue,CAHD,Bed Purchasing - South,Permanent Residential,Fshc  1St Floor,949.60, 15-Mar-2016
1008,Revenue,CAHD,Bed Purchasing - North,Permanent Residential,Fshc  1St Floor,1179.64, 15-Mar-2016
1009,Revenue,CAHD,Bed Purchasing - North,Permanent Nursing,Fshc  1St Floor,1144.52, 15-Mar-2016
1010,Revenue,CAHD,Bed Purchasing - South,Permanent Residential,Fshc  1St Floor,4557.56, 15-Mar-2016
1011,Revenue,CAHD,Bed Purchasing - South,Respite Emergency - Residential,Fshc  1St Floor,2112.86, 15-Mar-2016
1012,Revenue,CAHD,Bed Purchasing - South,Permanent Residential,Fshc  1St Floor,1466.80, 15-Mar-2016
1013,Revenue,CAHD,Bed Purchasing - South,Permanent Residential,Fshc  1St Floor,1045.60, 15-Mar-2016
1014,Revenue,CAHD,Bed Purchasing - South,Permanent Nursing,Fshc  1St Floor,1374.80, 15-Mar-2016
1015,Revenue,CAHD,Bed Purchasing - Southmead Hospital,Permanent Nursing,Fshc  1St Floor,1398.80, 15-Mar-2016
1016,Revenue,CAHD,Bed Purchasing - South,Permanent Nursing,Fshc  1St Floor,5998.69, 15-Mar-2016
1017,Revenue,CAHD,Swift Dump Code,Permanent Residential,Fshc  1St Floor,2163.31, 15-Mar-2016
1018,Revenue,CAHD,Bed Purchasing - South,Permanent Nursing,Fshc  1St Floor,1121.48, 15-Mar-2016
1019,Revenue,CAHD,Bed Purchasing - Southmead Hospital,Permanent Nursing,Fshc  1St Floor,1378.24, 15-Mar-2016
1020,Revenue,CAHD,Bed Purchasing - Southmead Hospital,Permanent Nursing,Fshc  1St Floor,1252.64, 15-Mar-2016
1021,Revenue,CAHD,Bed Purchasing - South,Permanent Nursing,Fshc  1St Floor,1240.84, 15-Mar-2016
1022,Revenue,CAHD,Bed Purchasing - South,Permanent Residential,Fshc  1St Floor,1270.80, 15-Mar-2016
1023,Revenue,CAHD,Bed Purchasing - Southmead Hospital,Permanent Nursing,Fshc  1St Floor,1304.40, 15-Mar-2016
1024,Revenue,CAHD,Bed Purchasing - South,Permanent Residential,Fshc  1St Floor,1270.80, 15-Mar-2016
1025,Revenue,CAHD,Bed Purchasing - Southmead Hospital,Permanent Nursing,Fshc  1St Floor,1398.80, 15-Mar-2016
1026,Revenue,CAHD,Bed Purchasing - South,Permanent Nursing,Fshc  1St Floor,3876.54, 15-Mar-2016
1027,Revenue,CAHD,Bed Purchasing - South,Permanent Nursing,Fshc  1St Floor,1466.80, 15-Mar-2016
1028,Revenue,CAHD,Bed Purchasing - Southmead Hospital,Permanent Nursing,Fshc  1St Floor,1398.80, 15-Mar-2016
1029,Revenue,CAHD,Bed Purchasing - Southmead Hospital,Permanent Nursing,Fshc  1St Floor,1324.72, 15-Mar-2016
1030,Revenue,CAHD,Bed Purchasing - South,Permanent Nursing,Fshc  1St Floor,1240.16, 15-Mar-2016
1031,Revenue,CAHD,Bed Purchasing - Southmead Hospital,Permanent Residential,Fshc  1St Floor,1484.16, 15-Mar-2016
1032,Revenue,CAHD,Bed Purchasing - Southmead Hospital,Permanent Nursing,Fshc  1St Floor,1398.80, 15-Mar-2016
1033,Revenue,CAHD,Bed Purchasing - South,Permanent Residential,Fshc  1St Floor,683.16, 15-Mar-2016
1034,Revenue,CAHD,Bed purchasing - Elderly S117 - South,Permanent Nursing,Fshc  1St Floor,544.00, 15-Mar-2016
1035,Revenue,CAHD,Bed Purchasing - Southmead Hospital,Permanent Residential,Fshc  1St Floor,1131.52, 15-Mar-2016
1036,Revenue,CAHD,Bed Purchasing - South,Permanent Nursing,Fshc  1St Floor,1402.52, 15-Mar-2016
1037,Revenue,CAHD,Bed Purchasing - South,Permanent Residential,Fshc  1St Floor,1386.96, 15-Mar-2016
1038,Revenue,CAHD,Bed Purchasing - South,Permanent Nursing,Fshc  1St Floor,1398.80, 15-Mar-2016
1039,Revenue,CAHD,Bed Purchasing - South,Permanent Nursing,Fshc  1St Floor,1244.17, 15-Mar-2016
1040,Revenue,CAHD,Bed Purchasing - South,Permanent Nursing,Fshc  1St Floor,1123.76, 15-Mar-2016
1041,Revenue,CAHD,Bed Purchasing - South,Respite Planned - Residential,Fshc  1St Floor,2730.57, 15-Mar-2016
1042,Revenue,CAHD,Bed Purchasing - South,Permanent Residential,Fshc  1St Floor,1466.80, 15-Mar-2016
1043,Revenue,CAHD,Bed Purchasing - South,Permanent Residential,Fshc  1St Floor,1100.10, 15-Mar-2016
1044,Revenue,CAHD,Bed Purchasing - South,Permanent Nursing,Fshc  1St Floor,1398.80, 15-Mar-2016
1045,Revenue,CAHD,Bed Purchasing - North,Permanent Residential,Fshc  1St Floor,1233.32, 15-Mar-2016
1046,Revenue,CAHD,Bed Purchasing - South,Permanent Nursing,Fshc  1St Floor,1267.20, 15-Mar-2016
1047,Revenue,CAHD,Bed Purchasing - Southmead Hospital,Permanent Nursing,Fshc  1St Floor,5128.47, 15-Mar-2016
1048,Revenue,CAHD,Bed Purchasing - South,Permanent Nursing,Fshc  1St Floor,1681.08, 15-Mar-2016
1049,Revenue,CAHD,Bed purchasing - Elderly S117 - South,Permanent Nursing,Fshc  1St Floor,1904.00, 15-Mar-2016
1050,Revenue,CAHD,Bed Purchasing - South,Permanent Nursing,Fshc  1St Floor,1132.64, 15-Mar-2016
1051,Revenue,CAHD,Bed Purchasing - Southmead Hospital,Permanent Nursing,Fshc  1St Floor,1240.64, 15-Mar-2016
1052,Revenue,CAHD,Bed Purchasing - Southmead Hospital,Permanent Nursing,Fshc  1St Floor,956.72, 15-Mar-2016
1053,Revenue,CAHD,Bed Purchasing - Southmead Hospital,Permanent Nursing,Fshc  1St Floor,1306.72, 15-Mar-2016
1054,Revenue,CAHD,Bed Purchasing - Southmead Hospital,Permanent Nursing,Fshc  1St Floor,1398.80, 15-Mar-2016
1055,Revenue,CAHD,Bed Purchasing - Southmead Hospital,Permanent Nursing,Fshc  1St Floor,894.72, 15-Mar-2016
1056,Revenue,CAHD,Bed Purchasing - South,Permanent Nursing,Fshc  1St Floor,1255.12, 15-Mar-2016
1057,Revenue,CAHD,Bed Purchasing - Southmead Hospital,Permanent Residential,Fshc  1St Floor,556.52, 15-Mar-2016
1058,Revenue,CAHD,Bed Purchasing - North,Permanent Nursing,Fshc  1St Floor,1356.20, 15-Mar-2016
1059,Revenue,CAHD,Bed Purchasing - North,Respite Planned - Nursing,Fshc  1St Floor,1078.35, 15-Mar-2016
1060,Revenue,CAHD,Bed Purchasing - North,Respite Planned - Nursing,Fshc  1St Floor,967.60, 15-Mar-2016
1061,Revenue,CAHD,Bed Purchasing - North,Permanent Nursing,Fshc  1St Floor,1364.16, 15-Mar-2016
1062,Revenue,CAHD,Bed Purchasing - South,Respite Planned - Residential,Fshc  1St Floor,1935.20, 15-Mar-2016
1063,Revenue,CAHD,Bed Purchasing - North,Permanent Nursing,Fshc  1St Floor,1430.00, 15-Mar-2016
1064,Revenue,CAHD,Bed Purchasing - South,Respite Planned - Nursing,Fshc  1St Floor,1935.20, 15-Mar-2016
1065,Revenue,CAHD,Bed Purchasing - Southmead Hospital,Permanent Nursing,Fshc  1St Floor,1430.00, 15-Mar-2016
1066,Revenue,CAHD,Bed Purchasing - North,Permanent Nursing,Fshc  1St Floor,845.84, 15-Mar-2016
1067,Revenue,CAHD,Bed Purchasing - North,Permanent Nursing,Fshc  1St Floor,1506.80, 15-Mar-2016
1068,Revenue,CAHD,Bed Purchasing - Southmead Hospital,Permanent Nursing,Fshc  1St Floor,1475.00, 15-Mar-2016
1069,Revenue,CAHD,Bed Purchasing - Southmead Hospital,Permanent Nursing,Fshc  1St Floor,1355.76, 15-Mar-2016
1070,Revenue,CAHD,Bed Purchasing - Southmead Hospital,Permanent Nursing,Fshc  1St Floor,1506.80, 15-Mar-2016
1071,Revenue,CAHD,Bed Purchasing - North,Permanent Nursing,Fshc  1St Floor,1374.32, 15-Mar-2016
1072,Revenue,CAHD,Bed Purchasing - North,Permanent Nursing,Fshc  1St Floor,1302.52, 15-Mar-2016
1073,Revenue,CAHD,Bed Purchasing - Southmead Hospital,Permanent Nursing,Fshc  1St Floor,1574.80, 15-Mar-2016
1074,Revenue,CAHD,Bed Purchasing - Southmead Hospital,Permanent Residential,Fshc  1St Floor,1250.68, 15-Mar-2016
1075,Revenue,CAHD,Bed Purchasing - Southmead Hospital,Permanent Nursing,Fshc  1St Floor,1382.28, 15-Mar-2016
1076,Revenue,CAHD,Bed Purchasing - Southmead Hospital,Permanent Nursing,Fshc  1St Floor,1242.28, 15-Mar-2016
1077,Revenue,CAHD,Bed Purchasing - Southmead Hospital,Permanent Nursing,Fshc  1St Floor,3441.84, 15-Mar-2016
1078,Revenue,CAHD,Bed Purchasing - South,Respite Planned - Nursing,Fshc  1St Floor,888.00, 15-Mar-2016
1079,Revenue,CAHD,Bed Purchasing - South,Respite Planned - Nursing,Fshc  1St Floor,700.00, 15-Mar-2016
1080,Revenue,CAHD,Bed Purchasing - North,Permanent Residential,Fshc  1St Floor,1128.92, 15-Mar-2016
1081,Revenue,CAHD,Bed Purchasing - Elderly S117- North,Permanent Nursing,Fshc  1St Floor,2012.00, 15-Mar-2016
1082,Revenue,CAHD,Bed Purchasing - Southmead Hospital,Permanent Nursing,Fshc  1St Floor,2600.00, 15-Mar-2016
1083,Revenue,CAHD,Bed Purchasing - Southmead Hospital,Permanent Nursing,Fshc  1St Floor,1898.80, 15-Mar-2016
1084,Revenue,CAHD,Bed Purchasing - North,Permanent Nursing,Fshc  1St Floor,811.93, 15-Mar-2016
1085,Revenue,CAHD,Bed Purchasing - North,Permanent Nursing,Fshc  1St Floor,1506.80, 15-Mar-2016
1086,Revenue,CAHD,Bed Purchasing - Southmead Hospital,Permanent Nursing,Fshc  1St Floor,1101.28, 15-Mar-2016
1087,Revenue,CAHD,Bed Purchasing - North,Permanent Residential,Fshc  1St Floor,1050.88, 15-Mar-2016
1088,Revenue,CAHD,Bed Purchasing - South,Permanent Residential,Fshc  1St Floor,1368.08, 15-Mar-2016
1089,Revenue,CAHD,Bed Purchasing - Southmead Hospital,Permanent Residential,Fshc  1St Floor,808.44, 15-Mar-2016
1090,Revenue,CAHD,CSC - Residential Placements,Permanent Residential,G4S Care & Justice Services (UK) Limited,11427.76, 01-Mar-2016
1091,Revenue,CAHD,CSC - Residential Placements,Permanent Residential,G4S Care & Justice Services (UK) Limited,10690.49, 30-Mar-2016
1092,Revenue,CAHD,Section 117 Placements MH Younger,Permanent Residential,Gladstone House,2792.00, 15-Mar-2016
1093,Revenue,CAHD,Bed Purchasing - South,Permanent Residential,Gladstone House,5278.20, 15-Mar-2016
1094,Revenue,CAHD,Bed Purchasing - South,Permanent Residential,Glasallt Fawr,4666.48, 15-Mar-2016
1095,Revenue,CAHD,Bed Purchasing - North,Permanent Nursing,Glebe House Nursing Home,2140.68, 15-Mar-2016
1096,Revenue,CAHD,Bed Purchasing - South,Permanent Residential,Glebe House Nursing Home,2073.76, 15-Mar-2016
1097,Revenue,CAHD,Bed Purchasing - North,Permanent Nursing,Glebe House Nursing Home,2257.08, 15-Mar-2016
1098,Revenue,CAHD,Bed Purchasing - North,Permanent Nursing,Glebe House Nursing Home,2186.96, 15-Mar-2016
1099,Revenue,CAHD,Schools Specific Grant Income,Other Public Bodies,Gloucestershire County Council,633.33, 16-Mar-2016
1100,Revenue,CAHD,Schools Specific Grant Income,Other Public Bodies,Gloucestershire County Council,633.33, 16-Mar-2016
1101,Revenue,CAHD,Schools Specific Grant Income,Other Public Bodies,Gloucestershire County Council,633.33, 16-Mar-2016
1102,Revenue,CAHD,Schools Specific Grant Income,Other Public Bodies,Gloucestershire County Council,633.33, 16-Mar-2016
1103,Revenue,CAHD,Bed Purchasing - South,Permanent Residential,Goldcare House,2232.00, 15-Mar-2016
1104,Revenue,CAHD,18-25 Year Olds,Permanent Residential,Gordena Care Home,22740.37, 15-Mar-2016
1105,Revenue,CAHD,Bed Purchasing - South,Permanent Residential,Gordena Care Home,2137.52, 15-Mar-2016
1106,Revenue,CAHD,Bed Purchasing - South,Permanent Residential,Gordena Care Home,3189.84, 15-Mar-2016
1107,Revenue,CAHD,Bed Purchasing - South,Permanent Residential,Gordena Care Home,2996.16, 15-Mar-2016
1108,Revenue,CAHD,Bed Purchasing - South,Permanent Residential,Gordena Care Home,1950.08, 15-Mar-2016
1109,Revenue,CAHD,Bed Purchasing - South,Permanent Residential,Gordena Care Home,3111.40, 15-Mar-2016
1110,Revenue,CAHD,Bed Purchasing - South,Permanent Residential,Gordena Care Limited,4264.60, 15-Mar-2016
1111,Revenue,CAHD,Bed purchasing - S28A Under 65 - South,Permanent Residential,Gordena Care Limited,4161.28, 15-Mar-2016
1112,Revenue,CAHD,Bed Purchasing - North,Permanent Residential,Gordena Care Limited,4260.48, 15-Mar-2016
1113,Revenue,CAHD,Bed Purchasing - South,Permanent Nursing,Gracefields Nursing Home,1712.72, 15-Mar-2016
1114,Revenue,CAHD,Bed Purchasing - Southmead Hospital,Permanent Nursing,Gracefields Nursing Home,1733.76, 15-Mar-2016
1115,Revenue,CAHD,Bed Purchasing - Southmead Hospital,Permanent Nursing,Gracefields Nursing Home,1655.96, 15-Mar-2016
1116,Revenue,CAHD,Bed Purchasing - Southmead Hospital,Permanent Nursing,Gracefields Nursing Home,883.28, 15-Mar-2016
1117,Revenue,CAHD,Bed purchasing - Elderly S117 - South,Permanent Nursing,Gracefields Nursing Home,2381.88, 15-Mar-2016
1118,Revenue,CAHD,Bed Purchasing - South,Permanent Nursing,Gracefields Nursing Home,1132.40, 15-Mar-2016
1119,Revenue,CAHD,Bed Purchasing - Southmead Hospital,Permanent Nursing,Gracefields Nursing Home,1586.56, 15-Mar-2016
1120,Revenue,CAHD,Bed Purchasing - South,Permanent Nursing,Gracefields Nursing Home,1601.96, 15-Mar-2016
1121,Revenue,CAHD,Bed Purchasing - Southmead Hospital,Permanent Nursing,Gracefields Nursing Home,1539.00, 15-Mar-2016
1122,Revenue,CAHD,Bed Purchasing - Southmead Hospital,Permanent Residential,Granada House Residential Home,1043.36, 15-Mar-2016
1123,Revenue,CAHD,CSC - Residential Placements,Permanent Residential,Greenfields Adolecent Development Limited,21035.71, 02-Mar-2016
1124,Revenue,CAHD,CSC - Residential Placements,Permanent Residential,Greenfields Adolecent Development Limited,11535.71, 02-Mar-2016
1125,Revenue,CAHD,CSC - Residential Placements,Permanent Residential,Greenfields Adolecent Development Limited,19678.57, 30-Mar-2016
1126,Revenue,CAHD,CSC - Residential Placements,Permanent Residential,Greenfields Adolecent Development Limited,19678.57, 30-Mar-2016
1127,Revenue,CAHD,Bed Purchasing - North,Permanent Residential,Greensleeves,1344.52, 15-Mar-2016
1128,Revenue,CAHD,Bed Purchasing - South,Permanent Residential,Grove Care,1883.40, 15-Mar-2016
1129,Revenue,CAHD,Bed Purchasing - Southmead Hospital,Respite Emergency - Residential,Gwendoline House,2340.00, 15-Mar-2016
1130,Revenue,CAHD,Bed Purchasing - South,Permanent Residential,Gwendoline House,846.44, 15-Mar-2016
1131,Revenue,CAHD,Bed Purchasing - Southmead Hospital,Permanent Residential,Gwendoline House,1282.04, 15-Mar-2016
1132,Revenue,CAHD,Bed Purchasing - South,Permanent Residential,Gwendoline House,1565.72, 15-Mar-2016
1133,Revenue,CAHD,Bed Purchasing - South,Permanent Residential,Gwendoline House,955.96, 15-Mar-2016
1134,Revenue,CAHD,Bed Purchasing - South,Permanent Residential,Gwendoline House,2446.48, 15-Mar-2016
1135,Revenue,CAHD,Bed Purchasing - South,Permanent Residential,Gwendoline House,1089.16, 15-Mar-2016
1136,Revenue,CAHD,Bed Purchasing - Southmead Hospital,Permanent Residential,Gwendoline House,1342.48, 15-Mar-2016
1137,Revenue,CAHD,Supporting People Programme,Grants to Voluntary Bodies,Habinteg Housing Association,1373.26, 01-Mar-2016
1138,Revenue,CAHD,Bed Purchasing - North,Permanent Nursing,Hambledon House,2988.36, 15-Mar-2016
1139,Revenue,CAHD,Social Lettings Agency,Fees - General,Individual,16.46, 24-Mar-2016
1140,Revenue,CAHD,Social Lettings Agency,Other Supplies & Services,Individual,559.60, 24-Mar-2016
1141,Revenue,CAHD,CSC - Social Work Team - NORTH,Agency Staff (Admin/Support Staff) Pay,Hampton`s Resourcing,19300.00, 01-Mar-2016
1142,Revenue,CAHD,CSC - Social Work Team - NORTH,Other Transport Costs,Hampton`s Resourcing,616.08, 15-Mar-2016
1143,Revenue,CAHD,CSC - Through & Leaving Care Team,Agency Staff (Admin/Support Staff) Pay,Hampton`s Resourcing,1998.00, 08-Mar-2016
1144,Revenue,CAHD,CSC - Through & Leaving Care Team,Agency Staff (Admin/Support Staff) Pay,Hampton`s Resourcing,1620.00, 15-Mar-2016
1145,Revenue,CAHD,CSC - Through & Leaving Care Team,Agency Staff (Admin/Support Staff) Pay,Hampton`s Resourcing,1593.00, 29-Mar-2016
1146,Revenue,CAHD,CSC - Through & Leaving Care Team,Agency Staff (Admin/Support Staff) Pay,Hampton`s Resourcing,1593.00, 01-Mar-2016
1147,Revenue,CAHD,CSC - Through & Leaving Care Team,Agency Staff (Admin/Support Staff) Pay,Hampton`s Resourcing,2349.90, 22-Mar-2016
1148,Revenue,CAHD,Children Centres - North Locality,Occupational Health Fees,Hands Free Computing Ltd,800.00, 17-Mar-2016
1149,Revenue,CAHD,Sexual Health,Other Small Contracts,Hanham Health,1125.28, 21-Mar-2016
1150,Revenue,CAHD,Supporting People Programme,Grants to Voluntary Bodies,Hanover Housing Association,982.83, 01-Mar-2016
1151,Revenue,CAHD,Bed Purchasing - South,Permanent Residential,Harefield Hall,1219.24, 15-Mar-2016
1152,Revenue,CAHD,Bed Purchasing - South,Permanent Residential,Harefield Hall,1150.52, 15-Mar-2016
1153,Revenue,CAHD,Bed Purchasing - South,Permanent Residential,Harefield Hall,955.96, 15-Mar-2016
1154,Revenue,CAHD,Bed Purchasing - South,Permanent Residential,Harefield Hall,1039.04, 15-Mar-2016
1155,Revenue,CAHD,Bed Purchasing - South,Permanent Residential,Harefield Hall,1313.12, 15-Mar-2016
1156,Revenue,CAHD,Bed Purchasing - South,Permanent Residential,Harefield Hall,1254.36, 15-Mar-2016
1157,Revenue,CAHD,Bed Purchasing - Southmead Hospital,Respite Planned - Nursing,Hazelwood Gardens Nursing Home,5461.14, 15-Mar-2016
1158,Revenue,CAHD,Bed Purchasing - Southmead Hospital,Permanent Nursing,Hc-One Ltd,1648.40, 15-Mar-2016
1159,Revenue,CAHD,Bed Purchasing - Southmead Hospital,Permanent Nursing,Hc-One Ltd,1455.24, 15-Mar-2016
1160,Revenue,CAHD,Bed Purchasing - North,Permanent Nursing,Hc-One Ltd,1511.16, 15-Mar-2016
1161,Revenue,CAHD,Bed Purchasing - Southmead Hospital,Respite Planned - Nursing,Hc-One Ltd,3799.71, 15-Mar-2016
1162,Revenue,CAHD,Bed Purchasing - Southmead Hospital,Permanent Nursing,Hc-One Ltd,1268.92, 15-Mar-2016
1163,Revenue,CAHD,Bed Purchasing - North,Permanent Residential,Hc-One Ltd,2083.68, 15-Mar-2016
1164,Revenue,CAHD,Bed Purchasing - North,Permanent Residential,Hc-One Ltd,2083.68, 15-Mar-2016
1165,Revenue,CAHD,Bed Purchasing - North,Permanent Nursing,Hc-One Ltd,822.84, 15-Mar-2016
1166,Revenue,CAHD,Bed Purchasing - Southmead Hospital,Permanent Nursing,Hc-One Ltd,1540.80, 15-Mar-2016
1167,Revenue,CAHD,Bed Purchasing - Southmead Hospital,Permanent Nursing,Hc-One Ltd,1540.80, 15-Mar-2016
1168,Revenue,CAHD,Bed Purchasing - Southmead Hospital,Permanent Nursing,Hc-One Ltd,1480.04, 15-Mar-2016
1169,Revenue,CAHD,Bed Purchasing - Southmead Hospital,Permanent Residential,Head Office,1694.80, 15-Mar-2016
1170,Revenue,CAHD,CSC - Residential Placements,Permanent Residential,Headway Adolescent Resources Limited,6643.00, 24-Mar-2016
1171,Revenue,CAHD,Home Care - Elderly - South,Day Care / Social Activities,Headway Bristol,462.88, 01-Mar-2016
1172,Revenue,CAHD,Home Care - Elderly - North,Day Care / Social Activities,Headway Bristol,746.92, 01-Mar-2016
1173,Revenue,CAHD,Home Care - Elderly - North,Other Small Contracts,Headway Bristol,84.16, 01-Mar-2016
1174,Revenue,CAHD,Home Care - Elderly - South,Day Care / Social Activities,Headway Bristol,399.76, 10-Mar-2016
1175,Revenue,CAHD,Home Care - Elderly - North,Day Care / Social Activities,Headway Bristol,841.60, 10-Mar-2016
1176,Revenue,CAHD,Home Care - Elderly - North,Other Small Contracts,Headway Bristol,42.08, 10-Mar-2016
1177,Revenue,CAHD,Home Care - Elderly - South,Day Care / Social Activities,Headway Bristol,526.00, 17-Mar-2016
1178,Revenue,CAHD,Home Care - Elderly - North,Day Care / Social Activities,Headway Bristol,568.08, 17-Mar-2016
1179,Revenue,CAHD,Home Care - Elderly - North,Other Small Contracts,Headway Bristol,84.16, 17-Mar-2016
1180,Revenue,CAHD,Home Care - Elderly - South,Day Care / Social Activities,Headway Bristol,610.16, 24-Mar-2016
1181,Revenue,CAHD,Home Care - Elderly - North,Day Care / Social Activities,Headway Bristol,599.64, 24-Mar-2016
1182,Revenue,CAHD,Home Care - Elderly - North,Other Small Contracts,Headway Bristol,42.08, 24-Mar-2016
1183,Revenue,CAHD,Home Care - Elderly - South,Day Care / Social Activities,Headway Bristol,526.00, 31-Mar-2016
1184,Revenue,CAHD,Home Care - Elderly - North,Day Care / Social Activities,Headway Bristol,789.00, 31-Mar-2016
1185,Revenue,CAHD,Home Care - Elderly - North,Other Small Contracts,Headway Bristol,42.08, 31-Mar-2016
1186,Revenue,CAHD,Home Care - Elderly - South,Other Small Contracts,Helping Hands Homecare,1675.08, 01-Mar-2016
1187,Revenue,CAHD,Home Care - Elderly - North,Day Care / Social Activities,Helping Hands Homecare,201.96, 01-Mar-2016
1188,Revenue,CAHD,Home Care - Elderly - North,Other Small Contracts,Helping Hands Homecare,2031.48, 01-Mar-2016
1189,Revenue,CAHD,Day Care - North,Day Care / Social Activities,Helping Hands Homecare,51.48, 01-Mar-2016
1190,Revenue,CAHD,Under 65s -MH  Home Care Purch,Other Small Contracts,Helping Hands Homecare,31.68, 01-Mar-2016
1191,Revenue,CAHD,Home care - Elderly MH - North,Other Small Contracts,Helping Hands Homecare,31.68, 01-Mar-2016
1192,Revenue,CAHD,Home Care - Elderly - South,Other Small Contracts,Helping Hands Homecare,1690.92, 01-Mar-2016
1193,Revenue,CAHD,Home Care - Elderly - North,Day Care / Social Activities,Helping Hands Homecare,201.96, 01-Mar-2016
1194,Revenue,CAHD,Home Care - Elderly - North,Other Small Contracts,Helping Hands Homecare,2039.40, 01-Mar-2016
1195,Revenue,CAHD,Day Care - North,Day Care / Social Activities,Helping Hands Homecare,43.56, 01-Mar-2016
1196,Revenue,CAHD,Under 65s -MH  Home Care Purch,Other Small Contracts,Helping Hands Homecare,27.72, 01-Mar-2016
1197,Revenue,CAHD,Home care - Elderly MH - North,Other Small Contracts,Helping Hands Homecare,31.68, 01-Mar-2016
1198,Revenue,CAHD,Home Care - Elderly - South,Other Small Contracts,Helping Hands Homecare,1548.36, 24-Mar-2016
1199,Revenue,CAHD,Home Care - Elderly - North,Day Care / Social Activities,Helping Hands Homecare,138.60, 24-Mar-2016
1200,Revenue,CAHD,Home Care - Elderly - North,Other Small Contracts,Helping Hands Homecare,2082.96, 24-Mar-2016
1201,Revenue,CAHD,Day Care - North,Day Care / Social Activities,Helping Hands Homecare,91.08, 24-Mar-2016
1202,Revenue,CAHD,Under 65s -MH  Home Care Purch,Other Small Contracts,Helping Hands Homecare,31.68, 24-Mar-2016
1203,Revenue,CAHD,Home care - Elderly MH - North,Other Small Contracts,Helping Hands Homecare,63.36, 24-Mar-2016
1204,Revenue,CAHD,Home Care - Elderly - South,Other Small Contracts,Helping Hands Homecare,1461.24, 01-Mar-2016
1205,Revenue,CAHD,Home Care - Elderly - North,Day Care / Social Activities,Helping Hands Homecare,205.92, 01-Mar-2016
1206,Revenue,CAHD,Home Care - Elderly - North,Other Small Contracts,Helping Hands Homecare,1896.84, 01-Mar-2016
1207,Revenue,CAHD,Day Care - North,Day Care / Social Activities,Helping Hands Homecare,19.80, 01-Mar-2016
1208,Revenue,CAHD,Under 65s -MH  Home Care Purch,Other Small Contracts,Helping Hands Homecare,31.68, 01-Mar-2016
1209,Revenue,CAHD,Home care - Elderly MH - North,Other Small Contracts,Helping Hands Homecare,31.68, 01-Mar-2016
1210,Revenue,CAHD,Home Care - Elderly - South,Other Small Contracts,Helping Hands Homecare,1342.44, 01-Mar-2016
1211,Revenue,CAHD,Home Care - Elderly - North,Day Care / Social Activities,Helping Hands Homecare,205.92, 01-Mar-2016
1212,Revenue,CAHD,Home Care - Elderly - North,Other Small Contracts,Helping Hands Homecare,1611.72, 01-Mar-2016
1213,Revenue,CAHD,Day Care - North,Day Care / Social Activities,Helping Hands Homecare,95.04, 01-Mar-2016
1214,Revenue,CAHD,Under 65s -MH  Home Care Purch,Other Small Contracts,Helping Hands Homecare,31.68, 01-Mar-2016
1215,Revenue,CAHD,Home care - Elderly MH - North,Other Small Contracts,Helping Hands Homecare,63.36, 01-Mar-2016
1216,Revenue,CAHD,Home Care - Elderly - South,Other Small Contracts,Helping Hands Homecare,1504.80, 03-Mar-2016
1217,Revenue,CAHD,Home Care - Elderly - North,Day Care / Social Activities,Helping Hands Homecare,205.92, 03-Mar-2016
1218,Revenue,CAHD,Home Care - Elderly - North,Other Small Contracts,Helping Hands Homecare,1912.68, 03-Mar-2016
1219,Revenue,CAHD,Day Care - North,Day Care / Social Activities,Helping Hands Homecare,47.52, 03-Mar-2016
1220,Revenue,CAHD,Under 65s -MH  Home Care Purch,Other Small Contracts,Helping Hands Homecare,31.68, 03-Mar-2016
1221,Revenue,CAHD,Home care - Elderly MH - North,Other Small Contracts,Helping Hands Homecare,63.36, 03-Mar-2016
1222,Revenue,CAHD,Home Care - Elderly - South,Other Small Contracts,Helping Hands Homecare,1401.84, 11-Mar-2016
1223,Revenue,CAHD,Home Care - Elderly - North,Day Care / Social Activities,Helping Hands Homecare,205.92, 11-Mar-2016
1224,Revenue,CAHD,Home Care - Elderly - North,Other Small Contracts,Helping Hands Homecare,1936.44, 11-Mar-2016
1225,Revenue,CAHD,Day Care - North,Day Care / Social Activities,Helping Hands Homecare,59.40, 11-Mar-2016
1226,Revenue,CAHD,Under 65s -MH  Home Care Purch,Other Small Contracts,Helping Hands Homecare,31.68, 11-Mar-2016
1227,Revenue,CAHD,Home care - Elderly MH - North,Other Small Contracts,Helping Hands Homecare,63.36, 11-Mar-2016
1228,Revenue,CAHD,Home Care - Elderly - South,Other Small Contracts,Helping Hands Homecare,1314.72, 18-Mar-2016
1229,Revenue,CAHD,Home Care - Elderly - North,Day Care / Social Activities,Helping Hands Homecare,190.08, 18-Mar-2016
1230,Revenue,CAHD,Home Care - Elderly - North,Other Small Contracts,Helping Hands Homecare,1845.36, 18-Mar-2016
1231,Revenue,CAHD,Day Care - North,Day Care / Social Activities,Helping Hands Homecare,35.64, 18-Mar-2016
1232,Revenue,CAHD,Under 65s -MH  Home Care Purch,Other Small Contracts,Helping Hands Homecare,31.68, 18-Mar-2016
1233,Revenue,CAHD,Home care - Elderly MH - North,Other Small Contracts,Helping Hands Homecare,63.36, 18-Mar-2016
1234,Revenue,CAHD,Home Care - Elderly - South,Other Small Contracts,Helping Hands Homecare,1235.52, 24-Mar-2016
1235,Revenue,CAHD,Home Care - Elderly - North,Day Care / Social Activities,Helping Hands Homecare,209.88, 24-Mar-2016
1236,Revenue,CAHD,Home Care - Elderly - North,Other Small Contracts,Helping Hands Homecare,1845.36, 24-Mar-2016
1237,Revenue,CAHD,Day Care - North,Day Care / Social Activities,Helping Hands Homecare,63.36, 24-Mar-2016
1238,Revenue,CAHD,Under 65s -MH  Home Care Purch,Other Small Contracts,Helping Hands Homecare,27.72, 24-Mar-2016
1239,Revenue,CAHD,Home care - Elderly MH - North,Other Small Contracts,Helping Hands Homecare,63.36, 24-Mar-2016
1240,Revenue,CAHD,Placements OLA Special Schools and RB,Other L.A.'s - General,Henbury Court Primary Academy,833.33, 31-Mar-2016
1241,Revenue,CAHD,S117 Placements PCT,Permanent Residential,Hesley Hall,18406.20, 15-Mar-2016
1242,Revenue,CAHD,Bed Purchasing - Southmead Hospital,Permanent Residential,Highfield House,2092.56, 15-Mar-2016
1243,Revenue,CAHD,Bed Purchasing - Southmead Hospital,Permanent Residential,Highgate Studios,1179.08, 15-Mar-2016
1244,Revenue,CAHD,Early Years High Needs Support,Other Private Contractors,Hillsides Secret Garden Day Nursery,705.00, 22-Mar-2016
1245,Revenue,CAHD,Bed Purchasing - North,Permanent Residential,Holmleigh Care Homes Ltd,4115.32, 15-Mar-2016
1246,Revenue,CAHD,Bed Purchasing - South,Permanent Residential,Holmleigh Care Homes Ltd,4242.44, 15-Mar-2016
1247,Revenue,CAHD,Jointly Funded H&SC Packages,Permanent Residential,Holmleigh Care Homes Ltd,837.52, 15-Mar-2016
1248,Revenue,CAHD,Bed Purchasing - North,Permanent Residential,Home Farm Trust Ltd  5-6 Brook Office Pa,2700.52, 15-Mar-2016
1249,Revenue,CAHD,Bed Purchasing - South,Permanent Residential,Home Farm Trust Ltd  5-6 Brook Office Pa,5174.76, 15-Mar-2016
1250,Revenue,CAHD,Bed Purchasing - North,Permanent Residential,Home Farm Trust Ltd  5-6 Brook Office Pa,3386.32, 15-Mar-2016
1251,Revenue,CAHD,Bed Purchasing - South,Permanent Residential,Home Farm Trust Ltd  5-6 Brook Office Pa,5607.24, 15-Mar-2016
1252,Revenue,CAHD,18-25 Year Olds,Permanent Residential,Home From Home Care Ltd,9086.16, 15-Mar-2016
1253,Revenue,CAHD,Tenancy Start Up Scheme,Other Supplies & Services,Home Turf Lettings,3150.27, 30-Mar-2016
1254,Revenue,CAHD,Home Care - Elderly - South,Other Small Contracts,Homecare 4U,629.57, 01-Mar-2016
1255,Revenue,CAHD,Home Care - Elderly - North,Other Small Contracts,Homecare 4U,814.03, 01-Mar-2016
1256,Revenue,CAHD,Home Care - Elderly - South,Other Small Contracts,Homecare 4U,409.02, 10-Mar-2016
1257,Revenue,CAHD,Home Care - Elderly - North,Other Small Contracts,Homecare 4U,810.02, 10-Mar-2016
1258,Revenue,CAHD,Home Care - Elderly - South,Other Small Contracts,Homecare 4U,268.67, 16-Mar-2016
1259,Revenue,CAHD,Home Care - Elderly - North,Other Small Contracts,Homecare 4U,838.09, 16-Mar-2016
1260,Revenue,CAHD,Home Care - Elderly - South,Other Small Contracts,Homecare 4U,260.65, 21-Mar-2016
1261,Revenue,CAHD,Home Care - Elderly - North,Other Small Contracts,Homecare 4U,806.01, 21-Mar-2016
1262,Revenue,CAHD,Home Care - Elderly - South,Other Small Contracts,Homecare 4U,268.67, 31-Mar-2016
1263,Revenue,CAHD,Home Care - Elderly - North,Other Small Contracts,Homecare 4U,697.74, 31-Mar-2016
1264,Revenue,CAHD,Bed Purchasing - North,Permanent Residential,Homes Caring For Autism Ltd  Churchill H,10015.24, 15-Mar-2016
1265,Revenue,CAHD,18-25 Year Olds,Permanent Residential,Homes Caring For Autism Ltd  Churchill H,13043.96, 15-Mar-2016
1266,Revenue,CAHD,Bed Purchasing - Southmead Hospital,Permanent Nursing,Horfield Care Limited,1380.98, 11-Mar-2016
1267,Revenue,CAHD,Bed Purchasing - Southmead Hospital,Permanent Nursing,Horfield Care Limited,1728.36, 11-Mar-2016
1268,Revenue,CAHD,Bed Purchasing - Frenchay Hospital,Permanent Nursing,Horfield Care Limited,1278.73, 11-Mar-2016
1269,Revenue,CAHD,Bed Purchasing - South,Permanent Nursing,Horfield Care Limited,1276.37, 11-Mar-2016
1270,Revenue,CAHD,Bed Purchasing - Southmead Hospital,Respite Planned - Nursing,Horfield Care Limited,2143.27, 11-Mar-2016
1271,Revenue,CAHD,Supporting People Programme,Grants to Voluntary Bodies,Housing 21,623.07, 01-Mar-2016
1272,Revenue,CAHD,Supporting People Programme,Grants to Voluntary Bodies,Housing 21,945.10, 01-Mar-2016
1273,Revenue,CAHD,Home Care - Elderly - North,Private & Voluntary Home Care,Housing 21,38703.28, 10-Mar-2016
1274,Revenue,CAHD,Home Care - Elderly - South,Private & Voluntary Home Care,Housing 21,24875.25, 01-Mar-2016
1275,Revenue,CAHD,CSC - Vinney Green Secure Unit,Other Premises Costs,Hugh Harris Ltd  t/a Fresh Air Fitness,12830.00, 24-Mar-2016
1276,Revenue,CAHD,CSC - Section 17 - NORTH,Personal Needs of Clients,Impact Mentoring,1125.00, 18-Mar-2016
1277,Revenue,CAHD,CSC - LAT Placements,Personal Needs of Clients,Impact Mentoring,1105.00, 11-Mar-2016
1278,Revenue,CAHD,Independent Special Placements - Pre 16,Other Private Contractors,Include Limited,9666.66, 02-Mar-2016
1279,Revenue,CAHD,Independent Special Placements - Pre 16,Other Private Contractors,Include Limited,4833.33, 02-Mar-2016
1280,Revenue,CAHD,Independent Special Placements - Pre 16,Other Private Contractors,Include Limited,6000.00, 30-Mar-2016
1281,Revenue,CAHD,Independent Special Placements - Pre 16,Other Private Contractors,Include Limited,6000.00, 30-Mar-2016
1282,Revenue,CAHD,CSC - Vinney Green Secure Unit,Premises Maintenance by Contractor,Integral UK Limited,4093.50, 17-Mar-2016
1283,Revenue,CAHD,CSC - LAT Placements,Personal Needs of Clients,Integrated Dental Holdings,1600.00, 17-Mar-2016
1284,Revenue,CAHD,Bed and Breakfast,Bed & Breakfast,IURIE EREMENCO,500.00, 07-Mar-2016
1285,Revenue,CAHD,Social Lettings Agency,Fees - General,Individual,12.22, 11-Mar-2016
1286,Revenue,CAHD,Social Lettings Agency,Other Supplies & Services,Individual,690.32, 11-Mar-2016
1287,Revenue,CAHD,CSC - Professional Fees Foster Carers,Adults - Family Support,Individual,2712.00, 04-Mar-2016
1288,Revenue,CAHD,CSC - Age Related Allowances,Adults - Family Support,Individual,2256.00, 04-Mar-2016
1289,Revenue,CAHD,Social Lettings Agency,Fees - General,Individual,10.53, 01-Mar-2016
1290,Revenue,CAHD,Social Lettings Agency,Other Supplies & Services,Individual,595.11, 01-Mar-2016
1291,Revenue,CAHD,Training - Adult Services,Training Expenses,JK Training,700.00, 02-Mar-2016
1292,Revenue,CAHD,Bed Purchasing - South,Permanent Residential,Jonen House,3651.08, 15-Mar-2016
1293,Revenue,CAHD,Quality and Standards,Consultants Fees,Individual,600.00, 11-Mar-2016
1294,Revenue,CAHD,Quality and Standards,Consultants Fees,Individual,1000.00, 14-Mar-2016
1295,Revenue,CAHD,Quality and Standards,Consultants Fees,Individual,800.00, 14-Mar-2016
1296,Revenue,CAHD,Home Care - Elderly - South,Supported Living,Julia Simone- Supp. Ind.,1178.36, 15-Mar-2016
1297,Revenue,CAHD,Younger MH non-res purchasing,Supported Living,Julia Simone- Supp. Ind.,1178.36, 15-Mar-2016
1298,Revenue,CAHD,Younger MH non-res purchasing,Supported Living,Julia Simone- Supp. Ind.,1178.36, 15-Mar-2016
1299,Revenue,CAHD,Home Care - Elderly - North,Supported Living,Julia Simone- Supp. Ind.,1212.32, 15-Mar-2016
1300,Revenue,CAHD,Younger MH non-res purchasing,Supported Living,Julia Simone- Supp. Ind.,1178.20, 15-Mar-2016
1301,Revenue,CAHD,Bed Purchasing - South,Permanent Residential,Julia Simone- Supp. Ind.,4004.36, 15-Mar-2016
1302,Revenue,CAHD,Bed purchasing -S28A  Under 65 - North,Permanent Residential,Julia Simone- Supp. Ind.,3533.32, 15-Mar-2016
1303,Revenue,CAHD,Preventative Services Management,Consultants Fees,Individual,4919.25, 31-Mar-2016
1304,Revenue,CAHD,Statemented Support Payments to OLAs,Other L.A.'s - General,Katharine Lady Berkeley School,533.30, 31-Mar-2016
1305,Revenue,CAHD,Schools Specific Grant Income,Other Public Bodies,Katharine Lady Berkeley School,633.33, 14-Mar-2016
1306,Revenue,CAHD,Schools Specific Grant Income,Other Public Bodies,Katharine Lady Berkeley School,633.33, 14-Mar-2016
1307,Revenue,CAHD,Community Support - North,Preventative Assistance,KCC Cleaning Services Limited,1242.00, 11-Mar-2016
1308,Revenue,CAHD,Community Support - North,Preventative Assistance,KCC Cleaning Services Limited,898.94, 11-Mar-2016
1309,Revenue,CAHD,Sexual Health,Other Small Contracts,Kennedy Way Surgery,918.80, 21-Mar-2016
1310,Revenue,CAHD,Home Care - Elderly - South,Other Small Contracts,Kensington Community Care,1531.62, 08-Mar-2016
1311,Revenue,CAHD,Home Care - Elderly - North,Other Small Contracts,Kensington Community Care,4699.38, 08-Mar-2016
1312,Revenue,CAHD,Home Care - Elderly - South,Other Small Contracts,Kensington Community Care,1825.08, 16-Mar-2016
1313,Revenue,CAHD,Home Care - Elderly - North,Other Small Contracts,Kensington Community Care,5306.40, 16-Mar-2016
1314,Revenue,CAHD,Home Care - Elderly - South,Other Small Contracts,Kensington Community Care,2122.56, 16-Mar-2016
1315,Revenue,CAHD,Home Care - Elderly - North,Other Small Contracts,Kensington Community Care,4675.26, 16-Mar-2016
1316,Revenue,CAHD,Home Care - Elderly - South,Other Small Contracts,Kensington Community Care,2098.44, 29-Mar-2016
1317,Revenue,CAHD,Home Care - Elderly - North,Other Small Contracts,Kensington Community Care,4807.92, 29-Mar-2016
1318,Revenue,CAHD,Bed Purchasing - Southmead Hospital,Permanent Residential,Kenver House Residential Home,1664.04, 15-Mar-2016
1319,Revenue,CAHD,Bed Purchasing - Southmead Hospital,Permanent Residential,Kenver House Residential Home,1685.08, 15-Mar-2016
1320,Revenue,CAHD,Bed Purchasing - South,Permanent Residential,Kenver House Residential Home,1153.00, 15-Mar-2016
1321,Revenue,CAHD,MH Purchasing - Younger,Permanent Residential,Kenver House Residential Home,1721.08, 15-Mar-2016
1322,Revenue,CAHD,Bed Purchasing - South,Permanent Residential,Kenver House Residential Home,1388.84, 15-Mar-2016
1323,Revenue,CAHD,Bed Purchasing - South,Permanent Residential,Kenver House Residential Home,1685.08, 15-Mar-2016
1324,Revenue,CAHD,Bed Purchasing - North,Permanent Residential,Kenver House Residential Home,1542.36, 15-Mar-2016
1325,Revenue,CAHD,Bed Purchasing - Southmead Hospital,Permanent Residential,Kenver House Residential Home,1748.00, 15-Mar-2016
1326,Revenue,CAHD,Bed purchasing - Elderly S117 - South,Permanent Residential,Kenver House Residential Home,2255.60, 15-Mar-2016
1327,Revenue,CAHD,Bed Purchasing - South,Permanent Residential,Kenver House Residential Home,1277.20, 15-Mar-2016
1328,Revenue,CAHD,Bed Purchasing - Southmead Hospital,Permanent Residential,Kenver House Residential Home,1685.00, 15-Mar-2016
1329,Revenue,CAHD,Bed Purchasing - South,Permanent Residential,Kenver House Residential Home,1685.08, 15-Mar-2016
1330,Revenue,CAHD,CSC - Care Leavers Independent Living,Independent Living,Key2 Futures Limited,3037.01, 24-Mar-2016
1331,Revenue,CAHD,CSC - Care Leavers Independent Living,Adults - Family Support,Key2 Futures Limited,1052.81, 24-Mar-2016
1332,Revenue,CAHD,CSC - Care Leavers Independent Living,Adults - Family Support,Key2 Futures Limited,2967.01, 24-Mar-2016
1333,Revenue,CAHD,CSC - Care Leavers Independent Living,Adults - Family Support,Key2 Futures Limited,2501.39, 24-Mar-2016
1334,Revenue,CAHD,CSC - Care Leavers Independent Living,Adults - Family Support,Key2 Futures Limited,2967.01, 24-Mar-2016
1335,Revenue,CAHD,CSC - Care Leavers Independent Living,Adults - Family Support,Key2 Futures Limited,967.51, 24-Mar-2016
1336,Revenue,CAHD,CSC - Care Leavers Independent Living,Independent Living,Key2 Futures Limited,2967.01, 24-Mar-2016
1337,Revenue,CAHD,CSC - Care Leavers Independent Living,Adults - Family Support,Key2 Futures Limited,2559.36, 24-Mar-2016
1338,Revenue,CAHD,CSC - Care Leavers Independent Living,Independent Living,Key2 Futures Limited,2967.01, 01-Mar-2016
1339,Revenue,CAHD,CSC - Care Leavers Independent Living,Adults - Family Support,Key2 Futures Limited,2967.01, 01-Mar-2016
1340,Revenue,CAHD,CSC - Care Leavers Independent Living,Adults - Family Support,Key2 Futures Limited,2967.01, 01-Mar-2016
1341,Revenue,CAHD,CSC - Care Leavers Independent Living,Adults - Family Support,Key2 Futures Limited,2501.70, 01-Mar-2016
1342,Revenue,CAHD,CSC - Care Leavers Independent Living,Adults - Family Support,Key2 Futures Limited,967.51, 01-Mar-2016
1343,Revenue,CAHD,CSC - Care Leavers Independent Living,Independent Living,Key2 Futures Limited,2967.01, 01-Mar-2016
1344,Revenue,CAHD,CSC - Care Leavers Independent Living,Adults - Family Support,Key2 Futures Limited,1722.78, 01-Mar-2016
1345,Revenue,CAHD,CSC - Care Leavers Independent Living,Adults - Family Support,Key2 Futures Limited,2559.36, 01-Mar-2016
1346,Revenue,CAHD,CSC - Section 17,Daily Living Equipment,Key2 Futures Limited,680.00, 30-Mar-2016
1347,Revenue,CAHD,CSC - Care Leavers Independent Living,Adults - Family Support,Key2 Futures Limited,2775.59, 30-Mar-2016
1348,Revenue,CAHD,CSC - Care Leavers Independent Living,Adults - Family Support,Key2 Futures Limited,2775.59, 30-Mar-2016
1349,Revenue,CAHD,CSC - Care Leavers Independent Living,Adults - Family Support,Key2 Futures Limited,2775.59, 30-Mar-2016
1350,Revenue,CAHD,CSC - Care Leavers Independent Living,Adults - Family Support,Key2 Futures Limited,2273.60, 30-Mar-2016
1351,Revenue,CAHD,CSC - Care Leavers Independent Living,Adults - Family Support,Key2 Futures Limited,885.95, 30-Mar-2016
1352,Revenue,CAHD,CSC - Care Leavers Independent Living,Independent Living,Key2 Futures Limited,2775.59, 30-Mar-2016
1353,Revenue,CAHD,CSC - Care Leavers Independent Living,Adults - Family Support,Key2 Futures Limited,2394.24, 30-Mar-2016
1354,Revenue,CAHD,Supporting People Programme,Grants to Voluntary Bodies,Keyring Living Support Networks,2948.50, 01-Mar-2016
1355,Revenue,CAHD,Home Care - Elderly - North,Day Care / Social Activities,Keyring Living Support Networks,512.00, 08-Mar-2016
1356,Revenue,CAHD,CSC - Residential Placements,Permanent Residential,Keys Education & Care Limited,15714.16, 24-Mar-2016
1357,Revenue,CAHD,CSC - Residential Placements,Permanent Residential,Keys Education & Care Limited,22142.68, 24-Mar-2016
1358,Revenue,CAHD,Younger MH non-res purchasing,Other Small Contracts,Keystones Mental Health Support Services LTD,941.99, 21-Mar-2016
1359,Revenue,CAHD,Younger MH non-res purchasing,Other Small Contracts,Keystones Mental Health Support Services LTD,627.99, 21-Mar-2016
1360,Revenue,CAHD,Bed Purchasing - North,Permanent Nursing,Kingfisher Lodge Care Centre,2531.88, 15-Mar-2016
1361,Revenue,CAHD,Sexual Health,Other Small Contracts,Kingswood Health Centre,2147.32, 21-Mar-2016
1362,Revenue,CAHD,Supporting People Programme,Grants to Voluntary Bodies,Kingswood Young Homeless Project,17126.66, 01-Mar-2016
1363,Revenue,CAHD,CSC - Adoption West Project,Consultants Fees,Kirsty Howie,3200.00, 15-Mar-2016
1364,Revenue,CAHD,Bed Purchasing - North,Permanent Residential,Kisimul Group,11512.80, 15-Mar-2016
1365,Revenue,CAHD,Supporting People Programme,Grants to Voluntary Bodies,Knightstone Housing Association Limited,13659.70, 01-Mar-2016
1366,Revenue,CAHD,Supporting People Programme,Grants to Voluntary Bodies,Knightstone Housing Association Limited,7684.61, 01-Mar-2016
1367,Revenue,CAHD,Supporting People Programme,Grants to Voluntary Bodies,Knightstone Housing Association Limited,1809.08, 01-Mar-2016
1368,Revenue,CAHD,Supporting People Programme,Grants to Voluntary Bodies,Knightstone Housing Association Limited,2509.56, 01-Mar-2016
1369,Revenue,CAHD,Supporting People Programme,Grants to Voluntary Bodies,Knightstone Housing Association Limited,2510.15, 01-Mar-2016
1370,Revenue,CAHD,Supporting People Programme,Grants to Voluntary Bodies,Knightstone Housing Association Limited,853.70, 01-Mar-2016
1371,Revenue,CAHD,Supporting People Programme,Grants to Voluntary Bodies,Knightstone Housing Association Limited,8630.13, 01-Mar-2016
1372,Revenue,CAHD,Placements OLA Special Schools and RB,Other L.A.'s - General,Knowle DGE,2198.37, 31-Mar-2016
1373,Revenue,CAHD,Placements OLA Special Schools and RB,Other L.A.'s - General,Knowle DGE,948.33, 31-Mar-2016
1374,Revenue,CAHD,Schools Specific Grant Income,Other Public Bodies,Knowle DGE,633.33, 14-Mar-2016
1375,Revenue,CAHD,Schools Specific Grant Income,Other Public Bodies,Knowle DGE,633.33, 14-Mar-2016
1376,Revenue,CAHD,Schools Specific Grant Income,Other Public Bodies,Knowle DGE,633.33, 14-Mar-2016
1377,Revenue,CAHD,Schools Specific Grant Income,Other Public Bodies,Knowle DGE,633.33, 14-Mar-2016
1378,Revenue,CAHD,Placements OLA Special Schools and RB,Other L.A.'s - General,Knowle DGE,948.33, 31-Mar-2016
1379,Revenue,CAHD,Home Care - Elderly - South,Other Small Contracts,Kumari Care Limited,1892.44, 10-Mar-2016
1380,Revenue,CAHD,Home Care - Elderly - North,Other Small Contracts,Kumari Care Limited,833.86, 10-Mar-2016
1381,Revenue,CAHD,Home Care - Elderly - South,Other Small Contracts,Kumari Care Limited,1908.08, 08-Mar-2016
1382,Revenue,CAHD,Home Care - Elderly - North,Other Small Contracts,Kumari Care Limited,833.86, 08-Mar-2016
1383,Revenue,CAHD,Home Care - Elderly - South,Other Small Contracts,Kumari Care Limited,1888.53, 10-Mar-2016
1384,Revenue,CAHD,Home Care - Elderly - North,Other Small Contracts,Kumari Care Limited,833.86, 10-Mar-2016
1385,Revenue,CAHD,Home Care - Elderly - South,Other Small Contracts,Kumari Care Limited,1904.17, 18-Mar-2016
1386,Revenue,CAHD,Home Care - Elderly - North,Other Small Contracts,Kumari Care Limited,834.65, 18-Mar-2016
1387,Revenue,CAHD,Home Care - Elderly - South,Other Small Contracts,Kumari Care Limited,1888.53, 30-Mar-2016
1388,Revenue,CAHD,Home Care - Elderly - North,Other Small Contracts,Kumari Care Limited,834.64, 30-Mar-2016
1389,Revenue,CAHD,Quality and Standards,Consultants Fees,L P Educational Consultancy Limited,500.00, 21-Mar-2016
1390,Revenue,CAHD,CSC - Vinney Green Secure Unit,Other Premises Costs,Lancer Scott Limited,21415.00, 11-Mar-2016
1391,Revenue,CAHD,Bed purchasing - Elderly S117 - South,Permanent Nursing,Lavender Lodge Limited,8404.52, 15-Mar-2016
1392,Revenue,CAHD,Youth Centres South Locality,Project Funding,Individual,450.00, 24-Mar-2016
1393,Revenue,CAHD,Youth Centres South Locality,Other Supplies & Services,Individual,50.00, 24-Mar-2016
1394,Revenue,CAHD,Bed Purchasing - North,Permanent Nursing,Leonard Cheshire  National Account Centr,5090.88, 15-Mar-2016
1395,Revenue,CAHD,Bed Purchasing - North,Permanent Residential,Leonard Cheshire  National Account Centr,2948.64, 15-Mar-2016
1396,Revenue,CAHD,Bed Purchasing - South,Permanent Residential,Leonard Cheshire  National Account Centr,3376.16, 15-Mar-2016
1397,Revenue,CAHD,Bed Purchasing - North,Permanent Nursing,Leonard Cheshire  National Account Centr,3559.68, 15-Mar-2016
1398,Revenue,CAHD,Bed Purchasing - North,Permanent Nursing,Leonard Cheshire  National Account Centr,2858.32, 15-Mar-2016
1399,Revenue,CAHD,18-25 Year Olds,Permanent Residential,Leonard Cheshire  National Account Centr,3231.92, 15-Mar-2016
1400,Revenue,CAHD,Bed Purchasing - North,Permanent Residential,Leonard Cheshire  National Account Centr,6024.88, 15-Mar-2016
1401,Revenue,CAHD,Bed Purchasing - North,Permanent Residential,Leonard Cheshire  National Account Centr,6023.32, 15-Mar-2016
1402,Revenue,CAHD,Bed Purchasing - South,Permanent Residential,Leonard Cheshire  National Account Centr,4544.12, 15-Mar-2016
1403,Revenue,CAHD,Bed Purchasing - North,Permanent Nursing,Leonard Cheshire  National Account Centr,2913.28, 15-Mar-2016
1404,Revenue,CAHD,Bed Purchasing - North,Permanent Nursing,Leonard Cheshire  National Account Centr,3912.16, 15-Mar-2016
1405,Revenue,CAHD,Bed Purchasing - North,Permanent Residential,Leonard Cheshire  National Account Centr,2965.36, 15-Mar-2016
1406,Revenue,CAHD,Bed Purchasing - North,Permanent Nursing,Leonard Cheshire  National Account Centr,3306.84, 15-Mar-2016
1407,Revenue,CAHD,Bed Purchasing - North,Permanent Nursing,Leonard Cheshire  National Account Centr,5663.60, 15-Mar-2016
1408,Revenue,CAHD,Bed Purchasing - South,Permanent Nursing,Leonard Cheshire  National Account Centr,2940.92, 15-Mar-2016
1409,Revenue,CAHD,Bed Purchasing - Southmead Hospital,Permanent Nursing,Leonard Cheshire  National Account Centr,3075.12, 15-Mar-2016
1410,Revenue,CAHD,South Glos Users in all other LA Homes,Permanent Nursing,Leonard Cheshire  National Account Centr,616.56, 15-Mar-2016
1411,Revenue,CAHD,Bed Purchasing - North,Permanent Nursing,Leonard Cheshire  National Account Centr,3363.96, 15-Mar-2016
1412,Revenue,CAHD,Bed Purchasing - North,Permanent Nursing,Leonard Cheshire  National Account Centr,4167.96, 15-Mar-2016
1413,Revenue,CAHD,Supported Living - North,Private & Voluntary Home Care,Lifeways Community Care (Gloucester) Limited,11758.56, 16-Mar-2016
1414,Revenue,CAHD,CSC - Allowances,Post Adoption,Individual,1440.00, 18-Mar-2016
1415,Revenue,CAHD,CSC - Allowances,Post Adoption,Individual,1230.00, 14-Mar-2016
1416,Revenue,CAHD,Section 117 Placements MH Younger,Permanent Residential,Little Croft,2200.00, 15-Mar-2016
1417,Revenue,CAHD,Bed Purchasing - Southmead Hospital,Permanent Residential,Little Croft,1085.24, 15-Mar-2016
1418,Revenue,CAHD,Bed Purchasing - Southmead Hospital,Permanent Residential,Little Croft,1269.32, 15-Mar-2016
1419,Revenue,CAHD,Bed Purchasing - North,Permanent Residential,Little Croft,1230.92, 15-Mar-2016
1420,Revenue,CAHD,Bed Purchasing - South,Respite Planned - Residential,Little Croft,2000.00, 15-Mar-2016
1421,Revenue,CAHD,Bed Purchasing - Southmead Hospital,Permanent Residential,Little Croft,1300.28, 15-Mar-2016
1422,Revenue,CAHD,Bed Purchasing - Southmead Hospital,Permanent Residential,Little Croft,1278.80, 15-Mar-2016
1423,Revenue,CAHD,Bed Purchasing - North,Permanent Residential,Little Croft,1217.96, 15-Mar-2016
1424,Revenue,CAHD,Bed Purchasing - Southmead Hospital,Permanent Residential,Little Croft,6349.87, 15-Mar-2016
1425,Revenue,CAHD,Bed Purchasing - South,Respite Planned - Residential,Little Croft,550.00, 15-Mar-2016
1426,Revenue,CAHD,Bed Purchasing - South,Permanent Residential,Little Croft,908.60, 15-Mar-2016
1427,Revenue,CAHD,Bed Purchasing - Southmead Hospital,Permanent Residential,Little Croft,1763.48, 15-Mar-2016
1428,Revenue,CAHD,Bed Purchasing - Southmead Hospital,Permanent Residential,Little Croft,1776.00, 15-Mar-2016
1429,Revenue,CAHD,Bed Purchasing - Southmead Hospital,Permanent Residential,Little Croft,1478.80, 15-Mar-2016
1430,Revenue,CAHD,Bed Purchasing - South,Permanent Residential,Little Croft,1442.80, 15-Mar-2016
1431,Revenue,CAHD,Bed Purchasing - South,Permanent Residential,Little Croft,1030.57, 15-Mar-2016
1432,Revenue,CAHD,Bed Purchasing - Southmead Hospital,Permanent Residential,Little Croft,1442.80, 15-Mar-2016
1433,Revenue,CAHD,Bed Purchasing - Southmead Hospital,Permanent Residential,Little Croft,1233.68, 15-Mar-2016
1434,Revenue,CAHD,Bed Purchasing - North,Permanent Residential,Little Croft,1075.60, 15-Mar-2016
1435,Revenue,CAHD,Bed Purchasing - South,Permanent Residential,Little Croft,1422.92, 15-Mar-2016
1436,Revenue,CAHD,Bed Purchasing - Southmead Hospital,Permanent Residential,Little Croft,1270.80, 15-Mar-2016
1437,Revenue,CAHD,Bed Purchasing - Southmead Hospital,Permanent Residential,Little Croft,1270.80, 15-Mar-2016
1438,Revenue,CAHD,Bed Purchasing - Southmead Hospital,Permanent Residential,Little Croft,1494.80, 15-Mar-2016
1439,Revenue,CAHD,Early Years High Needs Support,Other Private Contractors,Little Oaks Day Nursery & Pre-school,649.44, 31-Mar-2016
1440,Revenue,CAHD,Bed Purchasing - North,Permanent Residential,Littlecroft Residential Homes  Longcroft,6478.92, 15-Mar-2016
1441,Revenue,CAHD,Ambitions Events,Consultants Fees,Individual,750.00, 01-Mar-2016
1442,Revenue,CAHD,Ambitions Events,Consultants Fees,Individual,500.00, 18-Mar-2016
1443,Revenue,CAHD,Home Care - Elderly - South,Day Care / Social Activities,Lloyds TSB Commercial Finance Limited,4884.00, 17-Mar-2016
1444,Revenue,CAHD,Home Care - Elderly - South,Other Small Contracts,Lloyds TSB Commercial Finance Limited,5369.92, 17-Mar-2016
1445,Revenue,CAHD,Home Care - Elderly - South,Supported Living,Lloyds TSB Commercial Finance Limited,8068.98, 17-Mar-2016
1446,Revenue,CAHD,Home Care - Elderly - North,Day Care / Social Activities,Lloyds TSB Commercial Finance Limited,325.60, 17-Mar-2016
1447,Revenue,CAHD,Home Care - Elderly - North,Supported Living,Lloyds TSB Commercial Finance Limited,1448.92, 17-Mar-2016
1448,Revenue,CAHD,Younger MH non-res purchasing,Other Small Contracts,Lloyds TSB Commercial Finance Limited,10678.38, 17-Mar-2016
1449,Revenue,CAHD,Younger MH non-res purchasing,Supported Living,Lloyds TSB Commercial Finance Limited,105.20, 17-Mar-2016
1450,Revenue,CAHD,Home Care - Elderly - South,Day Care / Social Activities,Lloyds TSB Commercial Finance Limited,4708.99, 16-Mar-2016
1451,Revenue,CAHD,Home Care - Elderly - South,Other Small Contracts,Lloyds TSB Commercial Finance Limited,5378.06, 16-Mar-2016
1452,Revenue,CAHD,Home Care - Elderly - South,Supported Living,Lloyds TSB Commercial Finance Limited,7322.81, 16-Mar-2016
1453,Revenue,CAHD,Home Care - Elderly - North,Day Care / Social Activities,Lloyds TSB Commercial Finance Limited,325.60, 16-Mar-2016
1454,Revenue,CAHD,Home Care - Elderly - North,Supported Living,Lloyds TSB Commercial Finance Limited,1823.36, 16-Mar-2016
1455,Revenue,CAHD,Younger MH non-res purchasing,Other Small Contracts,Lloyds TSB Commercial Finance Limited,10646.82, 16-Mar-2016
1456,Revenue,CAHD,Younger MH non-res purchasing,Supported Living,Lloyds TSB Commercial Finance Limited,105.20, 16-Mar-2016
1457,Revenue,CAHD,Home Care - Elderly - South,Day Care / Social Activities,Lloyds TSB Commercial Finance Limited,4879.93, 17-Mar-2016
1458,Revenue,CAHD,Home Care - Elderly - South,Other Small Contracts,Lloyds TSB Commercial Finance Limited,5341.43, 17-Mar-2016
1459,Revenue,CAHD,Home Care - Elderly - South,Supported Living,Lloyds TSB Commercial Finance Limited,8340.35, 17-Mar-2016
1460,Revenue,CAHD,Home Care - Elderly - North,Day Care / Social Activities,Lloyds TSB Commercial Finance Limited,244.20, 17-Mar-2016
1461,Revenue,CAHD,Home Care - Elderly - North,Supported Living,Lloyds TSB Commercial Finance Limited,1562.88, 17-Mar-2016
1462,Revenue,CAHD,Younger MH non-res purchasing,Other Small Contracts,Lloyds TSB Commercial Finance Limited,10646.82, 17-Mar-2016
1463,Revenue,CAHD,Younger MH non-res purchasing,Supported Living,Lloyds TSB Commercial Finance Limited,105.20, 17-Mar-2016
1464,Revenue,CAHD,CSC-Adoption Support Fund,Post Adoption,Lloyds TSB Commercial Finance Limited,550.00, 04-Mar-2016
1465,Revenue,CAHD,CSC-Adoption Support Fund,Post Adoption,Lloyds TSB Commercial Finance Limited,550.00, 18-Mar-2016
1466,Revenue,CAHD,Access Team,Care Management/Assessment Staff Pay,Lloyds TSB Commercial Finance Limited,1880.03, 04-Mar-2016
1467,Revenue,CAHD,Access Team,Care Management/Assessment Staff Pay,Lloyds TSB Commercial Finance Limited,1864.59, 11-Mar-2016
1468,Revenue,CAHD,CSC - Fostering General,Advertising - General,Local World Limited,544.00, 01-Mar-2016
1469,Revenue,CAHD,CSC - Fostering General,Advertising - General,Local World Limited,544.00, 21-Mar-2016
1470,Revenue,CAHD,Home Care - Elderly - North,Day Care / Social Activities,Lower Kilcott,1481.84, 15-Mar-2016
1471,Revenue,CAHD,Home Care - Elderly - North,Day Care / Social Activities,Lower Kilcott,710.16, 15-Mar-2016
1472,Revenue,CAHD,Home Care - Elderly - North,Day Care / Social Activities,Lower Kilcott,566.68, 15-Mar-2016
1473,Revenue,CAHD,Social Lettings Agency,Fees - General,Individual,13.60, 04-Mar-2016
1474,Revenue,CAHD,Social Lettings Agency,Other Supplies & Services,Individual,768.40, 04-Mar-2016
1475,Revenue,CAHD,Bed Purchasing - Southmead Hospital,Permanent Nursing,Majestic 3 Limited,1004.20, 15-Mar-2016
1476,Revenue,CAHD,EY- 3 & 4 year old payments to providers,Preventative Assistance,Mama Bears Day Nursery Ltd,667.80, 04-Mar-2016
1477,Revenue,CAHD,Bed Purchasing - South,Permanent Residential,Manor Cottage,1865.68, 15-Mar-2016
1478,Revenue,CAHD,Bed Purchasing - Southmead Hospital,Permanent Residential,Manor Cottage,1270.80, 15-Mar-2016
1479,Revenue,CAHD,Bed Purchasing - South,Permanent Residential,Manor Cottage,1814.80, 15-Mar-2016
1480,Revenue,CAHD,Bed Purchasing - Southmead Hospital,Permanent Residential,Manor Cottage,1041.92, 15-Mar-2016
1481,Revenue,CAHD,Bed Purchasing - South,Permanent Residential,Manor Cottage,1464.20, 15-Mar-2016
1482,Revenue,CAHD,Bed Purchasing - South,Permanent Residential,Manor Cottage,1516.40, 15-Mar-2016
1483,Revenue,CAHD,Bed Purchasing - North,Permanent Residential,Manton Hall Residential Home,1542.80, 15-Mar-2016
1484,Revenue,CAHD,Home Care - Elderly - South,Supported Living,Maples Community Care Limited,32335.13, 11-Mar-2016
1485,Revenue,CAHD,Younger MH non-res purchasing,Supported Living,Maples Community Care Limited,12934.01, 11-Mar-2016
1486,Revenue,CAHD,Home Care - Elderly - South,Supported Living,Maples Community Care Limited,3288.99, 11-Mar-2016
1487,Revenue,CAHD,Home Care - Elderly - South,Supported Living,Maples Community Care Limited,3887.21, 24-Mar-2016
1488,Revenue,CAHD,Home Care - Elderly - South,Supported Living,Maples Community Care Limited,558.88, 24-Mar-2016
1489,Revenue,CAHD,Younger MH non-res purchasing,Supported Living,Maples Community Care Limited,828.34, 24-Mar-2016
1490,Revenue,CAHD,Younger MH non-res purchasing,Supported Living,Maples Community Care Limited,14525.14, 11-Mar-2016
1491,Revenue,CAHD,Younger MH non-res purchasing,Supported Living,Maples Community Care Limited,798.40, 11-Mar-2016
1492,Revenue,CAHD,Younger MH non-res purchasing,Supported Living,Maples Community Care Limited,798.40, 11-Mar-2016
1493,Revenue,CAHD,Younger MH non-res purchasing,Supported Living,Maples Community Care Limited,728.54, 21-Mar-2016
1494,Revenue,CAHD,Younger MH non-res purchasing,Supported Living,Maples Community Care Limited,1197.60, 22-Mar-2016
1495,Revenue,CAHD,Home Care - Elderly - South,Supported Living,Maples Community Care Limited,918.16, 29-Mar-2016
1496,Revenue,CAHD,Home Care - Elderly - South,Supported Living,Maples Community Care Limited,4421.14, 21-Mar-2016
1497,Revenue,CAHD,Home Care - Elderly - South,Supported Living,Maples Community Care Limited,558.88, 22-Mar-2016
1498,Revenue,CAHD,Younger MH non-res purchasing,Supported Living,Maples Community Care Limited,1197.60, 21-Mar-2016
1499,Revenue,CAHD,Home Care - Elderly - South,Supported Living,Maples Community Care Limited,908.18, 24-Mar-2016
1500,Revenue,CAHD,Younger MH non-res purchasing,Supported Living,Maples Community Care Limited,718.56, 21-Mar-2016
1501,Revenue,CAHD,Younger MH non-res purchasing,Supported Living,Maples Community Care Limited,1400.00, 15-Mar-2016
1502,Revenue,CAHD,Home Care - Elderly - South,Supported Living,Maples Community Care Limited,1400.00, 15-Mar-2016
1503,Revenue,CAHD,Home Care - Elderly - South,Supported Living,Maples Community Care Limited,1400.00, 15-Mar-2016
1504,Revenue,CAHD,Younger MH non-res purchasing,Supported Living,Maples Community Care Limited,1400.00, 15-Mar-2016
1505,Revenue,CAHD,Younger MH non-res purchasing,Supported Living,Maples Community Care Limited,1400.00, 15-Mar-2016
1506,Revenue,CAHD,Younger MH non-res purchasing,Supported Living,Maples Community Care Limited,1400.00, 15-Mar-2016
1507,Revenue,CAHD,Social Lettings Agency,Fees - General,Individual,12.22, 18-Mar-2016
1508,Revenue,CAHD,Social Lettings Agency,Other Supplies & Services,Individual,690.32, 18-Mar-2016
1509,Revenue,CAHD,Independent Special Placements - Post 16,Other Private Contractors,Mark College,13581.00, 08-Mar-2016
1510,Revenue,CAHD,Bed Purchasing - South,Permanent Residential,Marsden Healthcare Ltd,1276.04, 15-Mar-2016
1511,Revenue,CAHD,Bed Purchasing - South,Permanent Residential,Marsden Healthcare Ltd,3278.84, 15-Mar-2016
1512,Revenue,CAHD,Bed Purchasing - South,Permanent Residential,Marsden Healthcare Ltd,1538.08, 15-Mar-2016
1513,Revenue,CAHD,Schools Specific Grant Income,Other Public Bodies,Matravers School,633.33, 14-Mar-2016
1514,Revenue,CAHD,Schools Specific Grant Income,Other Public Bodies,Matravers School,633.34, 14-Mar-2016
1515,Revenue,CAHD,Schools Specific Grant Income,Other Public Bodies,Matravers School,633.33, 14-Mar-2016
1516,Revenue,CAHD,Bed Purchasing - South,Permanent Nursing,Meadow Care Home,1552.32, 15-Mar-2016
1517,Revenue,CAHD,Bed Purchasing - Elderly S117- North,Permanent Nursing,Meadow Care Home,3800.00, 15-Mar-2016
1518,Revenue,CAHD,Bed purchasing - Elderly S117 - South,Permanent Nursing,Meadow Care Home,2420.00, 15-Mar-2016
1519,Revenue,CAHD,Home Care - Elderly - South,Day Care / Social Activities,Mears Care,93.60, 21-Mar-2016
1520,Revenue,CAHD,Home Care - Elderly - South,Other Small Contracts,Mears Care,1119.30, 21-Mar-2016
1521,Revenue,CAHD,Home Care - Elderly - North,Other Small Contracts,Mears Care,3322.80, 21-Mar-2016
1522,Revenue,CAHD,Home Care - Elderly - South,Day Care / Social Activities,Mears Care,93.60, 21-Mar-2016
1523,Revenue,CAHD,Home Care - Elderly - South,Other Small Contracts,Mears Care,1212.90, 21-Mar-2016
1524,Revenue,CAHD,Home Care - Elderly - North,Other Small Contracts,Mears Care,3338.40, 21-Mar-2016
1525,Revenue,CAHD,Home Care - Elderly - South,Day Care / Social Activities,Mears Care,93.60, 21-Mar-2016
1526,Revenue,CAHD,Home Care - Elderly - South,Other Small Contracts,Mears Care,1263.60, 21-Mar-2016
1527,Revenue,CAHD,Home Care - Elderly - North,Other Small Contracts,Mears Care,3276.00, 21-Mar-2016
1528,Revenue,CAHD,Home Care - Elderly - South,Private & Voluntary Home Care,Mears Care,49770.25, 24-Mar-2016
1529,Revenue,CAHD,Turnberries,Equipment Maintenance,Medaco,562.00, 09-Mar-2016
1530,Revenue,CAHD,Home Care - Elderly - South,Other Small Contracts,Medacs Home Care,35.40, 01-Mar-2016
1531,Revenue,CAHD,Home Care - Elderly - North,Other Small Contracts,Medacs Home Care,626.58, 01-Mar-2016
1532,Revenue,CAHD,Home Care - Elderly - South,Other Small Contracts,Medacs Home Care,14.16, 10-Mar-2016
1533,Revenue,CAHD,Home Care - Elderly - North,Other Small Contracts,Medacs Home Care,665.52, 10-Mar-2016
1534,Revenue,CAHD,Home Care - Elderly - South,Other Small Contracts,Medacs Home Care,14.16, 16-Mar-2016
1535,Revenue,CAHD,Home Care - Elderly - North,Other Small Contracts,Medacs Home Care,665.52, 16-Mar-2016
1536,Revenue,CAHD,Home Care - Elderly - South,Other Small Contracts,Medacs Home Care,14.16, 31-Mar-2016
1537,Revenue,CAHD,Home Care - Elderly - North,Other Small Contracts,Medacs Home Care,644.28, 31-Mar-2016
1538,Revenue,CAHD,Home Care - Elderly - South,Other Small Contracts,Medacs Home Care,14.16, 31-Mar-2016
1539,Revenue,CAHD,Home Care - Elderly - North,Other Small Contracts,Medacs Home Care,679.68, 31-Mar-2016
1540,Revenue,CAHD,CSC - OT Equipment - Children,Daily Living Equipment,Medequip Assistive Technology Limited,484.68, 30-Mar-2016
1541,Revenue,CAHD,ICES / NRS Contract,Daily Living Equipment,Medequip Assistive Technology Limited,323.13, 30-Mar-2016
1542,Revenue,CAHD,ICES / NRS Contract,Daily Living Equipment,Medequip Assistive Technology Limited,484.69, 30-Mar-2016
1543,Revenue,CAHD,CSC - OT Equipment - Children,Daily Living Equipment,Medequip Assistive Technology Limited,6815.71, 30-Mar-2016
1544,Revenue,CAHD,ICES / NRS Contract,Daily Living Equipment,Medequip Assistive Technology Limited,17925.87, 30-Mar-2016
1545,Revenue,CAHD,ICES / NRS Contract,Daily Living Equipment,Medequip Assistive Technology Limited,90679.86, 30-Mar-2016
1546,Revenue,CAHD,Bed Purchasing - South,Permanent Residential,Mencap,2277.84, 15-Mar-2016
1547,Revenue,CAHD,Supported Living (S28a) South,Private & Voluntary Home Care,Mencap - PS Central & Cymru,3841.88, 24-Mar-2016
1548,Revenue,CAHD,CSC - Section 17,Preventative Assistance,Meridian Business Support Ltd,781.60, 03-Mar-2016
1549,Revenue,CAHD,CSC - Section 17,Preventative Assistance,Meridian Business Support Ltd,781.60, 10-Mar-2016
1550,Revenue,CAHD,CSC - Section 17,Preventative Assistance,Meridian Business Support Ltd,781.60, 17-Mar-2016
1551,Revenue,CAHD,CSC - Section 17,Preventative Assistance,Meridian Business Support Ltd,781.60, 24-Mar-2016
1552,Revenue,CAHD,CSC - Section 17,Preventative Assistance,Meridian Business Support Ltd,781.60, 31-Mar-2016
1553,Revenue,CAHD,Supporting People Programme,Grants to Voluntary Bodies,Merlin Housing Society,14786.49, 01-Mar-2016
1554,Revenue,CAHD,Supporting People Programme,Grants to Voluntary Bodies,Merlin Housing Society,2485.47, 01-Mar-2016
1555,Revenue,CAHD,Supporting People Programme,Grants to Voluntary Bodies,Merlin Housing Society,47076.50, 01-Mar-2016
1556,Revenue,CAHD,Supporting People Programme,Grants to Voluntary Bodies,Merlin Housing Society,1053.09, 01-Mar-2016
1557,Revenue,CAHD,CSC - Care Leavers Independent Living,Independent Living,Merlin Housing Society,1928.71, 24-Mar-2016
1558,Revenue,CAHD,Intermediate Care Accommodation,Other Supplies & Services,Merlin Housing Society,491.13, 11-Mar-2016
1559,Revenue,CAHD,Under 65s -MH  Home Care Purch,Other Small Contracts,Mike Durrant - Cherry Orchards,1780.00, 15-Mar-2016
1560,Revenue,CAHD,Home Care - Elderly - South,Supported Living,Milestones - Unit 10,2103.36, 15-Mar-2016
1561,Revenue,CAHD,Home Care - Elderly - South,Supported Living,Milestones - Unit 10,3631.76, 15-Mar-2016
1562,Revenue,CAHD,Home Care - Elderly - North,Supported Living,Milestones - Unit 10,4304.16, 15-Mar-2016
1563,Revenue,CAHD,Home Care - Elderly - South,Supported Living,Milestones - Unit 10,3631.76, 15-Mar-2016
1564,Revenue,CAHD,Supported Living (S28a) North,Private & Voluntary Home Care,Milestones - Unit 10,4076.32, 15-Mar-2016
1565,Revenue,CAHD,Home Care - Elderly - South,Supported Living,Milestones - Unit 10,3643.60, 15-Mar-2016
1566,Revenue,CAHD,Home Care - Elderly - South,Supported Living,Milestones - Unit 10,2317.68, 15-Mar-2016
1567,Revenue,CAHD,Home Care - Elderly - South,Supported Living,Milestones - Unit 10,3715.52, 15-Mar-2016
1568,Revenue,CAHD,Home Care - Elderly - South,Other Small Contracts,Milestones - Unit 10,3719.52, 15-Mar-2016
1569,Revenue,CAHD,Supported Living (S28a) North,Private & Voluntary Home Care,Milestones - Unit 10,4076.32, 15-Mar-2016
1570,Revenue,CAHD,Supported Living (S28a) South,Supported Living,Milestones - Unit 10,3881.32, 15-Mar-2016
1571,Revenue,CAHD,Supported Living (S28a) North,Private & Voluntary Home Care,Milestones - Unit 10,3603.08, 15-Mar-2016
1572,Revenue,CAHD,Supported Living (S28a) North,Private & Voluntary Home Care,Milestones - Unit 10,3603.08, 15-Mar-2016
1573,Revenue,CAHD,Home Care - Elderly - South,Supported Living,Milestones - Unit 10,1251.04, 15-Mar-2016
1574,Revenue,CAHD,Supported Living (S28a) South,Supported Living,Milestones - Unit 10,5505.80, 15-Mar-2016
1575,Revenue,CAHD,Home Care - Elderly - South,Supported Living,Milestones - Unit 10,2232.52, 15-Mar-2016
1576,Revenue,CAHD,Supported Living (S28a) South,Supported Living,Milestones - Unit 10,2232.52, 15-Mar-2016
1577,Revenue,CAHD,Home Care - Elderly - North,Supported Living,Milestones - Unit 10,4304.16, 15-Mar-2016
1578,Revenue,CAHD,Home Care - Elderly - South,Supported Living,Milestones - Unit 10,2103.36, 15-Mar-2016
1579,Revenue,CAHD,Supported Living (S28a) North,Private & Voluntary Home Care,Milestones - Unit 10,3615.20, 15-Mar-2016
1580,Revenue,CAHD,Supported Living (S28a) South,Supported Living,Milestones - Unit 10,2232.52, 15-Mar-2016
1581,Revenue,CAHD,Supported Living (S28a) South,Supported Living,Milestones - Unit 10,2232.52, 15-Mar-2016
1582,Revenue,CAHD,Bed Purchasing - North,Permanent Residential,Milestones - Unit 10,3496.32, 15-Mar-2016
1583,Revenue,CAHD,Bed Purchasing - South,Permanent Residential,Milestones - Unit 10,4921.56, 15-Mar-2016
1584,Revenue,CAHD,Bed Purchasing - South,Permanent Residential,Milestones - Unit 10,6443.92, 15-Mar-2016
1585,Revenue,CAHD,Bed Purchasing - South,Permanent Nursing,Milestones - Unit 10,2763.44, 15-Mar-2016
1586,Revenue,CAHD,Bed Purchasing - South,Permanent Nursing,Milestones - Unit 10,1286.44, 15-Mar-2016
1587,Revenue,CAHD,Bed Purchasing - South,Permanent Residential,Milestones - Unit 10,3640.84, 15-Mar-2016
1588,Revenue,CAHD,Bed purchasing - Elderly S117 - South,Permanent Nursing,Milestones - Unit 10,7711.36, 15-Mar-2016
1589,Revenue,CAHD,Bed Purchasing - North,Permanent Nursing,Milestones - Unit 10,1440.08, 15-Mar-2016
1590,Revenue,CAHD,Bed Purchasing - North,Permanent Residential,Milestones - Unit 10,8845.08, 15-Mar-2016
1591,Revenue,CAHD,Bed Purchasing - South,Permanent Residential,Milestones - Unit 10,4165.64, 15-Mar-2016
1592,Revenue,CAHD,Bed Purchasing - North,Permanent Nursing,Milestones - Unit 10,4246.80, 15-Mar-2016
1593,Revenue,CAHD,Bed purchasing -S28A  Under 65 - North,Permanent Residential,Milestones - Unit 10,5387.68, 15-Mar-2016
1594,Revenue,CAHD,Bed purchasing - S28A Under 65 - South,Permanent Residential,Milestones - Unit 10,5588.64, 15-Mar-2016
1595,Revenue,CAHD,Bed Purchasing - South,Permanent Residential,Milestones - Unit 10,1317.44, 15-Mar-2016
1596,Revenue,CAHD,Bed Purchasing - South,Permanent Residential,Milestones - Unit 10,5042.32, 15-Mar-2016
1597,Revenue,CAHD,Bed Purchasing - South,Permanent Residential,Milestones - Unit 10,5595.76, 15-Mar-2016
1598,Revenue,CAHD,Bed purchasing - S28A Under 65 - South,Permanent Nursing,Milestones - Unit 10,7369.04, 15-Mar-2016
1599,Revenue,CAHD,MH Purchasing - Younger,Permanent Residential,Milestones - Unit 10,866.80, 15-Mar-2016
1600,Revenue,CAHD,Bed Purchasing - South,Permanent Residential,Milestones - Unit 10,5126.20, 15-Mar-2016
1601,Revenue,CAHD,Bed Purchasing - South,Permanent Residential,Milestones - Unit 10,5175.80, 15-Mar-2016
1602,Revenue,CAHD,Bed Purchasing - North,Permanent Residential,Milestones - Unit 10,4062.96, 15-Mar-2016
1603,Revenue,CAHD,Bed purchasing -S28A  Under 65 - North,Permanent Nursing,Milestones - Unit 10,5316.80, 15-Mar-2016
1604,Revenue,CAHD,Bed Purchasing - North,Permanent Residential,Milestones - Unit 10,4685.96, 15-Mar-2016
1605,Revenue,CAHD,Bed purchasing -S28A  Under 65 - North,Permanent Residential,Milestones - Unit 10,7136.00, 15-Mar-2016
1606,Revenue,CAHD,Bed purchasing -S28A  Under 65 - North,Permanent Nursing,Milestones - Unit 10,5865.04, 15-Mar-2016
1607,Revenue,CAHD,Bed Purchasing - South,Permanent Residential,Milestones - Unit 10,3245.72, 15-Mar-2016
1608,Revenue,CAHD,Bed purchasing -S28A  Under 65 - North,Permanent Residential,Milestones - Unit 10,6829.12, 15-Mar-2016
1609,Revenue,CAHD,Bed purchasing - S28A Under 65 - South,Permanent Residential,Milestones - Unit 10,4575.80, 15-Mar-2016
1610,Revenue,CAHD,Bed Purchasing - S28A - Over 65- North,Permanent Residential,Milestones - Unit 10,6670.00, 15-Mar-2016
1611,Revenue,CAHD,Bed purchasing -S28A  Under 65 - North,Permanent Residential,Milestones - Unit 10,7089.20, 15-Mar-2016
1612,Revenue,CAHD,Bed purchasing -S28A  Under 65 - North,Permanent Residential,Milestones - Unit 10,7136.20, 15-Mar-2016
1613,Revenue,CAHD,Bed Purchasing - LD S28A- Over 65- South,Permanent Residential,Milestones - Unit 10,4134.48, 15-Mar-2016
1614,Revenue,CAHD,Bed purchasing - S28A Under 65 - South,Permanent Residential,Milestones - Unit 10,4527.72, 15-Mar-2016
1615,Revenue,CAHD,Bed purchasing - S28A Under 65 - South,Permanent Residential,Milestones - Unit 10,3704.60, 15-Mar-2016
1616,Revenue,CAHD,Bed Purchasing - LD S28A- Over 65- South,Permanent Residential,Milestones - Unit 10,5142.04, 15-Mar-2016
1617,Revenue,CAHD,Bed Purchasing - LD S28A- Over 65- South,Permanent Residential,Milestones - Unit 10,4798.80, 15-Mar-2016
1618,Revenue,CAHD,Bed Purchasing - LD S28A- Over 65- South,Permanent Residential,Milestones - Unit 10,5126.08, 15-Mar-2016
1619,Revenue,CAHD,Bed Purchasing - LD S28A- Over 65- South,Permanent Residential,Milestones - Unit 10,4396.24, 15-Mar-2016
1620,Revenue,CAHD,Bed Purchasing - LD S28A- Over 65- South,Permanent Residential,Milestones - Unit 10,5222.00, 15-Mar-2016
1621,Revenue,CAHD,Bed Purchasing - S28A - Over 65- North,Permanent Residential,Milestones - Unit 10,2902.08, 15-Mar-2016
1622,Revenue,CAHD,Section 117 Placements MH Younger,Permanent Residential,Milestones - Unit 10,1372.00, 15-Mar-2016
1623,Revenue,CAHD,Bed Purchasing - South,Permanent Residential,Milestones - Unit 10,866.80, 15-Mar-2016
1624,Revenue,CAHD,Bed purchasing - S28A Under 65 - South,Permanent Residential,Milestones - Unit 10,4988.84, 15-Mar-2016
1625,Revenue,CAHD,Bed Purchasing - North,Permanent Residential,Milestones - Unit 10,4349.92, 15-Mar-2016
1626,Revenue,CAHD,Bed Purchasing - North,Permanent Nursing,Milestones - Unit 10,6971.80, 15-Mar-2016
1627,Revenue,CAHD,Bed Purchasing - South,Permanent Residential,Milestones - Unit 10,4318.72, 15-Mar-2016
1628,Revenue,CAHD,Bed purchasing -S28A  Under 65 - North,Permanent Residential,Milestones - Unit 10,5737.92, 15-Mar-2016
1629,Revenue,CAHD,Bed Purchasing - S28A - Over 65- North,Permanent Residential,Milestones - Unit 10,3633.92, 15-Mar-2016
1630,Revenue,CAHD,MH Purchasing - Younger,Permanent Residential,Milestones - Unit 10,1050.20, 15-Mar-2016
1631,Revenue,CAHD,Bed Purchasing - S28A - Over 65- North,Permanent Residential,Milestones - Unit 10,3245.24, 15-Mar-2016
1632,Revenue,CAHD,Bed Purchasing - LD S28A- Over 65- South,Permanent Residential,Milestones - Unit 10,3919.96, 15-Mar-2016
1633,Revenue,CAHD,Bed purchasing - S28A Under 65 - South,Permanent Residential,Milestones - Unit 10,5228.28, 15-Mar-2016
1634,Revenue,CAHD,Bed purchasing - S28A Under 65 - South,Permanent Nursing,Milestones - Unit 10,5239.84, 15-Mar-2016
1635,Revenue,CAHD,Bed Purchasing - LD S28A- Over 65- South,Permanent Nursing,Milestones - Unit 10,5277.92, 15-Mar-2016
1636,Revenue,CAHD,Bed Purchasing - LD S28A- Over 65- South,Permanent Residential,Milestones - Unit 10,4800.72, 15-Mar-2016
1637,Revenue,CAHD,Bed Purchasing - LD S28A- Over 65- South,Permanent Residential,Milestones - Unit 10,4645.48, 15-Mar-2016
1638,Revenue,CAHD,Bed purchasing - S28A Under 65 - South,Permanent Residential,Milestones - Unit 10,6111.04, 15-Mar-2016
1639,Revenue,CAHD,Bed Purchasing - LD S28A- Over 65- South,Permanent Residential,Milestones - Unit 10,4713.52, 15-Mar-2016
1640,Revenue,CAHD,Bed Purchasing - S28A - Over 65- North,Permanent Nursing,Milestones - Unit 10,4776.40, 15-Mar-2016
1641,Revenue,CAHD,Bed Purchasing - South,Permanent Nursing,Milestones - Unit 10,3319.80, 15-Mar-2016
1642,Revenue,CAHD,Bed Purchasing - S28A - Over 65- North,Permanent Residential,Milestones - Unit 10,4634.04, 15-Mar-2016
1643,Revenue,CAHD,Bed Purchasing - S28A - Over 65- North,Permanent Residential,Milestones - Unit 10,4806.64, 15-Mar-2016
1644,Revenue,CAHD,Bed purchasing - S28A Under 65 - South,Permanent Residential,Milestones - Unit 10,4808.68, 15-Mar-2016
1645,Revenue,CAHD,Bed Purchasing - S28A - Over 65- North,Permanent Residential,Milestones - Unit 10,4547.76, 15-Mar-2016
1646,Revenue,CAHD,Bed purchasing -S28A  Under 65 - North,Permanent Residential,Milestones - Unit 10,7136.20, 15-Mar-2016
1647,Revenue,CAHD,Bed purchasing -S28A  Under 65 - North,Permanent Residential,Milestones - Unit 10,3340.76, 15-Mar-2016
1648,Revenue,CAHD,Bed Purchasing - North,Permanent Residential,Milestones - Unit 10,3162.44, 15-Mar-2016
1649,Revenue,CAHD,Bed Purchasing - S28A - Over 65- North,Permanent Residential,Milestones - Unit 10,3464.24, 15-Mar-2016
1650,Revenue,CAHD,Bed Purchasing - North,Respite Emergency - Residential,Milestones - Unit 10,9790.44, 15-Mar-2016
1651,Revenue,CAHD,Bed Purchasing - North,Permanent Nursing,Milestones - Unit 10,1330.80, 15-Mar-2016
1652,Revenue,CAHD,MH Purchasing - Younger,Permanent Nursing,Milestones - Unit 10,950.96, 15-Mar-2016
1653,Revenue,CAHD,MH Purchasing - Younger,Permanent Nursing,Milestones - Unit 10,958.80, 15-Mar-2016
1654,Revenue,CAHD,Bed Purchasing - South,Permanent Residential,Milestones - Unit 10,3285.36, 15-Mar-2016
1655,Revenue,CAHD,Bed purchasing - S28A Under 65 - South,Permanent Residential,Milestones - Unit 10,5984.08, 15-Mar-2016
1656,Revenue,CAHD,Bed purchasing - S28A Under 65 - South,Permanent Residential,Milestones - Unit 10,6071.04, 15-Mar-2016
1657,Revenue,CAHD,Bed Purchasing - Southmead Hospital,Permanent Nursing,Milestones - Unit 10,5836.64, 15-Mar-2016
1658,Revenue,CAHD,Bed Purchasing - LD S28A- Over 65- South,Permanent Residential,Milestones - Unit 10,4396.24, 15-Mar-2016
1659,Revenue,CAHD,Bed Purchasing - South,Permanent Residential,Milestones - Unit 10,5984.52, 15-Mar-2016
1660,Revenue,CAHD,Bed Purchasing - LD S28A- Over 65- South,Permanent Nursing,Milestones - Unit 10,5277.92, 15-Mar-2016
1661,Revenue,CAHD,Bed Purchasing - LD S28A- Over 65- South,Permanent Residential,Milestones - Unit 10,3575.16, 15-Mar-2016
1662,Revenue,CAHD,Bed Purchasing - South,Permanent Residential,Milestones - Unit 10,4386.24, 15-Mar-2016
1663,Revenue,CAHD,Bed Purchasing - South,Permanent Residential,Milestones - Unit 10,1239.36, 15-Mar-2016
1664,Revenue,CAHD,Bed purchasing -S28A  Under 65 - North,Permanent Nursing,Milestones - Unit 10,7697.08, 15-Mar-2016
1665,Revenue,CAHD,Bed Purchasing - South,Permanent Residential,Milestones - Unit 10,5319.52, 15-Mar-2016
1666,Revenue,CAHD,Bed Purchasing - North,Permanent Nursing,Milestones - Unit 10,1460.24, 15-Mar-2016
1667,Revenue,CAHD,18-25 Year Olds,Permanent Residential,Milestones - Unit 10,14710.68, 15-Mar-2016
1668,Revenue,CAHD,Section 117 Placements MH Younger,Permanent Residential,Milestones - Unit 10,1372.00, 15-Mar-2016
1669,Revenue,CAHD,Bed Purchasing - South,Permanent Nursing,Milestones - Unit 10,3399.64, 15-Mar-2016
1670,Revenue,CAHD,Bed Purchasing - South,Permanent Nursing,Milestones - Unit 10,2808.92, 15-Mar-2016
1671,Revenue,CAHD,Bed Purchasing - S28A - Over 65- North,Permanent Nursing,Milestones - Unit 10,3670.84, 15-Mar-2016
1672,Revenue,CAHD,Bed Purchasing - S28A - Over 65- North,Permanent Nursing,Milestones - Unit 10,3666.84, 15-Mar-2016
1673,Revenue,CAHD,Home Care - Elderly - South,Other Small Contracts,Milestones Homecare & Dementia Service,911.76, 03-Mar-2016
1674,Revenue,CAHD,Home Care - Elderly - North,Other Small Contracts,Milestones Homecare & Dementia Service,1984.65, 03-Mar-2016
1675,Revenue,CAHD,Home care - Elderly MH - North,Other Small Contracts,Milestones Homecare & Dementia Service,43.23, 03-Mar-2016
1676,Revenue,CAHD,Home Care - Elderly - South,Other Small Contracts,Milestones Homecare & Dementia Service,770.28, 18-Mar-2016
1677,Revenue,CAHD,Home Care - Elderly - North,Other Small Contracts,Milestones Homecare & Dementia Service,1972.86, 18-Mar-2016
1678,Revenue,CAHD,Home care - Elderly MH - North,Other Small Contracts,Milestones Homecare & Dementia Service,51.09, 18-Mar-2016
1679,Revenue,CAHD,Home Care - Elderly - South,Other Small Contracts,Milestones Homecare & Dementia Service,1029.66, 24-Mar-2016
1680,Revenue,CAHD,Home Care - Elderly - North,Other Small Contracts,Milestones Homecare & Dementia Service,2031.81, 24-Mar-2016
1681,Revenue,CAHD,Home care - Elderly MH - North,Other Small Contracts,Milestones Homecare & Dementia Service,51.09, 24-Mar-2016
1682,Revenue,CAHD,Home Care - Elderly - South,Day Care / Social Activities,Milestones Supported Living Services,7770.07, 22-Mar-2016
1683,Revenue,CAHD,Home Care - Elderly - South,Other Small Contracts,Milestones Supported Living Services,1656.36, 22-Mar-2016
1684,Revenue,CAHD,Home Care - Elderly - South,Supported Living,Milestones Supported Living Services,1924.44, 22-Mar-2016
1685,Revenue,CAHD,Home Care - Elderly - North,Day Care / Social Activities,Milestones Supported Living Services,2953.74, 22-Mar-2016
1686,Revenue,CAHD,Home Care - Elderly - North,Other Small Contracts,Milestones Supported Living Services,284.48, 22-Mar-2016
1687,Revenue,CAHD,Home Care - Elderly - North,Supported Living,Milestones Supported Living Services,162.40, 22-Mar-2016
1688,Revenue,CAHD,Day Care - South,Day Care / Social Activities,Milestones Supported Living Services,77.52, 22-Mar-2016
1689,Revenue,CAHD,Day Care - North,Day Care / Social Activities,Milestones Supported Living Services,163.28, 22-Mar-2016
1690,Revenue,CAHD,Younger MH non-res purchasing,Day Care / Social Activities,Milestones Supported Living Services,22.80, 22-Mar-2016
1691,Revenue,CAHD,Home care - Elderly MH - North,Other Small Contracts,Milestones Supported Living Services,129.12, 22-Mar-2016
1692,Revenue,CAHD,Home Care - Elderly - South,Day Care / Social Activities,Milestones Supported Living Services,7386.37, 21-Mar-2016
1693,Revenue,CAHD,Home Care - Elderly - South,Other Small Contracts,Milestones Supported Living Services,936.34, 21-Mar-2016
1694,Revenue,CAHD,Home Care - Elderly - South,Supported Living,Milestones Supported Living Services,1879.78, 21-Mar-2016
1695,Revenue,CAHD,Home Care - Elderly - North,Day Care / Social Activities,Milestones Supported Living Services,3209.02, 21-Mar-2016
1696,Revenue,CAHD,Home Care - Elderly - North,Other Small Contracts,Milestones Supported Living Services,284.48, 21-Mar-2016
1697,Revenue,CAHD,Home Care - Elderly - North,Supported Living,Milestones Supported Living Services,162.40, 21-Mar-2016
1698,Revenue,CAHD,Day Care - South,Day Care / Social Activities,Milestones Supported Living Services,72.96, 21-Mar-2016
1699,Revenue,CAHD,Day Care - North,Day Care / Social Activities,Milestones Supported Living Services,172.40, 21-Mar-2016
1700,Revenue,CAHD,Younger MH non-res purchasing,Day Care / Social Activities,Milestones Supported Living Services,27.36, 21-Mar-2016
1701,Revenue,CAHD,Home care - Elderly MH - North,Other Small Contracts,Milestones Supported Living Services,129.12, 21-Mar-2016
1702,Revenue,CAHD,Bed Purchasing - North,Permanent Residential,Millennium House,1429.56, 15-Mar-2016
1703,Revenue,CAHD,CSC - Legal Fees,Legal Fees,Individual,750.00, 21-Mar-2016
1704,Revenue,CAHD,CSC - Legal Fees,Legal Fees,Individual,4050.00, 29-Mar-2016
1705,Revenue,CAHD,CSC - Legal Fees,Legal Fees,Individual,1850.00, 21-Mar-2016
1706,Revenue,CAHD,18-25 Year Olds,Permanent Residential,Modus Care Ltd,18210.08, 15-Mar-2016
1707,Revenue,CAHD,Placements OLA Special Schools and RB,Other L.A.'s - General,Monmouthshire County Council,123073.17, 29-Mar-2016
1708,Revenue,CAHD,Bed Purchasing - Southmead Hospital,Permanent Residential,Mostyn Lodge Residential Home,1143.20, 15-Mar-2016
1709,Revenue,CAHD,Bed Purchasing - North,Permanent Residential,Mostyn Lodge Residential Home,1239.80, 15-Mar-2016
1710,Revenue,CAHD,Mental Health and Emotional Wellbeing,Other Small Contracts,Mothers for Mothers,2250.00, 07-Mar-2016
1711,Revenue,CAHD,Younger MH non-res purchasing,Supported Living,Moving On,1388.52, 11-Mar-2016
1712,Revenue,CAHD,Home Care - Elderly - South,Supported Living,Moving On (UK) Limited,2415.28, 15-Mar-2016
1713,Revenue,CAHD,Home Care - Elderly - South,Supported Living,Moving On (UK) Limited,776.34, 15-Mar-2016
1714,Revenue,CAHD,CSC - LAT Placements,Other Transport Costs,Moving With Care Limited,856.42, 24-Mar-2016
1715,Revenue,CAHD,Social Lettings Agency,Fees - General,Individual,10.53, 07-Mar-2016
1716,Revenue,CAHD,Social Lettings Agency,Other Supplies & Services,Individual,595.11, 07-Mar-2016
1717,Revenue,CAHD,Social Lettings Agency,Fees - General,Individual,10.00, 11-Mar-2016
1718,Revenue,CAHD,Social Lettings Agency,Other Supplies & Services,Individual,595.11, 11-Mar-2016
1719,Revenue,CAHD,Social Lettings Agency,Fees - General,Individual,10.53, 04-Mar-2016
1720,Revenue,CAHD,Social Lettings Agency,Other Supplies & Services,Individual,595.11, 04-Mar-2016
1721,Revenue,CAHD,Social Lettings Agency,Fees - General,Individual,10.53, 07-Mar-2016
1722,Revenue,CAHD,Social Lettings Agency,Other Supplies & Services,Individual,595.11, 07-Mar-2016
1723,Revenue,CAHD,Social Lettings Agency,Fees - General,Individual,10.53, 22-Mar-2016
1724,Revenue,CAHD,Social Lettings Agency,Other Supplies & Services,Individual,595.11, 22-Mar-2016
1725,Revenue,CAHD,Social Lettings Agency,Fees - General,Individual,7.24, 22-Mar-2016
1726,Revenue,CAHD,Social Lettings Agency,Other Supplies & Services,Individual,614.85, 22-Mar-2016
1727,Revenue,CAHD,Social Lettings Agency,Fees - General,Individual,12.22, 30-Mar-2016
1728,Revenue,CAHD,Social Lettings Agency,Other Supplies & Services,Individual,690.32, 30-Mar-2016
1729,Revenue,CAHD,Homeless - Private Sector Leasing,Other Supplies & Services,Individual,595.00, 23-Mar-2016
1730,Revenue,CAHD,Social Lettings Agency,Fees - General,Individual,16.85, 08-Mar-2016
1731,Revenue,CAHD,Social Lettings Agency,Other Supplies & Services,Individual,951.89, 08-Mar-2016
1732,Revenue,CAHD,Social Lettings Agency,Fees - General,Individual,10.53, 08-Mar-2016
1733,Revenue,CAHD,Social Lettings Agency,Other Supplies & Services,Individual,595.11, 08-Mar-2016
1734,Revenue,CAHD,CSC - Legal Fees,Legal Fees,Individual,1050.00, 07-Mar-2016
1735,Revenue,CAHD,Social Lettings Agency,Fees - General,Individual,12.22, 10-Mar-2016
1736,Revenue,CAHD,Social Lettings Agency,Other Supplies & Services,Individual,690.32, 10-Mar-2016
1737,Revenue,CAHD,Social Lettings Agency,Fees - General,Individual,12.22, 02-Mar-2016
1738,Revenue,CAHD,Social Lettings Agency,Other Supplies & Services,Individual,690.32, 02-Mar-2016
1739,Revenue,CAHD,Social Lettings Agency,Fees - General,Individual,10.53, 22-Mar-2016
1740,Revenue,CAHD,Social Lettings Agency,Other Supplies & Services,Individual,595.11, 22-Mar-2016
1741,Revenue,CAHD,CSC - Legal Fees,Legal Fees,Individual,1900.00, 29-Mar-2016
1742,Revenue,CAHD,Social Lettings Agency,Fees - General,Individual,12.22, 18-Mar-2016
1743,Revenue,CAHD,Social Lettings Agency,Other Supplies & Services,Individual,690.32, 18-Mar-2016
1744,Revenue,CAHD,Social Lettings Agency,Fees - General,Individual,10.53, 16-Mar-2016
1745,Revenue,CAHD,Social Lettings Agency,Other Supplies & Services,Individual,595.11, 16-Mar-2016
1746,Revenue,CAHD,Social Lettings Agency,Fees - General,Individual,10.53, 01-Mar-2016
1747,Revenue,CAHD,Social Lettings Agency,Other Supplies & Services,Individual,595.11, 01-Mar-2016
1748,Revenue,CAHD,Social Lettings Agency,Fees - General,Individual,12.22, 18-Mar-2016
1749,Revenue,CAHD,Social Lettings Agency,Other Supplies & Services,Individual,680.32, 18-Mar-2016
1750,Revenue,CAHD,Social Lettings Agency,Fees - General,Individual,10.53, 30-Mar-2016
1751,Revenue,CAHD,Social Lettings Agency,Other Supplies & Services,Individual,595.11, 30-Mar-2016
1752,Revenue,CAHD,Travel to School (HTST) - Secondary,Client Transport,Individual,557.10, 29-Mar-2016
1753,Revenue,CAHD,Home Care - Elderly - South,Day Care / Social Activities,Mrs B Kimber -  CM2000,1973.12, 18-Mar-2016
1754,Revenue,CAHD,Home Care - Elderly - South,Other Small Contracts,Mrs B Kimber -  CM2000,9088.96, 18-Mar-2016
1755,Revenue,CAHD,Home Care - Elderly - South,Supported Living,Mrs B Kimber -  CM2000,29.12, 18-Mar-2016
1756,Revenue,CAHD,Home Care - Elderly - North,Day Care / Social Activities,Mrs B Kimber -  CM2000,391.04, 18-Mar-2016
1757,Revenue,CAHD,Home Care - Elderly - North,Other Small Contracts,Mrs B Kimber -  CM2000,4858.88, 18-Mar-2016
1758,Revenue,CAHD,Under 65s -MH  Home Care Purch,Other Small Contracts,Mrs B Kimber -  CM2000,66.56, 18-Mar-2016
1759,Revenue,CAHD,Home Care - Elderly - South,Day Care / Social Activities,Mrs B Kimber -  CM2000,2240.00, 17-Mar-2016
1760,Revenue,CAHD,Home Care - Elderly - South,Other Small Contracts,Mrs B Kimber -  CM2000,8979.20, 17-Mar-2016
1761,Revenue,CAHD,Home Care - Elderly - South,Supported Living,Mrs B Kimber -  CM2000,24.96, 17-Mar-2016
1762,Revenue,CAHD,Home Care - Elderly - North,Day Care / Social Activities,Mrs B Kimber -  CM2000,291.20, 17-Mar-2016
1763,Revenue,CAHD,Home Care - Elderly - North,Other Small Contracts,Mrs B Kimber -  CM2000,4871.36, 17-Mar-2016
1764,Revenue,CAHD,Under 65s -MH  Home Care Purch,Other Small Contracts,Mrs B Kimber -  CM2000,66.56, 17-Mar-2016
1765,Revenue,CAHD,Home Care - Elderly - South,Day Care / Social Activities,Mrs B Kimber -  CM2000,2054.40, 17-Mar-2016
1766,Revenue,CAHD,Home Care - Elderly - South,Other Small Contracts,Mrs B Kimber -  CM2000,9429.74, 17-Mar-2016
1767,Revenue,CAHD,Home Care - Elderly - South,Supported Living,Mrs B Kimber -  CM2000,29.12, 17-Mar-2016
1768,Revenue,CAHD,Home Care - Elderly - North,Day Care / Social Activities,Mrs B Kimber -  CM2000,423.20, 17-Mar-2016
1769,Revenue,CAHD,Home Care - Elderly - North,Other Small Contracts,Mrs B Kimber -  CM2000,4796.48, 17-Mar-2016
1770,Revenue,CAHD,Under 65s -MH  Home Care Purch,Other Small Contracts,Mrs B Kimber -  CM2000,66.56, 17-Mar-2016
1771,Revenue,CAHD,CSC-Adoption Support Fund,Post Adoption,Individual,749.66, 04-Mar-2016
1772,Revenue,CAHD,Social Lettings Agency,Fees - General,Individual,10.53, 14-Mar-2016
1773,Revenue,CAHD,Social Lettings Agency,Other Supplies & Services,Individual,595.11, 14-Mar-2016
1774,Revenue,CAHD,Social Lettings Agency,Fees - General,Individual,10.00, 24-Mar-2016
1775,Revenue,CAHD,Social Lettings Agency,Other Supplies & Services,Individual,565.00, 24-Mar-2016
1776,Revenue,CAHD,Social Lettings Agency,Fees - General,Individual,10.53, 01-Mar-2016
1777,Revenue,CAHD,Social Lettings Agency,Other Supplies & Services,Individual,595.11, 01-Mar-2016
1778,Revenue,CAHD,Social Lettings Agency,Fees - General,Individual,10.53, 14-Mar-2016
1779,Revenue,CAHD,Social Lettings Agency,Other Supplies & Services,Individual,595.11, 14-Mar-2016
1780,Revenue,CAHD,Social Lettings Agency,Fees - General,Individual,10.53, 11-Mar-2016
1781,Revenue,CAHD,Social Lettings Agency,Other Supplies & Services,Individual,595.11, 11-Mar-2016
1782,Revenue,CAHD,CSC - Family Placement Team-Adoptions,Training Expenses,Individual,680.00, 18-Mar-2016
1783,Revenue,CAHD,CSC - Professional Fees Foster Carers,Special Fostering Scheme,Individual,1879.43, 04-Mar-2016
1784,Revenue,CAHD,CSC - Professional Fees Foster Carers,Band 1 Foster Care,Individual,616.00, 11-Mar-2016
1785,Revenue,CAHD,Social Lettings Agency,Fees - General,Individual,10.53, 08-Mar-2016
1786,Revenue,CAHD,Social Lettings Agency,Other Supplies & Services,Individual,595.11, 08-Mar-2016
1787,Revenue,CAHD,Social Lettings Agency,Fees - General,Individual,16.85, 11-Mar-2016
1788,Revenue,CAHD,Social Lettings Agency,Other Supplies & Services,Individual,1000.00, 11-Mar-2016
1789,Revenue,CAHD,CSC - Legal Fees,Legal Fees,Individual,475.00, 07-Mar-2016
1790,Revenue,CAHD,CSC - Age Related Allowances,Children - Family Support,Individual,2089.71, 30-Mar-2016
1791,Revenue,CAHD,CSC - Legal Fees,Legal Fees,Individual,4600.00, 29-Mar-2016
1792,Revenue,CAHD,Schools Specific Grant Income,Other Public Bodies,Mylor Bridge County Primary School,633.33, 21-Mar-2016
1793,Revenue,CAHD,Schools Specific Grant Income,Other Public Bodies,Mylor Bridge County Primary School,633.33, 21-Mar-2016
1794,Revenue,CAHD,Schools Specific Grant Income,Other Public Bodies,Mylor Bridge County Primary School,633.33, 21-Mar-2016
1795,Revenue,CAHD,Schools Specific Grant Income,Other Public Bodies,Mylor Bridge County Primary School,633.33, 21-Mar-2016
1796,Revenue,CAHD,Bed Purchasing - North,Permanent Residential,Nas Services  Church House,10621.16, 15-Mar-2016
1797,Revenue,CAHD,Bed Purchasing - North,Permanent Residential,Nas Services  Church House,5984.56, 15-Mar-2016
1798,Revenue,CAHD,Section 117 Placements MH Younger,Permanent Residential,Nas Services  Church House,7649.04, 15-Mar-2016
1799,Revenue,CAHD,Home Care - Elderly - South,Day Care / Social Activities,NAS Services Limited,607.32, 24-Mar-2016
1800,Revenue,CAHD,Home Care - Elderly - South,Supported Living,NAS Services Limited,19.28, 24-Mar-2016
1801,Revenue,CAHD,Home Care - Elderly - North,Day Care / Social Activities,NAS Services Limited,1089.32, 24-Mar-2016
1802,Revenue,CAHD,Home Care - Elderly - North,Supported Living,NAS Services Limited,347.04, 24-Mar-2016
1803,Revenue,CAHD,Younger MH non-res purchasing,Day Care / Social Activities,NAS Services Limited,231.36, 24-Mar-2016
1804,Revenue,CAHD,Bed Purchasing - Southmead Hospital,Permanent Residential,Nashley House Retirement Home,1270.80, 15-Mar-2016
1805,Revenue,CAHD,Training - Adult Services,Training Expenses,National Autistic Society,2729.28, 21-Mar-2016
1806,Revenue,CAHD,Training - Adult Services,Training Expenses,National Autistic Society,3619.93, 16-Mar-2016
1807,Revenue,CAHD,CSC - Agency Fostering,Foster Parent Allowances,National Fostering Agency,6421.34, 08-Mar-2016
1808,Revenue,CAHD,Newton House,Security Systems,National Security Group,56.67, 21-Mar-2016
1809,Revenue,CAHD,Drug/Alcohol Residential Rehab,Security Systems,National Security Group,21.67, 21-Mar-2016
1810,Revenue,CAHD,Bed Purchasing - North,Permanent Residential,National Star College,5035.04, 15-Mar-2016
1811,Revenue,CAHD,Post 16 High Needs Placements,Other Private Contractors,National Star College FDY Limited,19755.70, 11-Mar-2016
1812,Revenue,CAHD,CSC - Residential Placements,Permanent Residential,Neath Port Talbot County Borough Council,15750.00, 03-Mar-2016
1813,Revenue,CAHD,Home Care - Elderly - South,Day Care / Social Activities,Nestor T/A Allied Healthcare,57.75, 08-Mar-2016
